{"text_format":"1","workbook":"xlsx","n_sheets":1,"sheets":["conceptos"],"not_rendered":{"charts":0,"images":2,"macros":1,"external_links":0,"defined_names":1,"comments":0,"pivot_tables":0},"unopened":[],"bounds":{"document_bytes":16777216,"sheet_cells":100000,"rows_first":2000,"rows_last":500,"rows_between":2000,"halvings":0,"cell_chars":16384,"cell_head_chars":4096},"cells_cut":0,"cells_raw":0,"read":"whole","date_system":"1900"}

{"sheet":"conceptos","index":0,"n_rows":623,"n_cols":8,"rows_kept":623,"cut":false,"hidden":false,"merged":[[620,0,620,4],[621,0,622,4],[13,0,13,6],[0,2,0,5],[9,2,9,5],[1,2,3,5],[4,2,4,3],[6,2,6,3],[7,2,7,3],[4,4,4,5],[5,4,5,5],[6,4,6,5],[7,4,7,5],[10,2,10,5],[11,2,11,5],[5,1,8,1]]}
[null,"GOBIERNO DEL ESTADO DE JALISCO","LICITACIÓN PÚBLICA ESTATAL"]
[null,"INSTITUTO DE LA INFRAESTRUCTURA FÍSICA EDUCATIVA DEL","INFEJAL-E-FAMB2021-B-CONA-06608-LP-0070-2021"]
[null,"ESTADO DE JALISCO"]
[]
[null,"DESCRIPCIÓN GENERAL DE LOS TRABAJOS:","FECHA DE INICIO:"]
[null,null,null,"FECHA DE TERMINACIÓN:"]
[null,null,"PLAZO DE EJECUCIÓN:"]
[null,null,"FECHA:"]
[]
[null,"RAZÓN SOCIAL DEL LICITANTE:","NOMBRE, CARGO Y FIRMA DEL LICITANTE:",null,null,null,"DOCUMENTO"]
[]
[]
[]
["PRESUPUESTO DE OBRA"]
[]
["CLAVE","DESCRIPCIÓN","UNIDAD","CANTIDAD","PRECIO UNITARIO ($)","PRECIO UNITARIO ($) CON LETRA","IMPORTE ($) M.N."]
["TRABAJO : BAS-CONA-06608","CONSTRUCCIÓN DE DOS AULAS DIDÁCTICAS, NÚCLEO DE SERVICIOS SANITARIOS, ESTRUCTURA CON LONARIA, CANCHA DE USOS MÚLTIPLES, PÓRTICO DE INGRESO, CASETA PARA HIDRONEUMÁTICO, BARDA PERIMETRAL, REMODELACIÓN DE SANITARIOS EXISTENTES A DIRECCIÓN CON ANEXO Y BODEGA Y TRABAJOS OBRAS DE ACCESIBILIDAD Y REHABILITACIÓN EN LA TELESECUNDARIA MIGUEL HIDALGO Y COSTILLA CCT 14DTV0395Z, UBICADA EN LA LOCALIDAD TOTOLIMIXPA, MUNICIPIO DE SAN GABRIEL, JALISCO.",null,null,null,null,{"$f":"TEXT(SUM(G18 + G48 + G172 + G178 + G229 + G262 + G296 + G318 + G388 + G424 + G449 + G473 + G491 + G494 + G498 + G507), \"$ #,##0.00 ;\")","v":"$ 0.00 "}]
["A","EDIFICIO A",null,null,null,null,{"$f":"TEXT(SUM(G19 + G32 + G34 + G40 + G43), \"$ #,##0.00 ;\")","v":"$ 0.00 "}]
["A.01(140)","DEMOLICIONES, DESMONTAJES Y MECANICA DE SUELOS    ",null,null,null,null,{"$f":"TEXT(SUM(G20:G31), \"$ #,##0.00 ;\")","v":"$ 0.00 "}]
[140048,"DEMOLICION DE PISO DE MOSAICO Y/O DE CONCRETO INCLUYE; RETIRO Y ACARREO DE OBRA DE MATERIAL PRODUCTO DE LA DEMOLICION Y MANO DE OBRA CALIFICADA.\n","M2 ","50.0000",0,"CERO PESOS 00/100 M.N.",0,364822]
[140050,"DEMOLICION DE FIRME DE LADRILLO DE LAMA DE 8 CM. DE ESPESOR ASENTADO CON MORTERO CAL-ARENA AMARILLA, INCLUYE; HERRAMIENTA, EQUIPO  NECESARIO, MANO DE OBRA Y ACARREO DE MATERIAL PRODUCTO DE DEMOLICION FUERA DE LA OBRA.","M2 ","50.0000",0,"CERO PESOS 00/100 M.N.",0,364823]
[140076,"DEMOLICION DE MURO DE LADRILLO DE LAMA Y/O BLOCK DE JALCRETO DE 14 CMS. DE ESPESOR A CUALQUIER NIVEL, INCLUYE:  DEMOLICION DE DALAS, CADENAS Y CASTILLOS,  DEMOLICION DE RECUBRMIENTOS, APLANADOS, AZULEJO,(PROTECCIONES DE PISOS, VIDRIOS, PUERTAS, VENTANAS, LAMPARAS Y DEMAS INSTALACIONES QUE PUDIERAN RESULTAR DAÑADAS EN EL PROCESO DE LA DEMOLICION.) HERRAMIENTAS, EQUIPO DE SEGURIDAD,  ANDAMIOS, MANO DE OBRA, RETIRO Y ACARREO DE MATERIALES DE DESHECHO DENTRO Y FUERA DE LA OBRA ATIRADERO AUTORIZADO Y LIMPIEZA DEL AREA DE LOS TRABAJOS.","M2 ","10.0000",0,"CERO PESOS 00/100 M.N.",0,364824]
[140078,"DEMOLICION DE AZULEJO A CUALQUIER NIVEL, INCLUYE:,(PROTECCIONES DE PISOS, VIDRIOS, PUERTAS, VENTANAS, LAMPARAS Y DEMAS INSTALACIONES QUE PUDIERAN RESULTAR DAÑADAS EN EL PROCESO DE LA DEMOLICION.) HERRAMIENTAS, EQUIPO DE SEGURIDAD,  ANDAMIOS, MANO DE OBRA, ACARREO DEL PRODUCTO DE LA DEMOLICION  DENTRO Y FUERA DE LA OBRA Y LIMPIEZA DEL AREA DE TRABAJO.","M2 ","100.0000",0,"CERO PESOS 00/100 M.N.",0,364825]
[140083,"DEMOLICION DE APLANADOS DE 2.5 CMS. DE ESPESOR EN MUROS Y BOVEDAS  A CUALQUIER NIVEL, INCLUYE: (PROTECCIONES DE PISOS, VIDRIOS, PUERTAS, VENTANAS, LAMPARAS Y DEMAS INSTALACIONES QUE PUDIERAN RESULTAR DAÑADAS EN EL PROCESO DE LA DEMOLICION.) HERRAMIENTAS, EQUIPO DE SEGURIDAD,  ANDAMIOS, MANO DE OBRA, RETIRO Y ACARREO DE MATERIALES DE DESHECHO DENTRO Y FUERA DE LA OBRA ATIRADERO AUTORIZADO Y LIMPIEZA DEL AREA DE LOS TRABAJOS.","M2 ","100.0000",0,"CERO PESOS 00/100 M.N.",0,364826]
[140123,"DESMANTELAR Y RETIRAR INSTALACION HIDRAULICA EXISTENTE. INCLUYE: HERRAMIENTA, MANO DE OBRA, LIMPIEZA DEL AREA DE TRABAJO, ACARREO DEL MATERIAL PRODUCTO DEL DESMANTELAMIENTO DENTRO Y FUERA DE LA OBRA.\n","SAL","25.0000",0,"CERO PESOS 00/100 M.N.",0,364827]
[140124,"DESMANTELAR Y RETIRAR INSTALACION SANITARIA EXISTENTE. INCLUYE:MANO DE OBRA, HERRAMIENTA, LIMPIEZA DEL AREA DE TRABAJO,  ACARREO DEL MATERIAL PRODUCTO DEL DESMANTELAMIENTO DENTRO Y FUERA DE LA OBRA.\n","SAL","25.0000",0,"CERO PESOS 00/100 M.N.",0,364828]
[140129,"DESINSTALACION DE MUEBLE DE BAÑO YA SEA INODORO, LAVABO, MINGITORIO,  ETC. SIN RECUPERACION  INCLUYE:  DESCONEXION, HERRAMIENTAS, MANO DE OBRA, LIMPIEZA Y ACARREO DEL MUEBLE FUERA DE LA OBRA.","PZA","25.0000",0,"CERO PESOS 00/100 M.N.",0,364829]
[140199,"DESMONTAJE DE PUERTAS Y MAMPARAS CON MARCO Y CONTRA MARCOS DE HERRERIA TUBULAR Y/O DE ALUMINIO EXISTENTES EN OBRA, SIN RECUPERACION, TRASLADO Y GUARDADO EN BODEGA O LUGAR INDICADO POR SUPERVISION. INCLUYE; ANTEPECHO, DEMOLICION DE ANCLAJES, ACARREO Y RETIRO FUERA DE OBRA DE MATERIAL PRODUCTO DE LA DEMOLICION, MANO DE OBRA CALIFICADA Y LIMPIEZA DEL AREA DE TRABAJO.","M2 ","50.0000",0,"CERO PESOS 00/100 M.N.",0,364830]
[140652,"DEMOLICION DE LOSA DE CONCRETO ARMADO RECUBIERTA DE AZULEJO A CUALQUIER NIVEL. INCLUYE: RETIRO DEL MATERIAL PRODUCTO DE LA DEMOLICION DENTRO Y  FUERA DE LA OBRA, HERRAMIENTA, MANO DE OBRA, Y LIMPIEZA DEL AREA DE TRABAJO.","M2 ","6.0000",0,"CERO PESOS 00/100 M.N.",0,364831]
[140752,"DESINSTALAR Y RETIRAR VALVULAS HIDRAULICAS TIPO FLUXOMETRO  EXISTENTE, CON RECUPERACION, INCLUYE: LINEAS DE TUBERIA DE COBRE Y/O GALVANIZADO, HERRAMIENTAS, MANO DE OBRA, ACARREO DEL MATERIAL PRODUCTO DEL DESMANTELAMIENTO DENTRO Y FUERA DE LA OBRA.","PZA","15.0000",0,"CERO PESOS 00/100 M.N.",0,364832]
[933823,"DESCONEXION Y RETIRO DE BOMBA EXISTENTE. INCLUYE; HERRAMIENTA, MANO DE OBRA, ACARREO Y ALMACENAJE DE LA BOMBA, EN LUGAR INDICADO POR  LA SUPERVISION..","PZA","1.0000",0,"CERO PESOS 00/100 M.N.",0,364833]
["A.02(355)","RECUBRIMIENTOS Y ACABADOS                         ",null,null,null,null,{"$f":"TEXT(SUM(G33:G33), \"$ #,##0.00 ;\")","v":"$ 0.00 "}]
[355022,"APLANADO DE MUROS Y/O TECHOS CON MORTERO CEMENTO-CAL-ARENA DE RIO EN PROP. 1:2:6 DE 2 CM. DE ESPESOR PROMEDIO, A PLOMO Y REGLA, ACABADO APALILLADO FINO, INCLUYE: MATERIALES, DESPERDICIOS, ANDAMIOS, HERRAMIENTAS, PLOMEO, NIVELACION, REMATES, LIMPIEZA DEL AREA DE TRABAJO Y ACARREO DE MATERIALES AL SITIO DE SU UTILIZACION. A CUALQUIER NIVEL.\n","M2 ","100.0000",0,"CERO PESOS 00/100 M.N.",0,364882]
["A.03(372)","PISOS                                             ",null,null,null,null,{"$f":"TEXT(SUM(G35:G39), \"$ #,##0.00 ;\")","v":"$ 0.00 "}]
[344511,"SUMINISTRO Y COLOCACION DE JUNTA DE CONTRACCION ELASTOMERICA. EN PISOS CON UNA SECCION TRANSVERSAL DE 6 X 10 MM, A BASE DE SILICON DE COLOR PARA JUNTAS DE DILATACION, INCLUYE: LIMPIEZA DEL AREA A TRATAR, DESPERDICIOS Y ACARREO DEL MATERIAL AL SITIO DE SU COLOCACION.","ML ","33.3000",0,"CERO PESOS 00/100 M.N.",0,364888]
[360565,"SUMINISTRO Y COLOCACION DE MALLA ELECTROSOLDADA 6X6-10/10 COMO REFUERZO EN PISOS DE CONCRETO, INCLUYE: DESPERDICIOS, TRASLAPES, HERRAMIENTA Y ACARREO DEL MATERIAL AL SITIO DE SU COLOCACION.","M2 ","49.8000",0,"CERO PESOS 00/100 M.N.",0,364891]
[372242,"FIRME DE CONCRETO F´C= 150 KG/CM2 TMA= 3/4\",  DE 8 CM DE ESPESOR, ACABADO APALILLADO. INCLUYE: TRAZO, NIVELACION, AFINE Y COMPACTACION DEL TERRENO, AGUA, MATERIALES, EXTENDIDO, REGLEADO, CURADO, DESPERDICIOS, HERRAMIENTAS, LIMPIEZA, MANO DE OBRA Y ACARREO DEL MATERIAL AL SITIO DE SU UTILIZACION","M2 ","49.8000",0,"CERO PESOS 00/100 M.N.",0,364893]
[376023,"SUMINISTRO Y COLOCACION DE PISO DE LOSETA CERAMICA DE 50 X 50 CM., MCA. INTERCERAMIC DE PRIMERA, LINEA SAYULITA, DE CUALQUIER COLOR, GRADO DE DUREZA (PEI) \"IV\" , ASENTADO CON PEGAPISO Y JUNTEDO CON JUNTEADOR DE COLOR, JUNTAS DE 4 MM. DE ANCHO, INCLUYE: TRAZO, CORTE, REMATES, ESCUADRE, DESPERDICIOS, DESPATINADO, EMBOQUILLADOS, CERTIFICADO DE CALIDAD, HERRAMIENTAS, MATERIALES, MANO DE OBRA, LIMPIEZA Y ACARREO DE MATERIALES AL SITIO DE SU UTILIZACION, A CUALQUIER ALTURA.","M2 ","49.8000",0,"CERO PESOS 00/100 M.N.",0,364899]
[376146,"SUMINISTRO Y COLOCACION DE CENEFA DE 15.00 CM APROXIMADAMENTE A BASE DE  PISO DE LOSETA CERAMICA DE PRIMERA, QUE DEBERA CUMPLIR CON LAS SIGUIENTES CARACTERISTICAS TECNICAS: ABSORCION <= 3% , COEFICIENTE DE ESTATICO DE FRICCION >= 0.5, MODULO DE RUPTURA >= 300 KG/CM², PEI, RESISTENCIA A LA ABRASION VISIBLE 1500 CICLOS (PEI IV), RESISTENTE AL MANCHADO, RESISTENCIA AL RAYADO >= 5.0 MOHS, RESISTENTE A LOS QUIMICOS, ASENTADO CON PEGA PISO Y JUNTEADO CON JUNTEADOR DE COLOR, CON JUNTAS DE 4.00 MM. DE ANCHO MINIMO. INCLUYE: HERRAMIENTAS, MATERIALES, TRAZO, CORTES,  NIVELACION,  LIMPIEZA, DESPERDICIOS, MANO DE OBRA Y ACARREO DE MATERIALES AL SITIO DE SU UTILIZACION.","ML ","2.4000",0,"CERO PESOS 00/100 M.N.",0,364901]
["A.04(390)","CARPINTERIA                                       ",null,null,null,null,{"$f":"TEXT(SUM(G41:G42), \"$ #,##0.00 ;\")","v":"$ 0.00 "}]
[390068,"SUMINISTRO Y COLOCACION DE PUERTA DE TAMBOR CON TRIPLAY DE CAOBILLA DE 6 MM. POR AMBAS CARAS, DE  0.91 A 1.10 MTS. X 2.10 MTS. FORMADA A BASE DE BASTIDOR Y MARCO DE  MADERA DE PINO DE PRIMERA DE  2\"  X  1 1/2\"   Y  PEINAZOS DE 1 1/2\" X 1 1/2\"  A CADA 30 CMS. EN AMBOS SENTIDOS, ACABADO ENTINTADO Y LACA BRILLANTE TRANSPARENTE,  INCLUYE: MARCO Y TOPES DE MADERA,  JAMBAS, CHAPA SCOVILL MODELO A-52-PS,  RESANADOR PARA MADERA, BISAGRA DE LIBRO DE 3\", DESPERDICIOS, MATERIALES MENORES Y DE CONSUMO, HERRAMIENTAS,  ACARREO DE MATERIALES AL SITIO DE SU COLOCACION,  LIMPIEZA DEL AREA DE TRABAJO Y MANO DE OBRA ESPECIALIZADA.","PZA","1.0000",0,"CERO PESOS 00/100 M.N.",0,364905]
[390153,"MUEBLE DIVISORIO EN DIRECCION, FABRICADO CON BASTIDOR DE PINO DE PRIMERA DE 1\" DE ESPESOR, FORRADO CON TRIPLAY DE PINO DE 6 MM. Y FONDO DE TRIPLAY DE PINO DE 6 MM., CONSTA DE 3 MODULOS (2 MODULOS LIBRERO DE 2.48 MTS. DE ALTURA, 0.80 MTS. DE LARGO Y 0.30 MTS. DE ANCHO, CON 5 ENTREPAÑOS Y PUERTAS INFERIORES Y UN MODULO VITRINA PARA ASTA BANDERA DE 2.48 M. DE ALTURA, 0.50 MTS. DE LARGO Y 0.40 MTS. DE ANCHO, CON 2 PUERTAS AL FRENTE DE CRISTAL DE 4 MM. CON MEDIDAS DE 1.80 MTS. DE ALTURA Y 0.45 MTS. DE ANCHO CADA UNA, MONTADO SOBRE BASTIDOR DE MADERA DE PINO DE 1RA.), TERMINADOS COLOR MADERA NATURAL CON LACA TRANSPARENTE ACABADO BRILLANTE, INCLUYE: CHAPA PARA VITRINA, BISAGRAS DE LIBRO PARA LAS PUERTAS, BROCHES PERICO PARA PUERTAS, JALADERAS DE BOTON, SELLADOR, TAPAPORO, DESPERDICIOS, MANO DE OBRA ESPECIALIZADA Y ACARREO DEL MATERIAL AL SITIO DE SU UTILIZACION.","PZA","1.0000",0,"CERO PESOS 00/100 M.N.",0,364906]
["A.05(393)","PINTURA                                           ",null,null,null,null,{"$f":"TEXT(SUM(G44:G47), \"$ #,##0.00 ;\")","v":"$ 0.00 "}]
[393010,"PINTURA VINIL-ACRÍLICA A BASE DE AGUA ACABADO SEMIMATE  LAVABLE, PARA INTERIORES Y EXTERIORES QUE NO DESPRENDA VAPORES TÓXICOS NI OLORES DESAGRADABLES, CON LAS SIGUIENTES CARACTERÍSTICAS ( SÓLIDOS POR PESO 46-52%, SÓLIDOS POR VOLUMEN 30-36%, VISCOSIDAD DE 100-130 UK A 25°C, DENSIDAD > O = 1.2 TON/M3., LAVABILIDAD > O = 4,000 CICLOS, TIEMPO DE SECADO AL TACTO, 30-40 MIN., TIEMPO DE SECADO DURO < O = 8 HRS., CICLO DE CURADO DE 7 DIAS, PH 6-8, RENDIMIENTO EN SUP. LISA 8-10 M2/LT., FINEZA DE MOLIDO (HEGMAN) 3-7 UH.)  EN CADENAS DE DESPLANTE, A UNA CARA, TRABAJO TERMINADO, A DOS MANOS, INCLUYE: MATERIALES MENORES Y DE CONSUMO, PREPARACION DE LA SUPERFICIE, SELLADO DE LA SUPERFICIE, HERRAMIENTAS, LIMPIEZA, MANO DE OBRA Y  ACARREOS DE MATERIALES AL SITIO DE SU UTILIZACION.","ML ","30.2000",0,"CERO PESOS 00/100 M.N.",0,364907]
[393022,"PINTURA VINIL-ACRÍLICA A BASE DE AGUA ACABADO SEMIMATE  LAVABLE, PARA INTERIORES Y EXTERIORES QUE NO DESPRENDA VAPORES TÓXICOS NI OLORES DESAGRADABLES, CON LAS SIGUIENTES CARACTERÍSTICAS ( SÓLIDOS POR PESO 46-52%, SÓLIDOS POR VOLUMEN 30-36%, VISCOSIDAD DE 100-130 UK A 25°C, DENSIDAD > O = 1.2 TON/M3., LAVABILIDAD > O = 4,000 CICLOS, TIEMPO DE SECADO AL TACTO, 30-40 MIN., TIEMPO DE SECADO DURO < O = 8 HRS., CICLO DE CURADO DE 7 DIAS, PH 6-8, RENDIMIENTO EN SUP. LISA 8-10 M2/LT., FINEZA DE MOLIDO (HEGMAN) 3-7 UH.)  EN MUROS APLANADOS DE MEZCLA APALILLADO O PULIDO, TRABAJO TERMINADO, A DOS MANOS, INCLUYE: MATERIALES MENORES Y DE CONSUMO, ANDAMIOS, PREPARACION DE LA SUPERFICIE, SELLADO DE LA SUPERFICIE, HERRAMIENTAS, LIMPIEZA, MANO DE OBRA Y  ACARREOS DE MATERIALES AL SITIO DE SU UTILIZACIÓN.","M2 ","104.2000",0,"CERO PESOS 00/100 M.N.",0,364909]
[393052,"PINTURA VINIL-ACRÍLICA A BASE DE AGUA ACABADO SEMIMATE  LAVABLE, PARA INTERIORES Y EXTERIORES QUE NO DESPRENDA VAPORES TÓXICOS NI OLORES DESAGRADABLES, CON LAS SIGUIENTES CARACTERÍSTICAS ( SÓLIDOS POR PESO 46-52%, SÓLIDOS POR VOLUMEN 30-36%, VISCOSIDAD DE 100-130 UK A 25°C, DENSIDAD > O = 1.2 TON/M3., LAVABILIDAD > O = 4,000 CICLOS, TIEMPO DE SECADO AL TACTO, 30-40 MIN., TIEMPO DE SECADO DURO < O = 8 HRS., CICLO DE CURADO DE 7 DIAS, PH 6-8, RENDIMIENTO EN SUP. LISA 8-10 M2/LT., FINEZA DE MOLIDO (HEGMAN) 3-7 UH.)  EN LOSAS Y ELEMENTOS DE CONCRETO, TRABAJO TERMINADO, A DOS MANOS, INCLUYE: MATERIALES MENORES Y DE CONSUMO, ANDAMIOS, PREPARACION DE LA SUPERFICIE DE CONCRETO, SELLADO DE LA SUPERFICIE, HERRAMIENTAS, LIMPIEZA, MANO DE OBRA Y  EQUIPO DE SEGURIDAD. A CUALQUIER ALTURA.","M2 ","66.2000",0,"CERO PESOS 00/100 M.N.",0,364912]
[393142,"PINTURA DE ESMALTE ALQUIDALICO ANTICORROSIVO, ACABADO BRILLANTE, PARA INTERIORES Y EXTERIORES QUE NO DESPRENDA VAPORES TÓXICOS NI OLORES DESAGRADABLES, CON LAS SIGUIENTES CARACTERÍSTICAS ( SÓLIDOS POR PESO 49-60%, SÓLIDOS POR VOLUMEN 40-46%, VISCOSIDAD DE 110-160 UK A 25°C, DENSIDAD 0.9-1.2 TON/M3., BRILLO A 60°C, 90%, TIEMPO DE SECADO AL TACTO, < O = 6 HRS., TIEMPO DE SECADO DURO < O = 24 HRS., ADHERENCIA 100%, RENDIMIENTO EN SUP. LISA 8-10 M2/LT., DILUCIÓN MÁXIMA (AGUARRÁS, THINER), 15 %,  EN HERRERIA ABIERTA DE PERFILES ESTRUCTURALES (PROTECCIONES), MEDIDA POR UN SOLO LADO, TRABAJO TERMINADO, A DOS MANOS, INCLUYE: MATERIALES MENORES Y DE CONSUMO, ANDAMIOS, PREPARACION DE LA SUPERFICIE, HERRAMIENTAS, LIMPIEZA, MANO DE OBRA Y  EQUIPO DE SEGURIDAD. A CUALQUIER NIVEL. (LA PINTURA ES POR AMBOS LADOS DE LA HERRERIA, PERO PARA SU PAGO ES MEDIDA SOLO POR 1 SOLO LADO).","M2 ","5.7500",0,"CERO PESOS 00/100 M.N.",0,364914]
["D","EDIFICIO D",null,null,null,null,{"$f":"TEXT(SUM(G49 + G57 + G75 + G88 + G99 + G101 + G107 + G120 + G122 + G128 + G134 + G143 + G152 + G154 + G158), \"$ #,##0.00 ;\")","v":"$ 0.00 "}]
["D.01(150)","TRABAJOS PRELIMINARES                             ",null,null,null,null,{"$f":"TEXT(SUM(G50:G56), \"$ #,##0.00 ;\")","v":"$ 0.00 "}]
[150020,"LIMPIEZA DE TERRENO RETIRANDO BASURA Y DESHIERBE FUERA DE LA OBRA. INCLUYE: HERRAMIENTAS, MANO DE OBRA, RECOLECCION, JUNTA Y RETIRO. (PROYECCION DE CUBIERTA).","M2 ","237.3000",0,"CERO PESOS 00/100 M.N.",0,364834]
[150110,"TRAZO Y NIVELACION DE EDIFICIOS ESTABLECIENDO REFERENCIAS DEFINITIVAS, CON TRANSITO Y NIVEL (EQUIPO TOPOGRAFICO), INCLUYE: PERSONAL TECNICO CALIFICADO, ESTACAS, MOJONERAS, LOCALIZACION DE ENTRE EJES, BANCOS DE NIVEL, MATERIALES PARA SEÑALAMIENTO, EQUIPO, HERRAMIENTA Y MANO DE OBRA.","M2 ","237.3000",0,"CERO PESOS 00/100 M.N.",0,364835]
[150210,"DESPALME DE TERRENO NATURAL POR CUALQUIER MEDIO, CON ESPESOR PROMEDIO DE 20 CM. INCLUYE: CARGA Y ACARREO DEL PRODUCTO FUERA DE LA OBRA, MANO DE OBRA, HERRAMIENTA Y EQUIPO. (PROYECCION DE CUBIERTA).","M2 ","237.3000",0,"CERO PESOS 00/100 M.N.",0,364836]
[152204,"EXCAVACION EN CEPAS POR CUALQUIER MEDIO, MATERIAL TIPO \"B\", DE 0 A 2.00 M. DE PROFUNDIDAD, EN SECO, INCLUYE: AFINE DE TALUDES Y FONDO, TRASPALEOS,  MOVIMIENTOS Y ACARREOS DENTRO DE LA OBRA, HERRAMIENTAS Y MANO DE OBRA, MEDIDO EN BANCO.","M3 ","52.4000",0,"CERO PESOS 00/100 M.N.",0,364837]
[152206,"EXCAVACION EN CEPAS POR CUALQUIER MEDIO, MATERIAL TIPO \"C\", (TEPETATE O BOLEOS EMPACADOS HASTA 50%) DE 0 A 2.00 M. DE PROFUNDIDAD, EN SECO, INCLUYE: AFINE DE TALUDES Y FONDO, TRAPALEOS,  MOVIMIENTOS Y ACARREOS DENTRO DE LA OBRA, HERRAMIENTAS Y MANO DE OBRA, MEDIDO EN BANCO.","M3 ","52.4000",0,"CERO PESOS 00/100 M.N.",0,364838]
[152404,"EXCAVACION A CIELO ABIERTO EN CAJON POR CUALQUIER MEDIO, MATERIAL TIPO \"B\", DE 0 A 2.00 M. DE PROFUNDIDAD, EN SECO, INCLUYE: AFINE DE TALUDES Y FONDO, TRAPALEOS,  MOVIMIENTOS Y ACARREOS DENTRO DE LA OBRA, HERRAMIENTAS Y MANO DE OBRA, MEDIDO EN BANCO.","M3 ","94.9000",0,"CERO PESOS 00/100 M.N.",0,364839]
[156002,"CARGA POR CUALQUIER MEDIO Y ACARREO EN CAMION DE MATERIAL DE DESPERDICIO PRODUCTO DE LAS EXCAVACIONES FUERA DE LA OBRA, A LUGAR PERMITIDO POR LAS AUTORIDADES CORRESPONDIENTES, MEDIDO EN BANCO. INCLUYE CARGA,  ACARREO Y DESCARGA A TIRO LIBRE, HERRAMIENTA, EQUIPO, MATERIALES DE CONSUMO Y MANO DE OBRA.","M3 ","199.7000",0,"CERO PESOS 00/100 M.N.",0,364840]
["D.02(160)","CIMENTACION                                       ",null,null,null,null,{"$f":"TEXT(SUM(G58:G74), \"$ #,##0.00 ;\")","v":"$ 0.00 "}]
[160224,"PLANTILLA DE CONCRETO F'C=100 KG/CM2, TMA=3/4\", DE 6.00 CM DE ESPESOR PROMEDIO. INCLUYE: MATERIALES, HERRAMIENTAS, AFINE, NIVELACION, LIMPIEZA, MANO DE OBRA Y ACARREO DE MATERIALES AL SITIO DE SU UTILIZACION.","M2 ","87.3000",0,"CERO PESOS 00/100 M.N.",0,364841]
[167222,"DALA DE DESPLANTE DE CONCRETO F´C= 250 KG/CM2, T.M.A.= 3/4\", CON SECCION DE 14 X 30 CM., ARMADA CON 4 VARILLAS DEL #3 (3/8\") Y ESTRIBOS DEL #2 @ 20 CM., INCLUYE: ARMADO, COLADO, CURADO, VIBRADO, CIMBRA COMUN, DESCIMBRA, DESPERDICIOS, TRASLAPES, CRUCES DE VARILLAS CON ELEMENTOS TRANSVERSALES, ANDAMIOS, MANO DE OBRA, HERRAMIENTA Y ACARREO DE MATERIALES AL SITIO DE SU UTILIZACION, A CUALQUIER ALTURA.","ML ","37.7500",0,"CERO PESOS 00/100 M.N.",0,364842]
[170012,"CIMBRA  ACABADO COMUN, EN CIMENTACION, INCLUYE: DESPERDICIO, HABILITADO, CIMBRADO Y DESCIMBRA, NIVELACION, PLOMEO MATERIAL, MANO DE OBRA , LIMPIEZA, HERRAMIENTA, ACARREO DEL MATRIAL DENTRO Y FUERA DE LA OBRA.","M2 ","142.2000",0,"CERO PESOS 00/100 M.N.",0,364843]
[173001,"SUMINISTRO, HABILITADO, ARMADO Y COLOCACION DE ACERO DE REFUERZO FY=2,530 KG/CM2 (G.E.), DE 1/4\" ( # 2 ), EN CIMENTACION, INCLUYE: ALAMBRE, GANCHOS, ESCUADRAS, TRASLAPES Y DESPERDICIOS.","KG ","50.0000",0,"CERO PESOS 00/100 M.N.",0,364844]
[173003,"SUMINISTRO, HABILITADO, ARMADO Y COLOCACION DE ACERO DE REFUERZO FY=4,200 KG/CM2 (G.E.), DE 3/8\" ( #3 ), EN CIMENTACION, INCLUYE: MATERIALES, HABILITADO,  DOBLECES,  SILLETAS, ALAMBRE, GANCHOS, ESCUADRAS, TRASLAPES, DESPERDICIOS HERRAMIENTAS, MANO DE OBRA Y ACARREO DE MATERIALES AL SITIO DE SU COLOCACION.","KG ","980.0000",0,"CERO PESOS 00/100 M.N.",0,364845]
[173004,"SUMINISTRO, HABILITADO, ARMADO Y COLOCACION DE ACERO DE REFUERZO FY=4,200 KG/CM2 (G.E.), DE 1/2\" ( #4 ), EN CIMENTACION, INCLUYE: MATERIALES, HABILITADO,  DOBLECES,  SILLETAS, ALAMBRE, GANCHOS, ESCUADRAS, TRASLAPES, DESPERDICIOS HERRAMIENTAS, MANO DE OBRA Y ACARREO DE MATERIALES AL SITIO DE SU COLOCACION.","KG ","208.0000",0,"CERO PESOS 00/100 M.N.",0,364846]
[173005,"SUMINISTRO, HABILITADO, ARMADO Y COLOCACION DE ACERO DE REFUERZO FY=4,200 KG/CM2 (G.E.), DE 5/8\" (#5 ), EN CIMENTACION, INCLUYE: MATERIALES, HABILITADO,  DOBLECES,  SILLETAS, ALAMBRE, GANCHOS, ESCUADRAS, TRASLAPES, DESPERDICIOS HERRAMIENTAS, MANO DE OBRA Y ACARREO DE MATERIALES AL SITIO DE SU COLOCACION.","KG ","126.5000",0,"CERO PESOS 00/100 M.N.",0,364847]
[173006,"SUMINISTRO, HABILITADO, ARMADO Y COLOCACION DE ACERO DE REFUERZO FY=4,200 KG/CM2 (G.E.), DE 3/4\" (#6 ), EN CIMENTACION, INCLUYE: MATERIALES, HABILITADO,  DOBLECES,  SILLETAS, ALAMBRE, GANCHOS, ESCUADRAS, TRASLAPES, DESPERDICIOS HERRAMIENTAS, MANO DE OBRA Y ACARREO DE MATERIALES AL SITIO DE SU COLOCACION.","KG ","669.0000",0,"CERO PESOS 00/100 M.N.",0,364848]
[173008,"SUMINISTRO, HABILITADO, ARMADO Y COLOCACION DE ACERO DE REFUERZO FY=4,200 KG/CM2 (G.E.), DE 1\" (#8 ), EN CIMENTACION, INCLUYE: MATERIALES, HABILITADO,  DOBLECES,  SILLETAS, ALAMBRE, GANCHOS, ESCUADERAS, TRASLAPES, DESPERDICIOS HERRAMIENTAS, MANO DE OBRA Y ACARREO DE MATERIALES AL SITIO DE SU COLOCACION.","KG ","1,472.0000",0,"CERO PESOS 00/100 M.N.",0,364849]
[176118,"SUMINISTRO Y COLOCACION DE CONCRETO PREMEZCLADO BOMBEABLE F'C=250 KG/CM2, TMA= 3/4\", R.N. EN CIMENTACION. INCLUYE: BOMBEO, TENDIDO, RASTREADO, VIBRADO, NIVELACION, HERRAMIENTAS, LIMPIEZA, PRUEBAS DE RESISTENCIA,  CURADO CON CURACRETO ROJO,  DESPERDICIO Y MANO DE OBRA.","M3 ","20.5000",0,"CERO PESOS 00/100 M.N.",0,364850]
[180054,"RELLENO EN CEPAS POR CUALQUIER MEDIO, CON MATERIAL DE BANCO, (ARENA LIMOSA) COMPACTADO AL 95% PROCTOR, EN CAPAS DE 15 CM, MEDIDO COMPACTO. INCLUYE:  SUMINISTRO DE AGUA PARA LOGRAR HUMEDAD OPTIMA, DESPERDICIOS, TENDIDO, TRASPALEOS,  EQUIPO, PRUEBAS DE COMPACTACION, AFINE, NIVELACION, HERRAMIENTAS, MANO DE OBRA Y  ACARREO HASTA EL SITIO DE SU COLOCACION.  (VOLUMEN MEDIDO COMPACTADO).","M3 ","39.2000",0,"CERO PESOS 00/100 M.N.",0,364851]
[180061,"RELLENO COMPACTADO CON GRAVA-ARENA, EN CEPAS Y/O CAJON, A BASE DE GRAVA DE 3/4\" DE DIAMETRO Y MATERIAL PRODUCTO DE EXCAVACION, CON UNA PROPORCION DE 50-50 %  A CUALQUIER PROFUNDIDAD, COMPACTADO AL 95% PROCTOR POR CUALQUIER MEDIO, EN CAPAS DE 15 CM. INCLUYE:SUMINISTRO DE AGUA PARA LOGRAR HUMEDAD OPTIMA, MEZCLADO, TENDIDO, TRASPALEOS,  DESPERDICIOS, EQUIPO, PRUEBAS DE COMPACTACION, AFINE, NIVELACION, HERRAMIENTAS, MANO DE OBRA Y  ACARREO HASTA EL SITIO DE SU COLOCACION.  (VOLUMEN MEDIDO COMPACTADO).","M3 ","94.4000",0,"CERO PESOS 00/100 M.N.",0,364852]
[180065,"RELLENO COMPACTADO CON EQUIPO MECANICO DE SUELO-GRAVA, EN CEPAS Y/O CAJON , A BASE DE MATERIAL DE BANCO  (TEPETATE, ARENA, ETC) Y GRAVA DE 3/4\" A 1 1/2\" DE DIAMETRO, CON UNA PROPORCION DE 30-70 %, EN VOLUMEN,   A CUALQUIER PROFUNDIDAD, COMPACTADO AL 95% DE SU P.V.S.M. PROCTOR, EN CAPAS DE 15 CM. INCLUYE: SUMINISTRO DE AGUA PARA LOGRAR HUMEDAD OPTIMA, MEZCLACO, TENDIDO, TRASPALEOS,  DESPERDICIOS, EQUIPO, PRUEBAS DE COMPACTACION, AFINE, NIVELACION, HERRAMIENTAS, MANO DE OBRA Y  ACARREO HASTA EL SITIO DE SU COLOCACION.  (VOLUMEN MEDIDO COMPACTADO).","M3 ","35.0000",0,"CERO PESOS 00/100 M.N.",0,364853]
[180103,"RELLENO COMPACTADO AL 95% PROCTOR, CON MATERIAL DE BANCO, EN CAPAS DE 15 CM DE ESPESOR, AGREGANDO AGUA PARA LOGRAR SU HUMEDAD OPTIMA, POR CUALQUIER MEDIO, INCLUYE: SUMINISTRO DE AGUA PARA LOGRAR HUMEDAD OPTIMA, TENDIDO, TRASPALEOS,  DESPERDICIOS, EQUIPO, PRUEBAS DE COMPACTACION, AFINE, NIVELACION, HERRAMIENTAS, MANO DE OBRA Y  ACARREO HASTA EL SITIO DE SU COLOCACION.  (VOLUMEN MEDIDO COMPACTADO).","M3 ","72.8000",0,"CERO PESOS 00/100 M.N.",0,364854]
[190022,"MURETE DE ENRRASE EN CIMENTACION CON BLOCK SOLIDO DE JALCRETO 11 X 14 X 28 CM DE SECCION, A SOGA, ASENTADO CON MORTERO CEMENTO-ARENA EN PROP. 1:3, ACABADO COMUN, INCLUYE:TRAZO, NIVELACION, PLOMEO, HERRAMIENTAS, DESPERDICIOS, MANO DE OBRA, LIMPIEZA Y ACARREO DE MATERIALES AL SITIO DE SU UTILIZACION.","M2 ","34.6500",0,"CERO PESOS 00/100 M.N.",0,364855]
[192508,"ANCLAJE DE CASTILLO EN CIMENTACION 14 X 20 CMS., CONCRETO F'C=250 KG/CM2, ARMADO CON 4 VARILLAS DEL #3 (3/8\") Y ESTRIBOS DEL #2 A CADA 15 CMS., INCLUYE: ARMADO, COLADO, CURADO, VIBRADO, CIMBRA COMUN, DESCIMBRA, DESPERDICIOS, TRASLAPES, CRUCES DE VARILLAS CON ELEMENTOS TRANSVERSALES, ANDAMIOS, MANO DE OBRA, HERRAMIENTA Y ACARREO DE MATERIALES AL SITIO DE SU UTILIZACION, A CUALQUIER ALTURA.","ML ","21.0000",0,"CERO PESOS 00/100 M.N.",0,364856]
[192511,"ANCLAJE DE CASTILLO EN CIMENTACION 14 X 15 CMS., CONCRETO F'C=250 KG/CM2, ARMADO CON 4 VARILLAS DEL #3 (3/8\") Y ESTRIBOS DEL #2 A CADA 15 CMS., INCLUYE: ARMADO, COLADO, CURADO, VIBRADO, CIMBRA COMUN, DESCIMBRA, DESPERDICIOS, TRASLAPES, CRUCES DE VARILLAS CON ELEMENTOS TRANSVERSALES, ANDAMIOS, MANO DE OBRA, HERRAMIENTA Y ACARREO DE MATERIALES AL SITIO DE SU UTILIZACION, A CUALQUIER ALTURA.","ML ","1.8000",0,"CERO PESOS 00/100 M.N.",0,364857]
["D.03(200)","ESTRUCTURA                                        ",null,null,null,null,{"$f":"TEXT(SUM(G76:G87), \"$ #,##0.00 ;\")","v":"$ 0.00 "}]
[210122,"CIMBRA DE MADERA, ACABADO APARENTE, EN COLUMNAS, INCLUYE: HABILITADO, CHAFLANES, CIMBRA, DESCIMBRA, HERRAMIENTAS, LIMPIEZAS, MANO DE OBRA  Y ACARREO DE MATERIALES AL SITIO DE SU UTILIZACION, A CUALQUIER NIVEL.","M2 ","69.4500",0,"CERO PESOS 00/100 M.N.",0,364858]
[210222,"CIMBRA DE MADERA, ACABADO APARENTE, EN TRABES, INCLUYE: HABILITADO, CHAFLANES, CIMBRA, DESCIMBRA, DESPERDICIOS,  HERRAMIENTAS, PUNTALES, ANDAMIOS, LIMPIEZAS, MANO DE OBRA  Y ACARREO DE MATERIALES AL SITIO DE SU UTILIZACION, A CUALQUIER NIVEL.","M2 ","150.7000",0,"CERO PESOS 00/100 M.N.",0,364859]
[210322,"CIMBRA DE MADERA, ACABADO APARENTE, EN LOSAS, INCLUYE: HABILITADO, CHAFLANES, CIMBRA, DESCIMBRA, GOTEROS, HERRAMIENTAS, LIMPIEZAS, MANO DE OBRA  Y ACARREO DE MATERIALES AL SITIO DE SU UTILIZACION, A CUALQUIER NIVEL.","M2 ","206.0000",0,"CERO PESOS 00/100 M.N.",0,364860]
[213003,"SUMINISTRO, HABILITADO, ARMADO Y COLOCACION DE ACERO DE REFUERZO FY=4,200 KG/CM2 (G.E.), DE 3/8\" (# 3 ), EN ESTRUCTURA, INCLUYE: MATERIALES, HABILITADO,  DOBLECES,  SILLETAS, ALAMBRE, GANCHOS, ESCUADRAS, TRASLAPES, DESPERDICIOS HERRAMIENTAS, MANO DE OBRA Y ACARREO DE MATERIALES AL SITIO DE SU COLOCACION.","KG ","3,155.0000",0,"CERO PESOS 00/100 M.N.",0,364861]
[213004,"SUMINISTRO, HABILITADO, ARMADO Y COLOCACION DE ACERO DE REFUERZO FY=4,200 KG/CM2 (G.E.), DE 1/2\" (# 4 ), EN ESTRUCTURA, INCLUYE: MATERIALES, HABILITADO,  DOBLECES,  SILLETAS, ALAMBRE, GANCHOS, ESCUADRAS, TRASLAPES, DESPERDICIOS HERRAMIENTAS, MANO DE OBRA Y ACARREO DE MATERIALES AL SITIO DE SU COLOCACION.","KG ","160.0000",0,"CERO PESOS 00/100 M.N.",0,364862]
[213005,"SUMINISTRO, HABILITADO, ARMADO Y COLOCACION DE ACERO DE REFUERZO FY=4,200 KG/CM2 (G.E.), DE 5/8\" (# 5 ), EN ESTRUCTURA, INCLUYE: MATERIALES, HABILITADO,  DOBLECES,  SILLETAS, ALAMBRE, GANCHOS, ESCUADRAS, TRASLAPES, DESPERDICIOS HERRAMIENTAS, MANO DE OBRA Y ACARREO DE MATERIALES AL SITIO DE SU COLOCACION.","KG ","252.5000",0,"CERO PESOS 00/100 M.N.",0,364863]
[213006,"SUMINISTRO, HABILITADO, ARMADO Y COLOCACION DE ACERO DE REFUERZO FY=4,200 KG/CM2 (G.E.), DE 3/4\" (#6 ) , EN ESTRUCTURA, INCLUYE: MATERIALES, HABILITADO,  DOBLECES,  SILLETAS, ALAMBRE, GANCHOS, ESCUADRAS, TRASLAPES, DESPERDICIOS HERRAMIENTAS, MANO DE OBRA Y ACARREO DE MATERIALES AL SITIO DE SU COLOCACION.","KG ","1,155.0000",0,"CERO PESOS 00/100 M.N.",0,364864]
[213008,"SUMINISTRO, HABILITADO, ARMADO Y COLOCACION DE ACERO DE REFUERZO FY=4,200 KG/CM2 (G.E.), DE 1\" (#8 ) , EN ESTRUCTURA, INCLUYE: MATERIALES, HABILITADO,  DOBLECES,  SILLETAS, ALAMBRE, GANCHOS, ESCUADRAS, TRASLAPES, SOLDADURA DESPERDICIOS HERRAMIENTAS, MANO DE OBRA Y ACARREO DE MATERIALES AL SITIO DE SU COLOCACION.","KG ","2,225.0000",0,"CERO PESOS 00/100 M.N.",0,364865]
[216922,"SUMINISTRO Y COLOCACION DE CONCRETO PREMEZCLADO BOMBEABLE, F'C=250 KG/CM2, T.M.A.= 3/4, R.N., EN COLUMNAS, INCLUYE: MATERIALES, FLETES, MANIOBRAS, BOMBEO, CURADO CON CURACRETO ROJO, VIBRADO, AFINE Y ACABADO REGLEADO,  DESPERDICIO, PRUEBAS DE RESISTENCIA Y MANO DE OBRA, A CUALQUIER NIVEL.","M3 ","7.9000",0,"CERO PESOS 00/100 M.N.",0,364866]
[216932,"SUMINISTRO Y COLOCACION DE CONCRETO PREMEZCLADO BOMB, F'C=250 KG/CM2, T.M.A.= 3/4, R.N., EN TRABES Y FALDONES, INCLUYE:MATERIALES, FLETES, MANIOBRAS, BOMBEO, CURADO CON CURACRETO ROJO, VIBRADO, AFINE Y ACABADO REGLEADO,  DESPERDICIO, PRUEBAS DE RESISTENCIA Y MANO DE OBRA, A CUALQUIER NIVEL.","M3 ","12.5500",0,"CERO PESOS 00/100 M.N.",0,364867]
[216942,"SUMINISTRO Y COLOCACION DE CONCRETO PREMEZCLADO BOMB, F'C=250 KG/CM2, T.M.A.= 3/4, R.N., EN LOSAS, INCLUYE: MATERIALES, FLETES, MANIOBRAS, BOMBEO, CURADO CON CURACRETO ROJO, VIBRADO, AFINE Y ACABADO REGLEADO,  DESPERDICIO, PRUEBAS DE RESISTENCIA Y MANO DE OBRA, A CUALQUIER NIVEL.","M3 ","23.9000",0,"CERO PESOS 00/100 M.N.",0,364868]
[322512,"ACABADO PULIDO Y/O APALILLADO FINO POR CUALQUIER MEDIO DE LOSA Y/O ELEMENTOS DE CONCRETO (GRADAS, PISOS, AZOTEAS Y/O ENTREPISOS DE CONCRETO), TERMINADO EN FORMA INTEGRAL, (SIN UTILIZAR PASTA),  INCLUYE: DESPERDICIOS, ACARREOS, REGLEADO, REMATES, JUNTAS FRIAS CON VOLTEADOR, HERRAMIENTAS Y MANO DE OBRA.","M2 ","236.4500",0,"CERO PESOS 00/100 M.N.",0,364869]
["D.04(310)","MUROS, CADENAS, CASTILLOS Y REPIZONES.            ",null,null,null,null,{"$f":"TEXT(SUM(G89:G98), \"$ #,##0.00 ;\")","v":"$ 0.00 "}]
[310172,"DALA DE CONCRETO F'C=250 KG/CM2, T.M.A.=3/4\", CON SECCION DE 14 X 15 CMS., ARMADA CON 4 VARILLAS DEL # 3 Y ESTRIBOS DEL NO. 2 @ 20 CMS., INCLUYE: ARMADO, COLADO, CURADO, VIBRADO, CIMBRA COMUN, DESCIMBRA, TRASLAPES, CRUCES DE VARILLAS CON ELEMENTOS TRANSVERSALES, DESPERDICIOS, MANO DE OBRA, HERRAMIENTA Y ACARREO DE MATERIALES AL SITIO DE SU UTILIZACION, A CUALQUIER ALTURA.","ML ","32.1800",0,"CERO PESOS 00/100 M.N.",0,364870]
[310210,"DALA DE CONCRETO F'C=250 KG/CM2, T.M.A.=3/4\", CON SECCION DE 14 X 20 CMS., ARMADA CON 4 VARILLAS DEL # 3 Y ESTRIBOS DEL NO. 2 @ 20 CMS., INCLUYE: ARMADO, COLADO, CURADO, VIBRADO, CIMBRA COMUN, DESCIMBRA, DESPERDICIOS, TRASLAPES, ESCUADRAS, CRUCE DE VARILLAS CON ELEMENTOS TRANSVERSALES, ANDAMIOS, MANO DE OBRA, HERRAMIENTA Y ACARREO DE MATERIALES AL SITIO DE SU UTILIZACION. A CUALQUIER ALTURA.","ML ","37.7500",0,"CERO PESOS 00/100 M.N.",0,364871]
[310538,"DALA DE CONCRETO F'C=250 KG/CM2, T.M.A.=3/4\", CON SECCION DE 14 X 10 CMS., SIN ARMAR, INCLUYE: COLADO, CURADO, VIBRADO, CIMBRA APARENTE, DESCIMBRA, DESPERDICIOS, MANO DE OBRA, HERRAMIENTA Y ACARREO DE MATERIALES AL SITIO DE SU UTILIZACION, A CUALQUIER ALTURA.","ML ","40.6500",0,"CERO PESOS 00/100 M.N.",0,364872]
[310544,"DALA DE CONCRETO F'C=250 KG/CM2, T.M.A.=3/4\", CON SECCION DE 14 X 20 CMS., SIN ARMAR INCLUYE: COLADO, CURADO, VIBRADO, CIMBRA APARENTE, DESCIMBRA, DESPERDICIOS, MANO DE OBRA, ANDAMIOS,  HERRAMIENTA Y ACARREO DE MATERIALES AL SITIO DE SU UTILIZACION, A CUALQUIER NIVEL","ML ","29.2800",0,"CERO PESOS 00/100 M.N.",0,364873]
[312212,"CASTILLO DE CONCRETO F'C=250 KG/CM2, T.M.A.=3/4\", CON SECCION DE 14 X 15 CMS., ARMADA CON 4 VARILLAS DEL # 3 Y ESTRIBOS DEL NO. 2 @ 15 CMS., INCLUYE: ARMADO, COLADO, CURADO, VIBRADO, CIMBRA COMUN, DESCIMBRA, DESPERDICIOS, TRASLAPES, CRUCES DE VARILLAS CON ELEMENTOS TRANSVERSALES, ANDAMIOS, MANO DE OBRA, HERRAMIENTA Y ACARREO DE MATERIALES AL SITIO DE SU UTILIZACION, A CUALQUIER ALTURA.","ML ","33.8600",0,"CERO PESOS 00/100 M.N.",0,364874]
[312246,"CASTILLO DE CONCRETO F'C=250 KG/CM2, T.M.A.=3/4\", CON SECCION DE 14 X 20 CMS., ARMADA CON 4 VARILLAS DEL # 3 Y ESTRIBOS DEL NO. 2 @ 20 CMS., INCLUYE: ARMADO, COLADO, CURADO, VIBRADO, CIMBRA COMUN, DESCIMBRA, DESPERDICIOS, MANO DE OBRA, HERRAMIENTA Y ACARREO DE MATERIALES AL SITIO DE SU UTILIZACION, A CUALQUIER ALTURA.","ML ","46.6000",0,"CERO PESOS 00/100 M.N.",0,364875]
[314032,"MURO DE TABIQUE DE LAMA, DE 14 CMS. DE ESPESOR PROMEDIO, A SOGA, CON TABIQUE DE LAMA 7 X 14 X 28 CMS., ACABADO COMUN, ASENTADO CON MORTERO CEMENTO-ARENA EN PROPORCION 1:3, EN CUALQUIER NIVEL, INCLUYE: TRAZO, NIVELACION, PLOMEO, ANDAMIOS, DESPERDICIOS, MANO DE OBRA, LIMPIEZA Y ACARREO DE MATERIALES AL SITIO DE SU UTILIZACION.","M2 ","107.9000",0,"CERO PESOS 00/100 M.N.",0,364876]
[344012,"IMPERMEABILIZACION DE CADENAS DE DESPLANTE EN MUROS, CON UNA CAPA DE EMULTEX (O SIMILAR), DOS CAPAS DE BITUMEX (O SIMILAR) Y UNA CAPA DE CRISTAFLEX (O SIMILAR).","ML ","69.8300",0,"CERO PESOS 00/100 M.N.",0,364877]
[344535,"CALAFATEO DE JUNTA DE CONTRACCION ELASTOMERICA ENTRE MUROS Y COLUMNA, A BASE SIKAFLEX-1A DE COLOR DE ACUERDO AL ACABADO DEL ELEMENTO, CON UNA SECCION TRANSVERSAL DE LA JUNTA 2 CM X 1.50 CM, INCLUYE: MATERIALES, DESPERDICIOS, LIMPIEZA, HERRAMIENTAS, MANO DE OBRA Y ACARREO DE MATERIALES. A CUALQUIER ALTURA.","ML ","168.1000",0,"CERO PESOS 00/100 M.N.",0,364878]
[908201,"SUMINISTRO Y COLOCACION DE PLACAS DE POLIESTIRENO DE 14 CM DE ANCHO Y 3/4\" DE ESPESOR, EN JUNTAS CONSTRUCTIVA, MUROS, COLUMNA Y TRABES, INCLUYE:  MATERIALES, MANO DE OBRA, CORTES, AJUSTES, FIJACION, FLETES Y ACARREOS. A CUALQUIER NIVEL.","ML ","84.0500",0,"CERO PESOS 00/100 M.N.",0,364879]
["D.05(319)","ENTREPISOS, CUBIERTA Y ACABADOS DE AZOTEA         ",null,null,null,null,{"$f":"TEXT(SUM(G100:G100), \"$ #,##0.00 ;\")","v":"$ 0.00 "}]
[344125,"IMPERMEABILIZACION DE MUROS O LOSAS, A BASE DE MEMBRANA PREFABRICADA, MCA. IMPERQUIMIA, UNIPLAS AERO PLUS SBS, ALTO DESEMPEÑO CON VENTILACION ANTIABOLSAMIENTOS, FABRICADA A BASE DE ASFALTOS MODIFICADOS CON POLIMEROS SINTETICOS SBS (ESTIRENO BUTADIENO ESTIRENO) REFORZADA CON MALLA POLIESTER DE ALTA RESISTENCIA, ACABADO APARENTE A BASE DE GRAVILLA ESMALTADA A FUEGO, 4.5 MM  DE ESPESOR TOTAL, COLOR ROJO TERRACOTA, GARANTIA POR ESCRITO DE 10 AÑOS, POR LA EMPRESA CONTRATISTA., INCLUYE: LIMPIEZA Y PREPARACION DE LA SUPERFICIE, APLICACION DE PRIMER IMPERCOAT PRIMARIO SL, PARA ANCLAJE Y TAPAPORO DE LA SUPERFICIE, SELLADO DE FISURAS Y GRIETAS A BASE DE CEMENTO PLASTICO BITUMINOSO IMPERCOAT CEMENTO SBS, SUMINISTRO Y COLOCACION DE MEMBRANA POR MEDIO DE TERMOFUSION A BASE DE FUEGO DE SOPLETE DE GAS BUTANO, HACIENDO TRASLAPES MINIMOS DE 0.10 MTS. EN AMBOS SENTIDOS, SELLADO DE ORILLAS, REMATES Y TRASLAPES, MATERIALES MENORES Y DE CONSUMO, CORTES, DESPERDICIOS, LIMPIEZA GENERAL, HERRAMIENTAS, MANO DE OBRA ESPECIALIZADA Y ACARREOS AL SITIO DE SU COLOCACION.","M2 ","236.4500",0,"CERO PESOS 00/100 M.N.",0,364880]
["D.06(355)","RECUBRIMIENTOS Y ACABADOS                         ",null,null,null,null,{"$f":"TEXT(SUM(G102:G106), \"$ #,##0.00 ;\")","v":"$ 0.00 "}]
[355002,"APLANADO DE MUROS Y/O TECHOS CON MORTERO CEMENTO-CAL-ARENA DE RIO EN PROP. 1:2:6 DE 2 CM. DE ESPESOR PROMEDIO, A PLOMO Y REGLA, CON ACABADO REPELLADO, INCLUYE: MATERIALES, DESPERDICIOS, ANDAMIOS, HERRAMIENTAS, PLOMEO, NIVELACION, REMATES, LIMPIEZA DEL AREA DE TRABAJO Y ACARREO DE MATERIALES AL SITIO DE SU UTILIZACION. A CUALQUIER NIVEL.\n","M2 ","92.2500",0,"CERO PESOS 00/100 M.N.",0,364881]
[355022,"APLANADO DE MUROS Y/O TECHOS CON MORTERO CEMENTO-CAL-ARENA DE RIO EN PROP. 1:2:6 DE 2 CM. DE ESPESOR PROMEDIO, A PLOMO Y REGLA, ACABADO APALILLADO FINO, INCLUYE: MATERIALES, DESPERDICIOS, ANDAMIOS, HERRAMIENTAS, PLOMEO, NIVELACION, REMATES, LIMPIEZA DEL AREA DE TRABAJO Y ACARREO DE MATERIALES AL SITIO DE SU UTILIZACION. A CUALQUIER NIVEL.\n","M2 ","180.5500",0,"CERO PESOS 00/100 M.N.",0,364883]
[357322,"BOQUILLAS EN PUERTAS Y VENTANAS, CON MORTERO CEMENTO-CAL-ARENA 1:2:6, INCLUYE: ANDAMIOS Y ACARREO DE MATERIALES AL SITIO DE SU UTILIZACION.","ML ","41.0000",0,"CERO PESOS 00/100 M.N.",0,364884]
[357352,"FILETES Y BOLEADOS, HECHOS CON MORTERO CEMENTO-CAL-ARENA EN PROPORCION 1:2:6, INCLUYE: DESPERDICIOS, ANDAMIOS Y ACARREO DE MATERIALES AL SITIO DE SU UTILIZACION, A CUALQUIER NIVEL.","ML ","249.8100",0,"CERO PESOS 00/100 M.N.",0,364885]
[358041,"SUMINISTRO Y COLOCACION DE LOSETA CERAMICA PARA MURO ( AZULEJO ), CON RECUBRIMIENTO ESMALTADO, DE 25 X 50 CM., MCA. INTERCERAMIC, LINEA SPA WHITE DE PRIMERA CALIDAD, ASENTADO CON PEGAZULEJO Y JUNTEDO CON JUNTEADOR DE COLOR, JUNTAS A HUESO, INCLUYE: TRAZO, CORTE, REMATES, ESCUADRE, DESPERDICIOS, DESPATINADO, EMBOQUILLADOS, CERTIFICADO DE CALIDAD, HERRAMIENTAS, MATERIALES, MANO DE OBRA, LIMPIEZA Y ACARREO DE MATERIALES AL SITIO DE SU UTILIZACION, A CUALQUIER NIVEL.","M2 ","92.2500",0,"CERO PESOS 00/100 M.N.",0,364886]
["D.07(372)","PISOS                                             ",null,null,null,null,{"$f":"TEXT(SUM(G108:G119), \"$ #,##0.00 ;\")","v":"$ 0.00 "}]
[173003,"SUMINISTRO, HABILITADO, ARMADO Y COLOCACION DE ACERO DE REFUERZO FY=4,200 KG/CM2 (G.E.), DE 3/8\" ( #3 ), EN CIMENTACION, INCLUYE: MATERIALES, HABILITADO,  DOBLECES,  SILLETAS, ALAMBRE, GANCHOS, ESCUADRAS, TRASLAPES, DESPERDICIOS HERRAMIENTAS, MANO DE OBRA Y ACARREO DE MATERIALES AL SITIO DE SU COLOCACION.","KG ","103.0000",0,"CERO PESOS 00/100 M.N.",0,364887]
[344511,"SUMINISTRO Y COLOCACION DE JUNTA DE CONTRACCION ELASTOMERICA. EN PISOS CON UNA SECCION TRANSVERSAL DE 6 X 10 MM, A BASE DE SILICON DE COLOR PARA JUNTAS DE DILATACION, INCLUYE: LIMPIEZA DEL AREA A TRATAR, DESPERDICIOS Y ACARREO DEL MATERIAL AL SITIO DE SU COLOCACION.","ML ","33.6400",0,"CERO PESOS 00/100 M.N.",0,364889]
[360455,"HABILITADO, SUMINISTRO Y COLOCACION DE PASAJUNTAS EN PISOS DE CONCRETO CON VARILLA DE REDONDO LISO DE 5/8\" DE DIAMETRO Y 50 CM. LONGITUD, ENCAMISADA CON POLIDUCTO NARANJA DE 3/4\" DIAM. INCLUYE: GRASA MECANICA EN MANGUERA, NIVELACION, ELEMENTOS DE SUJECION, DESPERDICIOS, HERRAMIENTAS Y MANO DE OBRA.","PZA","52.0000",0,"CERO PESOS 00/100 M.N.",0,364890]
[360565,"SUMINISTRO Y COLOCACION DE MALLA ELECTROSOLDADA 6X6-10/10 COMO REFUERZO EN PISOS DE CONCRETO, INCLUYE: DESPERDICIOS, TRASLAPES, HERRAMIENTA Y ACARREO DEL MATERIAL AL SITIO DE SU COLOCACION.","M2 ","188.8200",0,"CERO PESOS 00/100 M.N.",0,364892]
[372242,"FIRME DE CONCRETO F´C= 150 KG/CM2 TMA= 3/4\",  DE 8 CM DE ESPESOR, ACABADO APALILLADO. INCLUYE: TRAZO, NIVELACION, AFINE Y COMPACTACION DEL TERRENO, AGUA, MATERIALES, EXTENDIDO, REGLEADO, CURADO, DESPERDICIOS, HERRAMIENTAS, LIMPIEZA, MANO DE OBRA Y ACARREO DEL MATERIAL AL SITIO DE SU UTILIZACION","M2 ","148.4000",0,"CERO PESOS 00/100 M.N.",0,364894]
[373022,"PISO DE CONCRETO F'C=150 KG/CM², T.M.A. 3/4\", DE 0.10 M. DE ESPESOR, COLADO EN CUADROS NO MAYORES DE 3.00 ML POR LADO, INCLUYE: TRAZO, NIVELACION, AFINE Y COMPACTACION DEL TERRENO, AGUA, DESPERDICIOS, ACARREOS, REGLEADO, ACABADO INTEGRAL RAYADO CON BROCHA DE PELO (SIN UTILIZACION DE PASTA), CIMBRA EN FRONTERAS, DESCIMBRA, COLADO, CURADO, REMATES, ESCALONADO, MUESTREADO, JUNTAS FRIAS CON VOLTEADOR, HERRAMIENTAS Y MANO DE OBRA.","M2 ","40.4200",0,"CERO PESOS 00/100 M.N.",0,364895]
[373552,"CEJA DE CONCRETO F'C=250 KG/CM2, TMA=3/4\" DE 10.0 X 28.0 CM DE SECCION, ARMADA CON 2 VARILLAS #3 (3/8\") Y ESTRIBOS DE 1/4\" @ 25.0 CM, EN CUALQUIER NIVEL. INCLUYE: MATERIALES, CIMBRA APARENTE EN FRENTE Y DESCIMBRA, COLADO, VIBRADO, CURADO, PERFILADO, NIVELACION, HERRAMIENTAS, DESPERDICIOS, LIMPIEZAS Y MANO DE OBRA.","ML ","36.8400",0,"CERO PESOS 00/100 M.N.",0,364896]
[373766,"FORJADO DE NARIZ DE REMATE EN PISO DE  BANQUETAS, CON 10.0  X  10.0 CM. DE SECCION, INCLUYE SOLO: CIMBRA APARENTE, DESCIMBRA, GOTERO, FORJADO, CHAFLANES, PERFILADO, DESPERDICIOS, HERRAMIENTAS, Y MANO DE OBRA. (NO INCLUYE CONCRETO).","ML ","24.2400",0,"CERO PESOS 00/100 M.N.",0,364897]
[374202,"GUARNICION O MACHUELO DE CONCRETO FC=150 KG/CM2, CON UNA SECCION TRANSVERSAL 15 X 40 CMS., ARMADA CON 4 VARILLAS DEL #3 Y ESTRIBOS #2 A CADA 20 CMS. CON CIMBRA APARENTE POR CARA VISIBLE Y COMUN EN CARA OCULTA , INCLUYE: TRAZO, AFINE Y COMPACTACION DEL TERRENO EN AREA DE CONTACTO, CIMBRA Y DESCIMBRA, COLADO, VIBRADO, CURADO, MATERIALES, HERRAMIENTAS, LIMPIEZA DEL AREA DE TRABAJO, MANO DE OBRA Y ACARREO DE MATERIALES AL SITIO DE SU UTILIZACION.","ML ","23.5900",0,"CERO PESOS 00/100 M.N.",0,364898]
[376023,"SUMINISTRO Y COLOCACION DE PISO DE LOSETA CERAMICA DE 50 X 50 CM., MCA. INTERCERAMIC DE PRIMERA, LINEA SAYULITA, DE CUALQUIER COLOR, GRADO DE DUREZA (PEI) \"IV\" , ASENTADO CON PEGAPISO Y JUNTEDO CON JUNTEADOR DE COLOR, JUNTAS DE 4 MM. DE ANCHO, INCLUYE: TRAZO, CORTE, REMATES, ESCUADRE, DESPERDICIOS, DESPATINADO, EMBOQUILLADOS, CERTIFICADO DE CALIDAD, HERRAMIENTAS, MATERIALES, MANO DE OBRA, LIMPIEZA Y ACARREO DE MATERIALES AL SITIO DE SU UTILIZACION, A CUALQUIER ALTURA.","M2 ","148.1000",0,"CERO PESOS 00/100 M.N.",0,364900]
[376146,"SUMINISTRO Y COLOCACION DE CENEFA DE 15.00 CM APROXIMADAMENTE A BASE DE  PISO DE LOSETA CERAMICA DE PRIMERA, QUE DEBERA CUMPLIR CON LAS SIGUIENTES CARACTERISTICAS TECNICAS: ABSORCION <= 3% , COEFICIENTE DE ESTATICO DE FRICCION >= 0.5, MODULO DE RUPTURA >= 300 KG/CM², PEI, RESISTENCIA A LA ABRASION VISIBLE 1500 CICLOS (PEI IV), RESISTENTE AL MANCHADO, RESISTENCIA AL RAYADO >= 5.0 MOHS, RESISTENTE A LOS QUIMICOS, ASENTADO CON PEGA PISO Y JUNTEADO CON JUNTEADOR DE COLOR, CON JUNTAS DE 4.00 MM. DE ANCHO MINIMO. INCLUYE: HERRAMIENTAS, MATERIALES, TRAZO, CORTES,  NIVELACION,  LIMPIEZA, DESPERDICIOS, MANO DE OBRA Y ACARREO DE MATERIALES AL SITIO DE SU UTILIZACION.","ML ","4.8000",0,"CERO PESOS 00/100 M.N.",0,364902]
[378301,"SUMINISTRO E INSTALACION DE GUIA PODOTACTIL COLOR AMARILLO DE 30 CM DE ANCHO, ELABORADA A BASE TABLETAS DE ARCILLA POLISINTETICA DE 30 X 30 CM., PARA ALTO TRAFICO, ANTIBACTERIAL, ANTIGRAFITI, RESISTENTE A CAMBIOS BRUSCOS DE TEMPERATURA, MARCA ARQCCESIBLE O SIMILAR EN GARANTIA, CALIDAD Y ESPECIFICACIONES, INCLUYE: GUIAS DE ADVERTENCIA, TRAZO, ADHESIVOS, DESPERDICIOS, ACARREOS, LIMPIEZA, MANO DE OBRA, HERRAMIENTA Y MATERIALES.","ML ","15.0000",0,"CERO PESOS 00/100 M.N.",0,364903]
["D.08(382)","ELEMENTOS COMPLEMENTARIOS DE ALBAÑILERIA          ",null,null,null,null,{"$f":"TEXT(SUM(G121:G121), \"$ #,##0.00 ;\")","v":"$ 0.00 "}]
[383022,"FORJADO DE BASE PARA VERTEDERO DE 0.40 X 0.40 X 0.40 M. MEDIDAS INTERIORES, FORJADA CON LADRILLO DE LAMA DE 14 CM. DE ESPESOR ASENTADO Y APLANADO CON MORTERO CEMENTO-ARENA DE RIO EN PROPORCION 1:3, RECUBIERTA CON AZULEJO DE 1RA. EN AREAS  EXTERIORES, INCLUYE: TRAZO, NIVELACION, PLOMEO, EMBOQUILLADO, ACARREO DE MATERIALES AL SITIO DE SU UTILIZACION, MANO DE OBRA Y HERRAMIENTA.","PZA","2.0000",0,"CERO PESOS 00/100 M.N.",0,364904]
["D.09(393)","PINTURA                                           ",null,null,null,null,{"$f":"TEXT(SUM(G123:G127), \"$ #,##0.00 ;\")","v":"$ 0.00 "}]
[393010,"PINTURA VINIL-ACRÍLICA A BASE DE AGUA ACABADO SEMIMATE  LAVABLE, PARA INTERIORES Y EXTERIORES QUE NO DESPRENDA VAPORES TÓXICOS NI OLORES DESAGRADABLES, CON LAS SIGUIENTES CARACTERÍSTICAS ( SÓLIDOS POR PESO 46-52%, SÓLIDOS POR VOLUMEN 30-36%, VISCOSIDAD DE 100-130 UK A 25°C, DENSIDAD > O = 1.2 TON/M3., LAVABILIDAD > O = 4,000 CICLOS, TIEMPO DE SECADO AL TACTO, 30-40 MIN., TIEMPO DE SECADO DURO < O = 8 HRS., CICLO DE CURADO DE 7 DIAS, PH 6-8, RENDIMIENTO EN SUP. LISA 8-10 M2/LT., FINEZA DE MOLIDO (HEGMAN) 3-7 UH.)  EN CADENAS DE DESPLANTE, A UNA CARA, TRABAJO TERMINADO, A DOS MANOS, INCLUYE: MATERIALES MENORES Y DE CONSUMO, PREPARACION DE LA SUPERFICIE, SELLADO DE LA SUPERFICIE, HERRAMIENTAS, LIMPIEZA, MANO DE OBRA Y  ACARREOS DE MATERIALES AL SITIO DE SU UTILIZACION.","ML ","140.6600",0,"CERO PESOS 00/100 M.N.",0,364908]
[393022,"PINTURA VINIL-ACRÍLICA A BASE DE AGUA ACABADO SEMIMATE  LAVABLE, PARA INTERIORES Y EXTERIORES QUE NO DESPRENDA VAPORES TÓXICOS NI OLORES DESAGRADABLES, CON LAS SIGUIENTES CARACTERÍSTICAS ( SÓLIDOS POR PESO 46-52%, SÓLIDOS POR VOLUMEN 30-36%, VISCOSIDAD DE 100-130 UK A 25°C, DENSIDAD > O = 1.2 TON/M3., LAVABILIDAD > O = 4,000 CICLOS, TIEMPO DE SECADO AL TACTO, 30-40 MIN., TIEMPO DE SECADO DURO < O = 8 HRS., CICLO DE CURADO DE 7 DIAS, PH 6-8, RENDIMIENTO EN SUP. LISA 8-10 M2/LT., FINEZA DE MOLIDO (HEGMAN) 3-7 UH.)  EN MUROS APLANADOS DE MEZCLA APALILLADO O PULIDO, TRABAJO TERMINADO, A DOS MANOS, INCLUYE: MATERIALES MENORES Y DE CONSUMO, ANDAMIOS, PREPARACION DE LA SUPERFICIE, SELLADO DE LA SUPERFICIE, HERRAMIENTAS, LIMPIEZA, MANO DE OBRA Y  ACARREOS DE MATERIALES AL SITIO DE SU UTILIZACIÓN.","M2 ","180.5500",0,"CERO PESOS 00/100 M.N.",0,364910]
[393052,"PINTURA VINIL-ACRÍLICA A BASE DE AGUA ACABADO SEMIMATE  LAVABLE, PARA INTERIORES Y EXTERIORES QUE NO DESPRENDA VAPORES TÓXICOS NI OLORES DESAGRADABLES, CON LAS SIGUIENTES CARACTERÍSTICAS ( SÓLIDOS POR PESO 46-52%, SÓLIDOS POR VOLUMEN 30-36%, VISCOSIDAD DE 100-130 UK A 25°C, DENSIDAD > O = 1.2 TON/M3., LAVABILIDAD > O = 4,000 CICLOS, TIEMPO DE SECADO AL TACTO, 30-40 MIN., TIEMPO DE SECADO DURO < O = 8 HRS., CICLO DE CURADO DE 7 DIAS, PH 6-8, RENDIMIENTO EN SUP. LISA 8-10 M2/LT., FINEZA DE MOLIDO (HEGMAN) 3-7 UH.)  EN LOSAS Y ELEMENTOS DE CONCRETO, TRABAJO TERMINADO, A DOS MANOS, INCLUYE: MATERIALES MENORES Y DE CONSUMO, ANDAMIOS, PREPARACION DE LA SUPERFICIE DE CONCRETO, SELLADO DE LA SUPERFICIE, HERRAMIENTAS, LIMPIEZA, MANO DE OBRA Y  EQUIPO DE SEGURIDAD. A CUALQUIER ALTURA.","M2 ","426.3500",0,"CERO PESOS 00/100 M.N.",0,364913]
[393142,"PINTURA DE ESMALTE ALQUIDALICO ANTICORROSIVO, ACABADO BRILLANTE, PARA INTERIORES Y EXTERIORES QUE NO DESPRENDA VAPORES TÓXICOS NI OLORES DESAGRADABLES, CON LAS SIGUIENTES CARACTERÍSTICAS ( SÓLIDOS POR PESO 49-60%, SÓLIDOS POR VOLUMEN 40-46%, VISCOSIDAD DE 110-160 UK A 25°C, DENSIDAD 0.9-1.2 TON/M3., BRILLO A 60°C, 90%, TIEMPO DE SECADO AL TACTO, < O = 6 HRS., TIEMPO DE SECADO DURO < O = 24 HRS., ADHERENCIA 100%, RENDIMIENTO EN SUP. LISA 8-10 M2/LT., DILUCIÓN MÁXIMA (AGUARRÁS, THINER), 15 %,  EN HERRERIA ABIERTA DE PERFILES ESTRUCTURALES (PROTECCIONES), MEDIDA POR UN SOLO LADO, TRABAJO TERMINADO, A DOS MANOS, INCLUYE: MATERIALES MENORES Y DE CONSUMO, ANDAMIOS, PREPARACION DE LA SUPERFICIE, HERRAMIENTAS, LIMPIEZA, MANO DE OBRA Y  EQUIPO DE SEGURIDAD. A CUALQUIER NIVEL. (LA PINTURA ES POR AMBOS LADOS DE LA HERRERIA, PERO PARA SU PAGO ES MEDIDA SOLO POR 1 SOLO LADO).","M2 ","39.7900",0,"CERO PESOS 00/100 M.N.",0,364915]
[393525,"FABRICACION, SUMINISTRO E INSTALACION DE ROTULO DE IDENTIFICACION EN PUERTAS DE INGRESO A (SANITARIOS, DIRECCIONES, AULAS, ANEXOS, ETC.)  CON MEDIDAS GENERALES DE 40 X 20 CM., FABRICADOS A BASE DE ACRILICO SOLIDO DE 3 MM. DE ESPESOR, COLOR CRISTALINO, FORRADO CON VINIL ADHERIBLE OPACO, CON IMAGEN, TEXTO IMPRESO Y CODIGO BRAILLE AL MARGEN INFERIOR IZQUIERDO, INCLUYE: TRAZO, DISEÑO, MATERIALES, MARGEN IMPRESO DE 1 CM DE ANCHO,  ELEMENTOS DE FIJACION,  EQUIPO, HERRAMIENTA Y MANO DE OBRA. EN CUALQUIER NIVEL.","PZA","4.0000",0,"CERO PESOS 00/100 M.N.",0,364917]
["D.10(396)","LIMPIEZA                                          ",null,null,null,null,{"$f":"TEXT(SUM(G129:G133), \"$ #,##0.00 ;\")","v":"$ 0.00 "}]
[396012,"LIMPIEZA DE PISOS DE CONCRETO CON AGUA Y ACIDO MURIATICO AL 10%.","M2 ","40.4200",0,"CERO PESOS 00/100 M.N.",0,364918]
[396022,"LIMPIEZA EN PISO DE CERAMICA, CON AGUA Y JABON.","M2 ","148.4000",0,"CERO PESOS 00/100 M.N.",0,364919]
[396032,"LIMPIEZA DE RECUBRIMIENTOS VIDRIADOS EN MUROS, CON JABON, AGUA Y ACIDO MURIATICO AL 10 %.","M2 ","92.2500",0,"CERO PESOS 00/100 M.N.",0,364920]
[396042,"LIMPIEZA DE VIDRIOS CON AGUA Y JABON, 2 CARAS.","M2 ","39.7900",0,"CERO PESOS 00/100 M.N.",0,364921]
[396222,"LIMPIEZA DE MUEBLES DE BAÑO, CON AGUA Y JABON.","PZA","17.0000",0,"CERO PESOS 00/100 M.N.",0,364922]
["D.11(410)","CANCELERIA, HERRERIA, ALUMINIO, VIDRIOS Y CHAPAS  ",null,null,null,null,{"$f":"TEXT(SUM(G135:G142), \"$ #,##0.00 ;\")","v":"$ 0.00 "}]
[412041,"FABRICACION, SUMINISTRO Y COLOCACION DE PROTECCIONES PARA VENTANERIA A BASE DE HERRERIA ESTRUCTURAL DE ACERO, ELABORADA CON UN PERFIL PERIMETRAL DE ANGULO DE 1 1/2\" X 1 1/2\" X 3/16\",  HORIZONTALES DE REDONDO SOLIDO LISO DE 1/2\" SEPARADOS  DE C. A C. 11.5 CM. PROMEDIO Y REFUERZOS VERTICALES DE SOLERA DE 3/16\" X 1 1/4\" COLOCADOS A @ 73.5 CM. PROMEDIO, CON PERFORACIONES PARA INSERCION DE REDONDOS. ANCLADA A ESTRUCTURA (CONSTRUCCION) A BASE DE TORNILLO CON BARRENANCLA Y/O SOLDADURA,  INCLUYE: TRAZO, CORTES, SOLDADURA, NIVELACION, PLAMEO, PERFORACIONES, PINTURA DE TALLER,  AJUSTES Y DETALLES REALIZADOS EN OBRA DE ACUERDO A LO CONSTRUIDO,  ACARREOS, LIMPIEZA, MATERIALES, DESPERDICIOS, HERRAMIENTAS, EQUIPOS, MANO DE OBRA CALIFICADA Y ACARREO DE MATERIALES AL SITIO DE SU COLOCACION. EN CUALQUIER NIVEL.","M2 ","39.7900",0,"CERO PESOS 00/100 M.N.",0,364923]
[420022,"SUMINISTRO, HABILITADO Y COLOCACION DE CANCELERIA FABRICADA  EN ALUMINIO ANODIZADO NATURAL CON PERFILES COMERCIALES DE 2\" X 1.25\",  MCA. CUPRUM ,  LINEA PANORAMA O SIMILAR, INCLUYE: TRAZO, CORTES, AJUSTES, MATERIALES, CORREDERAS, JALADERAS, OPERADORES, REPISON, SELLADO PERIMETRAL, SILICON, VINIL, HERRAJES, ELEMENTOS DE FIJACION, MATERIALES MENORES Y DE CONSUMO, DESPERDICIOS, HERRAMIENTAS, MANO DE OBRA ESPECIALIZADA, LIMPIEZA, FLETES, EQUIPO Y ACARREO DE MATERIALES AL SITIO DE SU COLOCACION, A CUALQUIER NIVEL.","M2 ","39.7900",0,"CERO PESOS 00/100 M.N.",0,364924]
[422020,"SUMINISTRO Y COLOCACION DE PUERTA PREFABRICADA, CON MEDIDAS GENERALES DE 1.20 X 2.10 MTS.,  MCA. PORCELTECH O SIMILAR EN GARANTIA Y CALIDAD. MOD. BETA, TIPO TAMBOR DE 36 MM. DE ESPESOR, FABRICADA CON BASTIDOR DE PERFIL TUBULAR  GALVANIZADO DE 1 1/4\" , NUCLEO RELLENO CON PANEL HONEY COMB DE 1 3/8\" DE ESPESOR Y DOBLE CARA (INTERIOR-EXTERIOR) DE  LAMINA DE ACERO PORCELANIZADO CAL. 24,  EN COLOR INDICADO POR LA SUPERVISION Y CUBRECANTOS DE ALUMINIO ANODIZADO NATURAL , MARCO Y ANTEPECHO DE HERRERIA TUBULAR DE PERFILES COMERCIALES DE 3\" X 1 1/2\" CAL 14., TOPE DE ANGULO DE 3/4\" X 1/8\", INCLUYE: MARCO, HERRAJES, BISAGRAS, NIVELACION, PLOMEO, ELEMENTOS DE FIJACION, MATERIALES MENORES Y DE CONSUMO, SELLADO PERIMETRAL, HERRAMIENTAS, LIMPIZA, MANO DE OBRA, FLETES Y ACARREOS DE MATERIALES AL SITIO DE SU COLOCACION, EN CUALQUIER NIVEL.","PZA","4.0000",0,"CERO PESOS 00/100 M.N.",0,364925]
[424094,"SUMINISTRO Y COLOCACION DE CERRADURA TIPO EUROPEO PARA PUERTA EXTERIOR, MCA. JAKO, MOD. KIT9001ENT, FABRICADA EN ACERO INOXIDABLE CON ACABADO SATINADO, DOBLE MANIJA DE PERFIL TUBULAR REDONDO Y CILINDRO LLAVE-MARIPOSA, INCLUYE: TRAZO, TALADROS, ELEMENTOS DE FIJACION, HERRAMIENTAS, CILINDRO, CHAPETÓN, LLAVES, LIMPIEZA,  MANO DE OBRA Y  ACARREO DE MATERIAL AL SITIO DE SU UTILIZACION.","PZA","4.0000",0,"CERO PESOS 00/100 M.N.",0,364926]
[424322,"SUMINISTRO Y COLOCACION DE TOPES DE PISO PARA PUERTA. INC.: ACARREO DE MATERIAL AL SITIO DE SU UTILIZACION, A CUALQUIER NIVEL.","PZA","4.0000",0,"CERO PESOS 00/100 M.N.",0,364927]
[426010,"SUMINISTRO Y COLOCACION DE CRISTAL FLOTADO DE 6 MM. DE ESPESOR,  ASENTADO CON SILICON, INCLUYE: CORTES, DESPERDICIOS Y ACARREO DE MATERIALES AL SITIO DE SU UTILIZACION A CUALQUIER NIVEL.","M2 ","39.7900",0,"CERO PESOS 00/100 M.N.",0,364928]
[426525,"SUMINISTRO Y COLOCACION DE ESPEJO DE CRISTAL FLOTADO DE 6 MM. CON MARCO DE ALUMINIO ANODIZADO NATURAL DE 1 1/2\", INCLUYE: MATERIALES MENORES Y DE CONSUMO,  ELEMENTOS DE FIJACION, MARCO DE ALUMINIO, VINILO, PIJAS, HERRAMIENTAS, LIMPIEZA Y MANO DE OBRA ESPECIALIZADA.","M2 ","3.2500",0,"CERO PESOS 00/100 M.N.",0,364929]
[907361,"SUMINISTRO Y COLOCACION DE PUERTAS Y/O  MAMPARAS MCA.  MODUMEX, LINEA LEEDER,  MODELO ESTANDAR, FABRICADAS CON CAPAS DE FIBRA CELULOSA, PAPEL DECORATIVO Y RESINAS,  BAJO UN PROCESO DE LAMINADO PLASTICO DE ALTA PRESION, CON UN ESPESOR TOTAL DE 12.7 MM. , CON ACABADO ANTI GRAFFITI,  EN COLOR INDICADO EN OBRA POR LA SUPERVISION,  INCLUYE: HERRAJES, PASADORES CON AVISO DE VACANTE Y OCUPADO, BISAGRAS, TOPES, JALADERAS, SOPORTES INFERIORES PARA PILASTRA REDONDOS DE ACERO INOXIDABLE CAL. 12 Y CAPUCHON DE NYLON,  DESPERDICIOS, AJUSTES,  MATERIALES DE FIJACION, MANO DE OBRA ESPECIALIZADA, HERRAMIENTAS, MANO DE OBRA, LIMPIEZA Y ACARREO DE MATERIALES AL SITIO DE SU UTILIZACION. (AREA EFECTIVA DE LA MAMPARA)","M2 ","36.9500",0,"CERO PESOS 00/100 M.N.",0,364930]
["D.12(510)","INSTALACION ELECTRICA EN EDIFICIO                 ",null,null,null,null,{"$f":"TEXT(SUM(G144:G151), \"$ #,##0.00 ;\")","v":"$ 0.00 "}]
[514034,"SALIDA ELECTRICA DE CENTRO AISLADA OCULTA, CON TUBERIA Y CONEXIONES CONDUIT DE PVC. PESADO  DE AJUSTE DE 13 Y 19 MM. DE DIAMETRO, CABLE VINANEL THW-LS 600 V. A 75° C, 90° C, MARCA CONDUCTORES MONTERREY, (VIAKON-PROTOCOLIZADO), CABLE VINANEL 21 THW-LS 600 V. A 75° C, 90° C, MARCA CONDUMEX (CONDUMEX PROTOCOLIZADO).  CALIBRE 12 EN FASES Y 12 EN TIERRA FISICA, CAJAS DE REGISTRO  CUADRADAS, CHALUPAS Y TAPAS DE  PVC REFORZADO., INCLUYE: TRAZO, RANURAS, MATERIALES MENORES, HERRAMIENTA, MANO DE OBRA ESPECIALIZADA , CONEXIONES, LIMPIEZA DEL AREA DE TRABAJO, PRUEBAS, DESPERDICIOS Y ACARREO DEL MATERIAL AL SITIO DE SU COLOCACION, EN CUALQUIER NIVEL.","SAL","21.0000",0,"CERO PESOS 00/100 M.N.",0,364932]
[518071,"SALIDA ELECTRICA PARA CONTACTO MONOFASICO  DUPLEX POLARIZADO, OCULTA, CON TUBERIA Y CONEXIONES CONDUIT DE PVC. PESADO DE 13 Y 19 MM. DE DIAMETRO,  CABLE VINANEL THW-LS 600 V. A 75° C, 90° C, MARCA CONDUCTORES MONTERREY, (VIAKON-PROTOCOLIZADO), CABLE VINANEL 21 THW-LS 600 V. A 75° C, 90° C, MARCA CONDUMEX (CONDUMEX PROTOCOLIZADO)., CAL.  12  EN FASES Y CAL. 12 PARA TIERRA FISICA, CAJAS DE REGISTRO  CUADRADAS, CHALUPAS Y TAPAS DE PVC REFORZADO, CONTACTO QUINZIÑO MX, TAPA DE ALUMINIO, INCLUYE: TRAZO, RANURAS, CONEXION A TIERRA, MATERIALES MENORES, PRUEBAS, DESPERDICIOS, LIMPIEZAS, HERRAMIENTAS, MANO DE OBRA, Y ACARREO DEL MATERIAL AL SITIO DE SU COLOCACION, A CUALQUIER NIVEL.","SAL","10.0000",0,"CERO PESOS 00/100 M.N.",0,364933]
[522033,"SALIDA ELECTRICA PARA  APAGADOR SENCILLO, OCULTA, CON TUBERIA Y CONEXIONES CONDUIT DE PVC TIPO PESADO DE 13 Y 19 MM. DE DIAMETRO, CABLE VINANEL THW-LS 600 V. A 75° C, 90° C, MARCA CONDUCTORES MONTERREY, (VIAKON-PROTOCOLIZADO), CABLE VINANEL 21 THW-LS 600 V. A 75° C, 90° C, MARCA CONDUMEX (CONDUMEX PROTOCOLIZADO). CALIBRE 12, CAJAS CUADRADAS, CHALUPAS Y TAPAS DE PVC, APAGADOR QUINZIÑO, TAPA DE ALUMINIO, INCLUYE: RANURAS, MATERIALES MENORES, PRUEBAS, DESPERDICIOS Y ACARREO DEL MATERIAL AL SITIO DE SU COLOCACION, A CUALQUIER NIVEL.","SAL","6.0000",0,"CERO PESOS 00/100 M.N.",0,364934]
[542058,"SUMINISTRO Y COLOCACION DE CENTRO DE CARGA TRIFASICO, MARCA SQUARE- D TIPO QO-312-L-125G, 12 POLOS, 125 A. CON ZAPATAS, INCLUYE: CONEXIONES, MATERIALES MENORES Y DE CONSUMO, PRUEBAS, FLETES, HERRAMIENTAS, IDENTIFICACION DE CIRCUITOS, LIMPIEZA YMANO DE OBRA CALIFICADA.","PZA","1.0000",0,"CERO PESOS 00/100 M.N.",0,364935]
[543012,"SUMINISTRO Y COLOCACION DE INTERRUPTOR TERMOMAGNETICO DERIVADO CON 1 POLOS, DE 15-60 AMPERES, MCA. SQUARE D, CAT. QO. INCLUYE: PRUEBAS, MATERIALES MENORES, HERRAMIENTAS, MANO DE OBRA ESPECIALIZADA  Y ACARREO DE MATERIALES AL SITIO DE SU COLOCACION.","PZA","6.0000",0,"CERO PESOS 00/100 M.N.",0,364936]
[550221,"SUMINISTRO Y COLOCACION DE LUMINARIA HERMETICO DE SOBREPONER DE 2 X 16 WATTS, MCA. NOVALUX O SIMILAR, MOD. PISCIS, CAT. NVL-PIS-216-LED-P, EN GABINETE DE 1.27 X 0.17 MTS. FABRICADO EN RESINA POLIESTER Y FIBRA DE VIDRIO CON ACABADO A BASE DE PINTURA EN POLVO DE POLIESTER, APLICADA ELECTROSTATICAMENTE Y TERMOENDURECIDA, DIFUSOR DE ACRILICO DE ALTO IMPACTO TRANSPARENTE TERMOFORMADO, CON UNA REFLECTANCIA MINIMA DE 93%, IP-65 DISEÑADA A PRUEBA DE POLVO, VAPORES Y AGUA, PARA OPERAR CON DOS LAMPARA LED LINEAL T8, 16 WATTS CADA UNA, MULTIVOLTAJE 120-277 VOLTS , TEMPERATURA DE COLOR 4000°K, IRC>80,  VIDA UTIL DE 40,000 HRS., 2350 LUMENES TOTALES COMO MINIMO, DRIVER INTEGRADO , LA LUMINARIA (COMPLETA) DEBERA CUMPLIR CON LA NORMA ANCE, INCLUYE: MATERIALES DE FIJACION, LAMPARAS, PRUEBAS, COPIA DE CERTIFICACION ANCE ANEXA EN ELTRAMITE DE LA ESTIMACION, NIVELACION, MATERIALES MENORES Y DE CONSUMO, CONEXIONES, DESPERDICIOS, HERRAMIENTAS, ANDAMIOS, MANO DE OBRA, MATERIALES DE FIJACION, LIMPIEZA DEL AREA DE TRABAJO, Y ACARREO DE MATERIALES AL SITIO DE SU COLOCACION. A CUALQUIER ALTURA.","PZA","9.0000",0,"CERO PESOS 00/100 M.N.",0,364937]
[552022,"SUMINISTRO E INSTALACION DE FOTOCELDA CON BASE DE 1000 WATTS. 220 VOLTS.  INC.: MATERIALES MENORES, PRUEBAS Y ACARREO DE MATERIALES AL SITIO DE SU COLOCACION.","PZA","1.0000",0,"CERO PESOS 00/100 M.N.",0,364938]
[905630,"SUMINISTRO E INSTALACION DE LUMINARIO DE SOBREPONER MCA. HIGHLUMEN MOD. C-SBV20-S43TLC20-C, NOVALUX MOD. NOEII314.5LEDT8 MVSAPE, O SIMILAR, SISTEMA LED DE 45 WATTS. +- 8%, PARA OPERAR CON TRES TUBOS LED T8 (14-16 WATTS C/U), 4000°K, IRC>80, VIDA UTIL DE 40,000 HRS. 3600 LUMENES TOTALES COMO MINIMO, DRIVER INTEGRADO MULTIVOLTAJE 100-240 VOLTS , EN GABINETE METALICO FABRICADO EN LAMINA DE ACERO ROLADA EN FRIO CAL. 24 MINIMO, CON ACABADO EN POLVO POLIESTER EN APLICACION ELECTROSTÁTICA COLOR BLANCO, DIFUSOR ENVOLVENTE 100% ACRILICO, LA LUMINARIA (COMPLETA) DEBERA CUMPLIR CON LA NORMA ANCE, INCLUYE: ELEMENTOS DE FIJACION, CONEXION, MATERIALES MENORES Y DE CONSUMO, GARANTIAS, COPIA DE CERTIFICACION ANCE ANEXA EN ELTRAMITE DE LA ESTIMACION, HERRAMIENTAS, ANDAMIOS, MANO DE OBRA, PRUEBAS, LIMPIEZA Y ACARREOS.","PZA","12.0000",0,"CERO PESOS 00/100 M.N.",0,364939]
["D.13(530)","EQUIPOS E INSTALACIONES DE REDES DE VOZ Y DATOS.  ",null,null,null,null,{"$f":"TEXT(SUM(G153:G153), \"$ #,##0.00 ;\")","v":"$ 0.00 "}]
[524665,"SALIDA PARA EL SISTEMA DE RED DE VOZ Y/O DATOS, PARA SERVICIO A EQUIPOS DE COMPUTO EN LABORATORIO Y/O TALLER, FORMADA CON TUBERIA CONDUIT DE PVC TIPO PESADO DE 19, 25 Y 32 MM DE DIAM, CAJA REGISTRO GALVANIZADA DE 120 X 120 MM CON TAPA REALZADA EN SALIDAS DE MURO Y/O LOSA, GUIADAS CON ALAMBRE GALVANIZADO CAL NO. 14,  INCLUYE: TRAZO, RANURAS, MATERIALES MENORES Y DE CONSUMO, ELEMENTOS DE  FIJACION, HERRAMIENTAS, PRUEBAS, MANO DE OBRA Y ACARREO DE MATERIALES. (LONGITUD TOMADA DEL REGISTRO TELEFONICO AL SERVICIO-REGISTRO).","SAL","10.0000",0,"CERO PESOS 00/100 M.N.",0,364940]
["D.14(564)","INSTALACION HIDRAULICA, SANITARIA Y GAS EN EDIF.  ",null,null,null,null,{"$f":"TEXT(SUM(G155:G157), \"$ #,##0.00 ;\")","v":"$ 0.00 "}]
[570614,"SALIDA HIDRAULICA DE AGUA FRIA Y/O CALIENTE, PARA ALIMENTACION A MUEBLE SANITARIO, CONSISTENTE EN TUBERIA Y CONEXIONES DE CPVC DE 1/2\" A 2\" DE DIAMETRO,  INCLUYE: TRAZO, RANURAS, CAMARAS CONTRA GOLPE DE ARIETE, CONEXIONES, ( COPLES, CODOS, TAPONES, TEES, YEES, REDUCCIONES, ETC),  VALVULAS, TUERCAS UNION EN CUADROS DE VALVULAS, MATERIALES MENORES Y DE CONSUMO, PEGAMENTOS, ELEMENTOS DE FIJACION, DESPERDICIOS,  HERRAMIENTAS, LIMPIEZA, MANO DE OBRA, PRUEBAS HIDROSTATICAS, FLETES Y ACARREO DE LOS MATERIALES AL SITIO DE SU INSTALACION. (EN CUALQUIER NIVEL)","SAL","21.0000",0,"CERO PESOS 00/100 M.N.",0,364941]
[571102,"SALIDA SANITARIA A MUEBLE, CONSISTENTE EN TUBERIA Y CONEXIONES DE PVC DE 2\" Y 4\" DE DIAMETRO, INCLUYE: DESPERDICIO DE TUBERIA, LINEA DE VENTILACION (DESFOGUE),  COPLES, CODOS, TEES, YEES, REDUCCIONES, REGISTRO SANITARIO, MATERIALES MENORES, FLETES Y ACARREO DE LOS MATERIALES AL SITIO DE SU INSTALACION Y PRUEBAS.\n","SAL","30.0000",0,"CERO PESOS 00/100 M.N.",0,364942]
[592012,"SUMINISTRO Y COLOCACION DE CESPOL BOTE DE P.V.C. CON REJILLA CROMADA. INCLUYE: MATERIALES MENORES Y DE CONSUMO, HERRAMIENTAS, DESPERDICIOS, PRUEBAS, MANO DE OBRA Y ACARREO DE MATERIALES AL SITIO DE SU COLOCACION.","PZA","11.0000",0,"CERO PESOS 00/100 M.N.",0,364943]
["D.15(590)","MUEBLES DE BAÑO Y COCINA                          ",null,null,null,null,{"$f":"TEXT(SUM(G159:G171), \"$ #,##0.00 ;\")","v":"$ 0.00 "}]
[382037,"FABRICACION, SUMINISTRO E INSTALACION DE ENCIMERA O MESETA CON LAVABO INTEGRADO ELABORADO A BASE DE PLACA SOLIDA DE MINERALES Y ACRILICOS POLIMERICOS PUROS (CORIAN) DE ½\" DE ESPESOR, CON DIMENSIONES GENERALES APROXIMADAS DE 230 X 55 X 20 CM., CON CANAL DE ESCURRIMIENTOS REGISTRABLE MEDIANTE REJILLA REMOVIBLE DE ACERO INOXIDABLE., EN COLOR INDICADO POR LA SUPERVISION, AJUSTES EN OBRA, INCLUYE: TRAZO, CORTES, AJUSTES, ADHESIVO PARA UNION Y SELLADO DE JUNTAS, SOPORTERIA A BASE DE MENSULAS DE PERFILES ESTRUCTURALES (PTR), DOS CONTRA CANASTAS DE ACERO INOXIDABLE MCA. URREA FIG. 3812, DOS CESPOL DE LATON CROMADO MARCA URREA FIG. 206SC, TALADROS PARA LLAVES Y DESAGUES, EMPAQUES CHUPON DE 2\", DESPERDICIOS, NIVELACION, REMATES, ZOCLO 10 CMS, FALDON 20 CMS., HERRAMIENTAS, MANO DE OBRA, LIMPIEZA Y ACARREO DE MATERIAL AL SITIO DE SU UTILIZACION, EN CUALQUIER NIVEL.","PZA","2.0000",0,"CERO PESOS 00/100 M.N.",0,364944]
[385302,"SUMINISTRO Y COLOCACION DE BARRA DE APOYO PARA DISCAPACITADOS DE ACERO INOXIDABLE PARA MINGITORIO (MULETAS) MOD. 7384-0 (1041) DE SANILOCK O SIMILAR CON CHAPETON, FIJADO A MURO. INCLUYE: ACCESORIOS Y MATERIALES DE FIJACION.","PZA","1.0000",0,"CERO PESOS 00/100 M.N.",0,364945]
[385306,"SUMINISTRO E INSTALACIÓN DE BARRA RECTA DE APOYO VERTICAL PARA DISCAPACITADOS FABRICADA CON PERFIL TUBULAR REDONDO, DE ACERO INOXIDABLE CAL.18, TIPO 304, ACABADO PULIDO, DE 1 1/4 (3.8 CM) DE DIÁMETRO Y 70 CM DE LONGITUD, MCA. SANILOCK, HELVEX O SIMILAR, INCLUYE: CHAPETONES, ACCESORIOS Y MATERIALES DE FIJACION, HERRAMIENTAS, MANO DE OBRA, EQUIPO, NIVELACIÓN, LIMPIEZA DEL ÁREA DE TRABAJO Y ACARREOS.","PZA","2.0000",0,"CERO PESOS 00/100 M.N.",0,364946]
[385312,"SUMINISTRO Y COLOCACION DE BARRA DE APOYO PARA DISCAPACITADOS DE ACERO INOXIDABLE PARA W.C. MOD. 7386-0 (1045) DE SANILOCK O SIMILAR CON CHAPETON, FIJADO A MURO. INCLUYE: ACCESORIOS Y MATERIALES DE FIJACION.","PZA","2.0000",0,"CERO PESOS 00/100 M.N.",0,364947]
[590030,"SUMINISTRO E INSTALACION DE INODORO PARA FLUXOMETRO, MODELO OLIMPICO FLUX, COLOR BLANCO, MARCA AMERICAN STANDARD, INCLUYE: ASIENTO DE PLASTICO, MATERIALES MENORES Y DE CONSUMO, ELEMENTOS DE FIJACION, LIMPIEZA, CUELLO DE CERA CON GUIA, PRUEBAS, HERRAMIENTAS, MANO DE OBRA Y ACARREO DE MATERIALES AL SITIO DE SU COLOCACION.","PZA","10.0000",0,"CERO PESOS 00/100 M.N.",0,364948]
[590163,"SUMINISTRO Y COLOCACION DE MINGITORIO PARA FLUXOMETRO, COLOR BLANCO, MCA. AMERICAN STANDARD, MODELO NIAGARA, O SIMILAR CON CESPOL INTEGRAL, INCLUYE: MATERIALES MENORES, HERRAMIENTAS, ELEMENTOS DE FIJACION, NIVELACION, PRUEBAS, MANO DE OBRA Y ACARREO DE MATERIALES AL SITIO DE SU COLOCACION.","PZA","3.0000",0,"CERO PESOS 00/100 M.N.",0,364949]
[590356,"SUMINISTRO Y COLOCACION DE VERTEDERO DE ACERO INOXIDABLE CAL. 18, TIPO 304 18/10, DE 40 X 40 X 26 M.,  INCLUYE: LLAVE DE CHORRO CROMADA FIG. 18-L, CHAPETON CROMADO, CONTRA CANASTA MCA. URREA FIG. 3801, MATERIALES MENORES Y DE CONSUMO, NIVELACION, SELLADO PERIMETRAL, PRUEBAS, HERRAMIENTAS, LIMPIEZA, MANO DE OBRA Y ACARREO AL SITIO DE SU COLOCACION.","PZA","2.0000",0,"CERO PESOS 00/100 M.N.",0,364950]
[591556,"SUMINISTRO Y COLOCACION DE FLUXOMETRO PARA W.C. DE PALANCA, MARCA HELVEX MODELO 110/32 O SIMILAR, INCLUYE: MATERIALES MENORES, PRUEBAS Y ACARREO DE MATERIALES AL SITIO DE SU COLOCACION, A CUALQUIER NIVEL.","PZA","10.0000",0,"CERO PESOS 00/100 M.N.",0,364951]
[591566,"SUMINISTRO Y COLOCACION DE FLUXOMETRO PARA MINGITORIO DE MANIJA MARCA HELVEX MODELO 185/19 O SIMILAR, INCLUYE: MATERIALES MENORES, PRUEBAS Y ACARREO DE MATERIALES AL SITIO DE SU COLOCACION, A CUALQUIER NIVEL.","PZA","3.0000",0,"CERO PESOS 00/100 M.N.",0,364952]
[919148,"SUMINISTRO Y COLOCACION DE DISPENSADOR DE TOALLAS EN ROLLO, MARCA JOFEL, COLOR TRANSPARENTE, CLAVE PT61010, INCLUYE: ACCESORIOS DE FIJACION, MATERIALES MENORES, MANO DE OBRA Y HERRAMIENTA.\n","PZA","2.0000",0,"CERO PESOS 00/100 M.N.",0,364953]
[964302,"SUMINISTRO Y COLOCACION DE JABONERA DE ACERO INOXIDABLE MOD. AC54000 DE 1.00 LT. MARCA JOFEL, INCLUYE: ACCESORIOS DE FIJACION, MATERIALES MENORES, MANO DE OBRA Y HERRAMIENTA","PZA","4.0000",0,"CERO PESOS 00/100 M.N.",0,364954]
[970311,"SUMINISTRO Y COLOCACION DE DESPACHADOR HIGIENICO SANITARIO MARCA JOFEL MODELO AZUR MAXI. MOD. PH52001, INCLUYE: ROLLO DE PAPEL SANITARIO, MANO DE OBRA, HERRAMIENTA, MATERIALES DE FIJACION Y ACARREOS DENTRO Y FUERA DE LA OBRA.","PZA","10.0000",0,"CERO PESOS 00/100 M.N.",0,364955]
[976917,"SUMINISTRO Y COLOCACION DE LLAVE INDIVIDUAL ECONOMIZADORA DE CIERRE AUTOMATICO (TEMPORIZADORA)   CROMADA PARA LAVABO Y/U OVALIN, MCA. HELVEX, FIG. TV-122, INCLUYE: MATERIALES MENORES Y DE CONSUMO, MANGUERA FLEXIBLE COFLEX, LLAVE ANGULAR MCA. URREA FIG. 401, HERRAMIENTA, ACCESORIOS DE CONEXION, PRUEBAS, LIMPIEZA Y MANO DE OBRA.","PZA","6.0000",0,"CERO PESOS 00/100 M.N.",0,364956]
["EDFS","EDIFICIOS",null,null,null,null,{"$f":"TEXT(SUM(G173 + G176), \"$ #,##0.00 ;\")","v":"$ 0.00 "}]
["EDFS.01(393)","PINTURA                                           ",null,null,null,null,{"$f":"TEXT(SUM(G174:G175), \"$ #,##0.00 ;\")","v":"$ 0.00 "}]
[393022,"PINTURA VINIL-ACRÍLICA A BASE DE AGUA ACABADO SEMIMATE  LAVABLE, PARA INTERIORES Y EXTERIORES QUE NO DESPRENDA VAPORES TÓXICOS NI OLORES DESAGRADABLES, CON LAS SIGUIENTES CARACTERÍSTICAS ( SÓLIDOS POR PESO 46-52%, SÓLIDOS POR VOLUMEN 30-36%, VISCOSIDAD DE 100-130 UK A 25°C, DENSIDAD > O = 1.2 TON/M3., LAVABILIDAD > O = 4,000 CICLOS, TIEMPO DE SECADO AL TACTO, 30-40 MIN., TIEMPO DE SECADO DURO < O = 8 HRS., CICLO DE CURADO DE 7 DIAS, PH 6-8, RENDIMIENTO EN SUP. LISA 8-10 M2/LT., FINEZA DE MOLIDO (HEGMAN) 3-7 UH.)  EN MUROS APLANADOS DE MEZCLA APALILLADO O PULIDO, TRABAJO TERMINADO, A DOS MANOS, INCLUYE: MATERIALES MENORES Y DE CONSUMO, ANDAMIOS, PREPARACION DE LA SUPERFICIE, SELLADO DE LA SUPERFICIE, HERRAMIENTAS, LIMPIEZA, MANO DE OBRA Y  ACARREOS DE MATERIALES AL SITIO DE SU UTILIZACIÓN.","M2 ","494.0000",0,"CERO PESOS 00/100 M.N.",0,364911]
[393216,"PINTURA DE ESMALTE ALQUIDALICO ANTICORROSIVO, ACABADO BRILLANTE, PARA INTERIORES Y EXTERIORES QUE NO DESPRENDA VAPORES TÓXICOS NI OLORES DESAGRADABLES, CON LAS SIGUIENTES CARACTERÍSTICAS ( SÓLIDOS POR PESO 49-60%, SÓLIDOS POR VOLUMEN 40-46%, VISCOSIDAD DE 110-160 UK A 25°C, DENSIDAD 0.9-1.2 TON/M3., BRILLO A 60°C, 90%, TIEMPO DE SECADO AL TACTO, < O = 6 HRS., TIEMPO DE SECADO DURO < O = 24 HRS., ADHERENCIA 100%, RENDIMIENTO EN SUP. LISA 8-10 M2/LT., DILUCIÓN MÁXIMA (AGUARRÁS, THINER), 15 %,  EN ESTRUCTURA DE CUBIERTA, A BASE DE LARGUEROS DE POLINES MON-TEN, TENSORES Y CONEXIONES, TRABAJO TERMINADO, A DOS MANOS, INCLUYE: MATERIALES MENORES Y DE CONSUMO, ANDAMIOS, PREPARACION DE LA SUPERFICIE, HERRAMIENTAS, LIMPIEZA, MANO DE OBRA Y  EQUIPO DE SEGURIDAD. A CUALQUIER NIVEL. (PROYECCIÓN DE CUBIERTA).","M2 ","602.0000",0,"CERO PESOS 00/100 M.N.",0,364916]
["EDFS.02(510)","INSTALACION ELECTRICA EN EDIFICIO                 ",null,null,null,null,{"$f":"TEXT(SUM(G177:G177), \"$ #,##0.00 ;\")","v":"$ 0.00 "}]
[514011,"SALIDA ELECTRICA DE CENTRO AISLADA, VISIBLE, CON TUBERIA Y CONEXIONES CONDUIT GALVANIZADA P.G., ROSCADA DE 13 Y 19 MM. DE DIAMETRO, CABLE VINANEL THW-LS 600 V. A 75° C, 90° C, MARCA CONDUCTORES MONTERREY, (VIAKON-PROTOCOLIZADO), CABLE VINANEL 21 THW-LS 600 V. A 75° C, 90° C, MARCA CONDUMEX (CONDUMEX PROTOCOLIZADO).  CALIBRE 12, CAJAS CUADRADAS, CHALUPAS Y TAPAS GALVANIZADAS, INCLUYE: TRAZO, MATERIALES MENORES Y DE FIJACION, HERRAMIENTA, MANO DE OBRA ESPECIALIZADA , CONEXIONES, LIMPIEZA DEL AREA DE TRABAJO, PRUEBAS, DESPERDICIOS Y ACARREO DEL MATERIAL AL SITIO DE SU COLOCACION, A CUALQUIER NIVEL.","SAL","15.0000",0,"CERO PESOS 00/100 M.N.",0,364931]
[30,"INGRESO TIPO",null,null,null,null,{"$f":"TEXT(SUM(G179 + G182 + G189 + G200 + G207 + G209 + G213 + G215 + G218 + G220 + G223 + G226), \"$ #,##0.00 ;\")","v":"$ 0.00 "}]
["30.01(140)","DEMOLICIONES, DESMONTAJES Y MECANICA DE SUELOS    ",null,null,null,null,{"$f":"TEXT(SUM(G180:G181), \"$ #,##0.00 ;\")","v":"$ 0.00 "}]
[140250,"DEMOLICION DE MURO DE LADRILLO DE LAMA Y/O BLOCK DE JALCRETO A TEZON,  DE 28 CMS. DE ESPESOR A CUALQUIER ALTURA, INCLUYE:  DEMOLICION DE DALAS, CADENAS Y CASTILLOS,  DEMOLICION DE RECUBRMIENTOS, APLANADOS, AZULEJO,(PROTECCIONES DE PISOS, VIDRIOS, PUERTAS, VENTANAS, LAMPARAS Y DEMAS INSTALACIONES QUE PUDIERAN RESULTAR DAÑADAS EN EL PROCESO DE LA DEMOLICION.) HERRAMIENTAS, EQUIPO DE SEGURIDAD,  ANDAMIOS, MANO DE OBRA, RETIRO Y ACARREO DE MATERIALES DE DESHECHO DENTRO Y FUERA DE LA OBRA ATIRADERO AUTORIZADO Y LIMPIEZA DEL AREA DE LOS TRABAJOS.","PZA","50.0000",0,"CERO PESOS 00/100 M.N.",0,364957]
[140621,"DEMOLICION DE CIMIENTO DE MAMPOSTERIA DE PIEDRA BRAZA ASENTADA CON MORTERO CEM-ARE. INCLUYE: HERRAMIENTA, EQUIPO NECESARIO, MATERIAL DE CONSUMO, MANO DE OBRA, RETIRO Y ACARREO DEL MATERIAL DENTRO Y FUERA DE LA OBRA.\n","M3 ","4.6000",0,"CERO PESOS 00/100 M.N.",0,364960]
["30.02(150)","TRABAJOS PRELIMINARES                             ",null,null,null,null,{"$f":"TEXT(SUM(G183:G188), \"$ #,##0.00 ;\")","v":"$ 0.00 "}]
[150020,"LIMPIEZA DE TERRENO RETIRANDO BASURA Y DESHIERBE FUERA DE LA OBRA. INCLUYE: HERRAMIENTAS, MANO DE OBRA, RECOLECCION, JUNTA Y RETIRO. (PROYECCION DE CUBIERTA).","M2 ","40.5000",0,"CERO PESOS 00/100 M.N.",0,364964]
[150110,"TRAZO Y NIVELACION DE EDIFICIOS ESTABLECIENDO REFERENCIAS DEFINITIVAS, CON TRANSITO Y NIVEL (EQUIPO TOPOGRAFICO), INCLUYE: PERSONAL TECNICO CALIFICADO, ESTACAS, MOJONERAS, LOCALIZACION DE ENTRE EJES, BANCOS DE NIVEL, MATERIALES PARA SEÑALAMIENTO, EQUIPO, HERRAMIENTA Y MANO DE OBRA.","M2 ","40.5000",0,"CERO PESOS 00/100 M.N.",0,364969]
[150210,"DESPALME DE TERRENO NATURAL POR CUALQUIER MEDIO, CON ESPESOR PROMEDIO DE 20 CM. INCLUYE: CARGA Y ACARREO DEL PRODUCTO FUERA DE LA OBRA, MANO DE OBRA, HERRAMIENTA Y EQUIPO. (PROYECCION DE CUBIERTA).","M2 ","40.5000",0,"CERO PESOS 00/100 M.N.",0,364979]
[152204,"EXCAVACION EN CEPAS POR CUALQUIER MEDIO, MATERIAL TIPO \"B\", DE 0 A 2.00 M. DE PROFUNDIDAD, EN SECO, INCLUYE: AFINE DE TALUDES Y FONDO, TRASPALEOS,  MOVIMIENTOS Y ACARREOS DENTRO DE LA OBRA, HERRAMIENTAS Y MANO DE OBRA, MEDIDO EN BANCO.","M3 ","14.6000",0,"CERO PESOS 00/100 M.N.",0,364985]
[152404,"EXCAVACION A CIELO ABIERTO EN CAJON POR CUALQUIER MEDIO, MATERIAL TIPO \"B\", DE 0 A 2.00 M. DE PROFUNDIDAD, EN SECO, INCLUYE: AFINE DE TALUDES Y FONDO, TRAPALEOS,  MOVIMIENTOS Y ACARREOS DENTRO DE LA OBRA, HERRAMIENTAS Y MANO DE OBRA, MEDIDO EN BANCO.","M3 ","16.2000",0,"CERO PESOS 00/100 M.N.",0,364994]
[156002,"CARGA POR CUALQUIER MEDIO Y ACARREO EN CAMION DE MATERIAL DE DESPERDICIO PRODUCTO DE LAS EXCAVACIONES FUERA DE LA OBRA, A LUGAR PERMITIDO POR LAS AUTORIDADES CORRESPONDIENTES, MEDIDO EN BANCO. INCLUYE CARGA,  ACARREO Y DESCARGA A TIRO LIBRE, HERRAMIENTA, EQUIPO, MATERIALES DE CONSUMO Y MANO DE OBRA.","M3 ","30.8000",0,"CERO PESOS 00/100 M.N.",0,364999]
["30.03(160)","CIMENTACION                                       ",null,null,null,null,{"$f":"TEXT(SUM(G190:G199), \"$ #,##0.00 ;\")","v":"$ 0.00 "}]
[160222,"PLANTILLA DE CONCRETO F'C=100 KG/CM2, TMA=3/4\", DE 5.00 CM DE ESPESOR PROMEDIO. INCLUYE: MATERIALES, HERRAMIENTAS, AFINE, NIVELACION, LIMPIEZA, MANO DE OBRA Y ACARREO DE MATERIALES AL SITIO DE SU UTILIZACION.","M2 ","10.0000",0,"CERO PESOS 00/100 M.N.",0,365005]
[170012,"CIMBRA  ACABADO COMUN, EN CIMENTACION, INCLUYE: DESPERDICIO, HABILITADO, CIMBRADO Y DESCIMBRA, NIVELACION, PLOMEO MATERIAL, MANO DE OBRA , LIMPIEZA, HERRAMIENTA, ACARREO DEL MATRIAL DENTRO Y FUERA DE LA OBRA.","M2 ","18.5000",0,"CERO PESOS 00/100 M.N.",0,365027]
[173003,"SUMINISTRO, HABILITADO, ARMADO Y COLOCACION DE ACERO DE REFUERZO FY=4,200 KG/CM2 (G.E.), DE 3/8\" ( #3 ), EN CIMENTACION, INCLUYE: MATERIALES, HABILITADO,  DOBLECES,  SILLETAS, ALAMBRE, GANCHOS, ESCUADRAS, TRASLAPES, DESPERDICIOS HERRAMIENTAS, MANO DE OBRA Y ACARREO DE MATERIALES AL SITIO DE SU COLOCACION.","KG ","147.0000",0,"CERO PESOS 00/100 M.N.",0,365029]
[173004,"SUMINISTRO, HABILITADO, ARMADO Y COLOCACION DE ACERO DE REFUERZO FY=4,200 KG/CM2 (G.E.), DE 1/2\" ( #4 ), EN CIMENTACION, INCLUYE: MATERIALES, HABILITADO,  DOBLECES,  SILLETAS, ALAMBRE, GANCHOS, ESCUADRAS, TRASLAPES, DESPERDICIOS HERRAMIENTAS, MANO DE OBRA Y ACARREO DE MATERIALES AL SITIO DE SU COLOCACION.","KG ","57.0000",0,"CERO PESOS 00/100 M.N.",0,365031]
[176110,"SUMINISTRO Y COLOCACION DE CONCRETO PREMEZCLADO A TIRO DIRECTO F'C=250 KG/CM2, TMA= 3/4\", R.N. EN CIMENTACION. INCLUYE: TENDIDO, RASTREADO, VIBRADO, NIVELACION, HERRAMIENTAS, LIMPIEZA, PRUEBAS,  CURADO CON CURACRETO ROJO,  DESPERDICIO Y MANO DE OBRA.","M3 ","2.6500",0,"CERO PESOS 00/100 M.N.",0,365035]
[180054,"RELLENO EN CEPAS POR CUALQUIER MEDIO, CON MATERIAL DE BANCO, (ARENA LIMOSA) COMPACTADO AL 95% PROCTOR, EN CAPAS DE 15 CM, MEDIDO COMPACTO. INCLUYE:  SUMINISTRO DE AGUA PARA LOGRAR HUMEDAD OPTIMA, DESPERDICIOS, TENDIDO, TRASPALEOS,  EQUIPO, PRUEBAS DE COMPACTACION, AFINE, NIVELACION, HERRAMIENTAS, MANO DE OBRA Y  ACARREO HASTA EL SITIO DE SU COLOCACION.  (VOLUMEN MEDIDO COMPACTADO).","M3 ","5.7000",0,"CERO PESOS 00/100 M.N.",0,365039]
[180061,"RELLENO COMPACTADO CON GRAVA-ARENA, EN CEPAS Y/O CAJON, A BASE DE GRAVA DE 3/4\" DE DIAMETRO Y MATERIAL PRODUCTO DE EXCAVACION, CON UNA PROPORCION DE 50-50 %  A CUALQUIER PROFUNDIDAD, COMPACTADO AL 95% PROCTOR POR CUALQUIER MEDIO, EN CAPAS DE 15 CM. INCLUYE:SUMINISTRO DE AGUA PARA LOGRAR HUMEDAD OPTIMA, MEZCLADO, TENDIDO, TRASPALEOS,  DESPERDICIOS, EQUIPO, PRUEBAS DE COMPACTACION, AFINE, NIVELACION, HERRAMIENTAS, MANO DE OBRA Y  ACARREO HASTA EL SITIO DE SU COLOCACION.  (VOLUMEN MEDIDO COMPACTADO).","M3 ","14.2000",0,"CERO PESOS 00/100 M.N.",0,365043]
[180103,"RELLENO COMPACTADO AL 95% PROCTOR, CON MATERIAL DE BANCO, EN CAPAS DE 15 CM DE ESPESOR, AGREGANDO AGUA PARA LOGRAR SU HUMEDAD OPTIMA, POR CUALQUIER MEDIO, INCLUYE: SUMINISTRO DE AGUA PARA LOGRAR HUMEDAD OPTIMA, TENDIDO, TRASPALEOS,  DESPERDICIOS, EQUIPO, PRUEBAS DE COMPACTACION, AFINE, NIVELACION, HERRAMIENTAS, MANO DE OBRA Y  ACARREO HASTA EL SITIO DE SU COLOCACION.  (VOLUMEN MEDIDO COMPACTADO).","M3 ","14.7500",0,"CERO PESOS 00/100 M.N.",0,365053]
[180206,"RELLENO CON MATERIAL DE BANCO-CEMENTO GRIS, EN PROPORCIÓN DE100 KGS. POR M3 A CUALQUIER PROFUNDIDAD, COMPACTADO AL 90 % PROCTOR EN CAPAS DE 15 CM. INCLUYE: ESCARIFICADO DEL TERRENO, SUMINISTRO DE AGUA PARA LOGRAR HUMEDAD OPTIMA, MEZCLACO, TENDIDO, TRASPALEOS,  DESPERDICIOS, EQUIPO, PRUEBAS DE COMPACTACION, AFINE, NIVELACION, HERRAMIENTAS, MANO DE OBRA Y  ACARREO HASTA EL SITIO DE SU COLOCACION.  (VOLUMEN MEDIDO COMPACTADO).","M3 ","2.0000",0,"CERO PESOS 00/100 M.N.",0,365058]
[182024,"RELLENO POR CUALQUIER MEDIO, CON GRAVA DE 3/4\" A 3\" DE DIAMETRO LIBRE DE FINOS, PARA ELIMINAR REBOTE ELASTICO EN BASE DE LA ZAPATA, ESTRUCTURA DE PISOS Y/O COMO FILTRO, INCLUYE: MATERIALES, ACARREOS, BANDEO, COMPACTACION, TENDIDO, EQUIPO,  NIVELADO, DESPERDICIOS, TRASPALEOS, HERRAMIENTAS Y MANO DE OBRA.","M3 ","3.0000",0,"CERO PESOS 00/100 M.N.",0,365059]
["30.04(200)","ESTRUCTURA                                        ",null,null,null,null,{"$f":"TEXT(SUM(G201:G206), \"$ #,##0.00 ;\")","v":"$ 0.00 "}]
[192048,"SUMINISTRO Y COLOCACION A CUALQUIER NIVEL DE ANCLA Y PLACA DE ASIENTO PARA CONEXION DE ESTRUCTURA METALICA A ESTRUCTURA DE CONCRETO , AHOGADA EN ELEMENTOS DE CONCRETO, FABRICADA A BASE DE UNA PLACA DE ACERO A36, DE 15 CM X 35 CM X 1/2\", DOS ANCLAS DE REDONDO LISO DE 1/2\" SOLDADAS A PLACA CON UN DESARROLLO 60 CMS. APROX. Y EN FORMA DE \"U\" FIJADAS A ACERO DE REFUERZO. INCLUYE: TRAZO, CORTES, DESBASTADO, FIJACION, SOLDADURA, DESPERDICIOS, NIVELACION,  HERRAMIENTAS, LIMPIEZAS Y MANO DE OBRA ESPECIALIZADA.","PZA","4.0000",0,"CERO PESOS 00/100 M.N.",0,365068]
[210112,"CIMBRA DE MADERA, ACABADO APARENTE, EN MUROS Y BARANDAL, INCLUYE: HABILITADO, CHAFLANES, CIMBRA, DESCIMBRA, HERRAMIENTAS, LIMPIEZAS, MANO DE OBRA  Y ACARREO DE MATERIALES AL SITIO DE SU UTILIZACION, A CUALQUIER NIVEL.","M2 ","61.9000",0,"CERO PESOS 00/100 M.N.",0,365069]
[213003,"SUMINISTRO, HABILITADO, ARMADO Y COLOCACION DE ACERO DE REFUERZO FY=4,200 KG/CM2 (G.E.), DE 3/8\" (# 3 ), EN ESTRUCTURA, INCLUYE: MATERIALES, HABILITADO,  DOBLECES,  SILLETAS, ALAMBRE, GANCHOS, ESCUADRAS, TRASLAPES, DESPERDICIOS HERRAMIENTAS, MANO DE OBRA Y ACARREO DE MATERIALES AL SITIO DE SU COLOCACION.","KG ","171.0000",0,"CERO PESOS 00/100 M.N.",0,365072]
[216912,"SUMINISTRO Y COLOCACION DE CONCRETO PREMEZCLADO BOMB,  F'C=250 KG/CM2, T.M.A.= 3/4, R.N., EN MUROS Y BARANDAL, CUALQUIER ALTURA, INCLUYE: MATERIALES, FLETES, MANIOBRAS, BOMBEO, CURADO CON CURACRETO ROJO, VIBRADO, AFINE Y ACABADO REGLEADO,  DESPERDICIO, PRUEBAS DE RESISTENCIA Y MANO DE OBRA, A CUALQUIER NIVEL.","M3 ","4.3500",0,"CERO PESOS 00/100 M.N.",0,365074]
[280090,"SUMINISTRO, HABILITADO Y MONTAJE DE ESTRUCTURA METALICA DE ACERO ASTMA-36 F'Y=2530 KG/CM2, SOLDADOS Y/O ATORNILLADOS, (PERFILES IPR. IPS, CPS, REDONDOS SOLIDO, SOLERAS Y PLACAS, ETC, DIFERENTES DIMENSIONES Y CALIBRES,) PARA COLUMNAS, ARMADURAS, TRABES Y VIGAS, INCLUYE: MATERIALES MENORES Y DE CONSUMO, TRAZO, CORTES, AJUSTES, DESPERDICIOS, ENDEREZADO, BISELADO, DESCALIBRES, BARRENOS, TORQUES, SOLDADURA, UNA PRUEBA RADIOGRAFICA Y/O LIQUIDOS PENETRANTES POR CADA 500 KG. DE ACERO, FLETES, PINTURA ANTICORROSIVA, MANO DE OBRA CALIFICADA, HERRAMIENTA, EQUIPO, FLETES, ELEVACIONES, ACARREOS DE MATERIALES AL SITIO DE SU COLOCACION, ACUALQUIER ALTURA.","KG ","470.0000",0,"CERO PESOS 00/100 M.N.",0,365075]
[285008,"SUMINISTRO, HABILITADO Y MONTAJE DE ESTRUCTURA A BASE DE POLIN-MONTEN EN DIFERENTES PERALTES Y ESPESORES, INCLUYE: MATERIALES MENORES Y DE CONSUMO, TRAZO, CORTES, AJUSTES, DESPERDICIOS, TORNILLERÍA, DESCALIBRES, BARRENOS, SOLDADURA, PRUEBAS RADIOGRAFICAS, PINTURA ANTICORROSIVA, MANO DE OBRA CALIFICADA, HERRAMIENTA, EQUIPO, FLETES, ELEVACIONES, ACARREOS DE MATERIALES AL SITIO DE SU COLOCACION, ACUALQUIER ALTURA. ","KG ","82.0000",0,"CERO PESOS 00/100 M.N.",0,365080]
["30.05(319)","ENTREPISOS, CUBIERTA Y ACABADOS DE AZOTEA         ",null,null,null,null,{"$f":"TEXT(SUM(G208:G208), \"$ #,##0.00 ;\")","v":"$ 0.00 "}]
[326017,"SUMINISTRO Y COLOCACION DE LAMINA ACANALADA TERMOACUSTICA DE PVC, MCA. ULTRALAM, MOD. A-136, HIGH PERFORMANCE DE 3 MM DE ESPESOR, EN COLOR BLANCO,  INCLUYE: ELEMENTOS  DE FIJACION, CORTES, AJUSTES, TRASLAPES, DEPERDICIOS, ANDAMIOS, LIMPIEZA, HERRAMIENTAS, MANO DE OBRA Y ACARREOS AL SITIO DE SU INSTALACION.  A CUALQUIERALTURA.\n","M2 ","26.6100",0,"CERO PESOS 00/100 M.N.",0,365098]
["30.06(372)","PISOS                                             ",null,null,null,null,{"$f":"TEXT(SUM(G210:G212), \"$ #,##0.00 ;\")","v":"$ 0.00 "}]
[373022,"PISO DE CONCRETO F'C=150 KG/CM², T.M.A. 3/4\", DE 0.10 M. DE ESPESOR, COLADO EN CUADROS NO MAYORES DE 3.00 ML POR LADO, INCLUYE: TRAZO, NIVELACION, AFINE Y COMPACTACION DEL TERRENO, AGUA, DESPERDICIOS, ACARREOS, REGLEADO, ACABADO INTEGRAL RAYADO CON BROCHA DE PELO (SIN UTILIZACION DE PASTA), CIMBRA EN FRONTERAS, DESCIMBRA, COLADO, CURADO, REMATES, ESCALONADO, MUESTREADO, JUNTAS FRIAS CON VOLTEADOR, HERRAMIENTAS Y MANO DE OBRA.","M2 ","22.2500",0,"CERO PESOS 00/100 M.N.",0,365112]
[374508,"GUARNICION O MACHUELO DE CONCRETO SIMPLE F'C=150 KG/CM2 CON SECCION DE 15 X 30 CMS., CON CIMBRA APARENTE, INCLUYE: TRAZO, EXCAVACION, CONFORMACION Y COMPACTACION DEL TERRENO NATURAL CON HERRAMIENTA MANUAL, INCORPORACION DE HUMEDAD OPTIMA, RETIRO DEL MATERIAL PRODUCTO DE LA EXCAVACION, CIMBRA APARENTE Y DESCIMBRA, COLADO, VIBRADO, CURADO, SEÑALAMIENTO PREVENTIVO, MATERIALES, HERRAMIENTAS, MANO DE OBRA Y ACARREO DE MATERIALES AL SITIO DE SU UTILIZACION.","ML ","14.2500",0,"CERO PESOS 00/100 M.N.",0,365120]
[375242,"FORJADO DE RAMPA PARA MINUSVALIDOS FABRICADO A BASE DE CONCRETO F'C=150 KG/CM2. T.M.A. 3/4\" HECHO EN OBRA DE 0.10 MT. DE ESPESOR  PROMEDIO DANDO PENDIENTE DEL 6%. INCLUYE: HERRAMIENTAS, ACABADO RAYADO,  CIMBRA DESCIMBRA, MANO DE OBRA, REMATE EN PISO Y BANQUETA, ACARREO DEL  MATERIALES AL SITIO DE SU UTILIZACION.","M2 ","2.2500",0,"CERO PESOS 00/100 M.N.",0,365121]
["30.07(382)","ELEMENTOS COMPLEMENTARIOS DE ALBAÑILERIA          ",null,null,null,null,{"$f":"TEXT(SUM(G214:G214), \"$ #,##0.00 ;\")","v":"$ 0.00 "}]
[384205,"SUMINISTRO Y COLOCACION DE BANCA JARDINERA PREFABRICADA  MODELO NA02, TIPO NAPRESA O SIMILAR, DE 2.50 MTS DE LARGO, 0.60 DE ANCHO Y 0.45 DE ALTURA, INCLUYE: PREPARACION DEL AREA DE COLOCACION, ANCLAJE, NIVELACION, FLETES, MANIOBRAS DE CARGA Y DESCARGA, HERRAMIENTAS, MATERIALES PARA FIJACION, LIMPIEZA Y MANO DE OBRA.","PZA","1.0000",0,"CERO PESOS 00/100 M.N.",0,365125]
["30.08(393)","PINTURA                                           ",null,null,null,null,{"$f":"TEXT(SUM(G216:G217), \"$ #,##0.00 ;\")","v":"$ 0.00 "}]
[393216,"PINTURA DE ESMALTE ALQUIDALICO ANTICORROSIVO, ACABADO BRILLANTE, PARA INTERIORES Y EXTERIORES QUE NO DESPRENDA VAPORES TÓXICOS NI OLORES DESAGRADABLES, CON LAS SIGUIENTES CARACTERÍSTICAS ( SÓLIDOS POR PESO 49-60%, SÓLIDOS POR VOLUMEN 40-46%, VISCOSIDAD DE 110-160 UK A 25°C, DENSIDAD 0.9-1.2 TON/M3., BRILLO A 60°C, 90%, TIEMPO DE SECADO AL TACTO, < O = 6 HRS., TIEMPO DE SECADO DURO < O = 24 HRS., ADHERENCIA 100%, RENDIMIENTO EN SUP. LISA 8-10 M2/LT., DILUCIÓN MÁXIMA (AGUARRÁS, THINER), 15 %,  EN ESTRUCTURA DE CUBIERTA, A BASE DE LARGUEROS DE POLINES MON-TEN, TENSORES Y CONEXIONES, TRABAJO TERMINADO, A DOS MANOS, INCLUYE: MATERIALES MENORES Y DE CONSUMO, ANDAMIOS, PREPARACION DE LA SUPERFICIE, HERRAMIENTAS, LIMPIEZA, MANO DE OBRA Y  EQUIPO DE SEGURIDAD. A CUALQUIER NIVEL. (PROYECCIÓN DE CUBIERTA).","M2 ","26.6100",0,"CERO PESOS 00/100 M.N.",0,365133]
[393325,"PINTURA DE ESMALTE ALQUIDALICO ANTICORROSIVO, ACABADO BRILLANTE, PARA INTERIORES Y EXTERIORES QUE NO DESPRENDA VAPORES TÓXICOS NI OLORES DESAGRADABLES, CON LAS SIGUIENTES CARACTERÍSTICAS ( SÓLIDOS POR PESO 49-60%, SÓLIDOS POR VOLUMEN 40-46%, VISCOSIDAD DE 110-160 UK A 25°C, DENSIDAD 0.9-1.2 TON/M3., BRILLO A 60°C, 90%, TIEMPO DE SECADO AL TACTO, < O = 6 HRS., TIEMPO DE SECADO DURO < O = 24 HRS., ADHERENCIA 100%, DILUCIÓN MÁXIMA (AGUARRÁS, THINER), 15 %,  EN BARANDAL METALICO, EN COLOR DE ACUERDO A INDICADO POR SUPERVISIÓN MEDIDO POR UN SOLO LADO, TRABAJO TERMINADO, A DOS MANOS, INCLUYE: MATERIALES MENORES Y DE CONSUMO, PREPARACION DE LA SUPERFICIE, ANDAMIOS, HERRAMIENTAS, LIMPIEZA, MANO DE OBRA Y  EQUIPO DE SEGURIDAD. CUALQUIER ALTURA..","M2 ","13.6600",0,"CERO PESOS 00/100 M.N.",0,365137]
["30.09(396)","LIMPIEZA                                          ",null,null,null,null,{"$f":"TEXT(SUM(G219:G219), \"$ #,##0.00 ;\")","v":"$ 0.00 "}]
[396012,"LIMPIEZA DE PISOS DE CONCRETO CON AGUA Y ACIDO MURIATICO AL 10%.","M2 ","24.5000",0,"CERO PESOS 00/100 M.N.",0,365146]
["30.10(410)","CANCELERIA, HERRERIA, ALUMINIO, VIDRIOS Y CHAPAS  ",null,null,null,null,{"$f":"TEXT(SUM(G221:G222), \"$ #,##0.00 ;\")","v":"$ 0.00 "}]
[412006,"SUMINISTRO, FABRICACION Y COLOCACION DE HERRERIA TUBULAR Y/O ESTRUCTURAL PARA BARANDAL O PASAMANOS,  INCLUYE: SOLDADURA, CORTES, AJUSTES, MATERIALES MENORES, DESCALIBRES, DESPERDICIOS, BISAGRAS, FONDO ANTICORROSIVO, FLETES, HERRAMIENTAS, MANO DE OBRA, Y ACARREO DE MATERIALES AL SITIO DE SU UTLIZACION.","KG ","345.0000",0,"CERO PESOS 00/100 M.N.",0,365150]
[412897,"SUMINISTRO, MONTAJE  Y COLOCACION DE PARASOL DE 0.50 MTS. DE ALTURA,  FABRICADO A BASE DE BASTIDOR METALICO DE PTR DE 2 1/2\" X 2 1/2\" BLANCO Y SOLERA DE 1/2\" X 3/16\", CON POSTES VERTICALES A CADA 100 CM. APROXIMADAMENTE,  CORTINA DE LAMINA NEGRA MULTIPERFORADA CAL 14, CON PERFOTRACIONES DE 3 MM. DE DIAMETRO, RAMACAHADA A BASTIDOR, INCLUYE: ANCLAS DE PLACA Y SOLERA DE 1/4\", ELEMENTOS DE FIJACION, TRAZO, ROLADO, SOLDADURA, CORTES, DESPERDICIOS, DESBASTADO, AJUSTES,  EQUIPOS, PLOMEO, NIVELACION, PINTURA DE TALLER Y ESMALTE A DOS MANOS, TRABAJO TERMINADO, POR AMBAS CARAS, HERRAMIENTAS, MANO DE OBRA, MATERIALES MENORES, FLETES Y ACARREO DE LOS MATERIALES AL SITIO DE SU UTILIZACION.","ML ","22.6400",0,"CERO PESOS 00/100 M.N.",0,365156]
["30.11(510)","INSTALACION ELECTRICA EN EDIFICIO                 ",null,null,null,null,{"$f":"TEXT(SUM(G224:G225), \"$ #,##0.00 ;\")","v":"$ 0.00 "}]
[540012,"SUMINISTRO Y COLOCACION DE CENTRO DE CARGAS TIPO QOD-2, MCA. SQUARE D, INCLUYE: ELEMENTOS DE FIJACION,  PRUEBAS, MATERIALES MENORES Y DE CONSUMO, CONEXIONES, LIMPIEZAS, HERRAMIENTAS, MANO DE OBRA ESPECIALIZADA Y ACARREO DE MATERIALES AL SITIO DE SU COLOCACION.","PZA","1.0000",0,"CERO PESOS 00/100 M.N.",0,365159]
[543012,"SUMINISTRO Y COLOCACION DE INTERRUPTOR TERMOMAGNETICO DERIVADO CON 1 POLOS, DE 15-60 AMPERES, MCA. SQUARE D, CAT. QO. INCLUYE: PRUEBAS, MATERIALES MENORES, HERRAMIENTAS, MANO DE OBRA ESPECIALIZADA  Y ACARREO DE MATERIALES AL SITIO DE SU COLOCACION.","PZA","1.0000",0,"CERO PESOS 00/100 M.N.",0,365160]
["30.12(511)","INSTALACION ELECTRICA EN OBRA EXTERIOR            ",null,null,null,null,{"$f":"TEXT(SUM(G227:G228), \"$ #,##0.00 ;\")","v":"$ 0.00 "}]
[514011,"SALIDA ELECTRICA DE CENTRO AISLADA, VISIBLE, CON TUBERIA Y CONEXIONES CONDUIT GALVANIZADA P.G., ROSCADA DE 13 Y 19 MM. DE DIAMETRO, CABLE VINANEL THW-LS 600 V. A 75° C, 90° C, MARCA CONDUCTORES MONTERREY, (VIAKON-PROTOCOLIZADO), CABLE VINANEL 21 THW-LS 600 V. A 75° C, 90° C, MARCA CONDUMEX (CONDUMEX PROTOCOLIZADO).  CALIBRE 12, CAJAS CUADRADAS, CHALUPAS Y TAPAS GALVANIZADAS, INCLUYE: TRAZO, MATERIALES MENORES Y DE FIJACION, HERRAMIENTA, MANO DE OBRA ESPECIALIZADA , CONEXIONES, LIMPIEZA DEL AREA DE TRABAJO, PRUEBAS, DESPERDICIOS Y ACARREO DEL MATERIAL AL SITIO DE SU COLOCACION, A CUALQUIER NIVEL.","SAL","2.0000",0,"CERO PESOS 00/100 M.N.",0,365161]
[550221,"SUMINISTRO Y COLOCACION DE LUMINARIA HERMETICO DE SOBREPONER DE 2 X 16 WATTS, MCA. NOVALUX O SIMILAR, MOD. PISCIS, CAT. NVL-PIS-216-LED-P, EN GABINETE DE 1.27 X 0.17 MTS. FABRICADO EN RESINA POLIESTER Y FIBRA DE VIDRIO CON ACABADO A BASE DE PINTURA EN POLVO DE POLIESTER, APLICADA ELECTROSTATICAMENTE Y TERMOENDURECIDA, DIFUSOR DE ACRILICO DE ALTO IMPACTO TRANSPARENTE TERMOFORMADO, CON UNA REFLECTANCIA MINIMA DE 93%, IP-65 DISEÑADA A PRUEBA DE POLVO, VAPORES Y AGUA, PARA OPERAR CON DOS LAMPARA LED LINEAL T8, 16 WATTS CADA UNA, MULTIVOLTAJE 120-277 VOLTS , TEMPERATURA DE COLOR 4000°K, IRC>80,  VIDA UTIL DE 40,000 HRS., 2350 LUMENES TOTALES COMO MINIMO, DRIVER INTEGRADO , LA LUMINARIA (COMPLETA) DEBERA CUMPLIR CON LA NORMA ANCE, INCLUYE: MATERIALES DE FIJACION, LAMPARAS, PRUEBAS, COPIA DE CERTIFICACION ANCE ANEXA EN ELTRAMITE DE LA ESTIMACION, NIVELACION, MATERIALES MENORES Y DE CONSUMO, CONEXIONES, DESPERDICIOS, HERRAMIENTAS, ANDAMIOS, MANO DE OBRA, MATERIALES DE FIJACION, LIMPIEZA DEL AREA DE TRABAJO, Y ACARREO DE MATERIALES AL SITIO DE SU COLOCACION. A CUALQUIER ALTURA.","PZA","2.0000",0,"CERO PESOS 00/100 M.N.",0,365184]
["33B","MURO REJA",null,null,null,null,{"$f":"TEXT(SUM(G230 + G232 + G238 + G246 + G250 + G253 + G256 + G259), \"$ #,##0.00 ;\")","v":"$ 0.00 "}]
["33B.01(140)","DEMOLICIONES, DESMONTAJES Y MECANICA DE SUELOS    ",null,null,null,null,{"$f":"TEXT(SUM(G231:G231), \"$ #,##0.00 ;\")","v":"$ 0.00 "}]
[140432,"DESMONTAJE DE CERCA PERIMETRAL A BASE DE MALLA CICLON DE 2.00 A 2.50 MTS DE ALTURA, EXISTENTE EN OBRA, SIN RECUPERACION, INCLUYE:  RETIRO DE POSTES, MALLA,  ALAMBRE DE PUAS, MANIOBRAS DE ARRASTRE, HERRAMIENTAS, MANO DE OBRA Y RETIRO DE MATERIALES DE DESPERDICIO FUERA DE LA OBRA.","ML ","564.3200",0,"CERO PESOS 00/100 M.N.",0,364958]
["33B.02(150)","TRABAJOS PRELIMINARES                             ",null,null,null,null,{"$f":"TEXT(SUM(G233:G237), \"$ #,##0.00 ;\")","v":"$ 0.00 "}]
[150020,"LIMPIEZA DE TERRENO RETIRANDO BASURA Y DESHIERBE FUERA DE LA OBRA. INCLUYE: HERRAMIENTAS, MANO DE OBRA, RECOLECCION, JUNTA Y RETIRO. (PROYECCION DE CUBIERTA).","M2 ","82.8000",0,"CERO PESOS 00/100 M.N.",0,364966]
[150120,"TRAZO Y NIVELACION DE EXTERIORES ESTABLECIENDO REFERENCIAS DEFINITIVAS, CON TRANSITO Y NIVEL (EQUIPO TOPOGRAFICO), INCLUYE: PERSONAL TECNICO CALIFICADO, ESTACAS, MOJONERAS, LOCALIZACION DE EJES Y/O ENTRE EJES, BANCOS DE NIVEL, MATERIALES PARA SEÑALAMIENTO, EQUIPO, HERRAMIENTA Y MANO DE OBRA.","M2 ","82.8000",0,"CERO PESOS 00/100 M.N.",0,364973]
[152204,"EXCAVACION EN CEPAS POR CUALQUIER MEDIO, MATERIAL TIPO \"B\", DE 0 A 2.00 M. DE PROFUNDIDAD, EN SECO, INCLUYE: AFINE DE TALUDES Y FONDO, TRASPALEOS,  MOVIMIENTOS Y ACARREOS DENTRO DE LA OBRA, HERRAMIENTAS Y MANO DE OBRA, MEDIDO EN BANCO.","M3 ","33.3500",0,"CERO PESOS 00/100 M.N.",0,364987]
[152206,"EXCAVACION EN CEPAS POR CUALQUIER MEDIO, MATERIAL TIPO \"C\", (TEPETATE O BOLEOS EMPACADOS HASTA 50%) DE 0 A 2.00 M. DE PROFUNDIDAD, EN SECO, INCLUYE: AFINE DE TALUDES Y FONDO, TRAPALEOS,  MOVIMIENTOS Y ACARREOS DENTRO DE LA OBRA, HERRAMIENTAS Y MANO DE OBRA, MEDIDO EN BANCO.","M3 ","33.3500",0,"CERO PESOS 00/100 M.N.",0,364989]
[156002,"CARGA POR CUALQUIER MEDIO Y ACARREO EN CAMION DE MATERIAL DE DESPERDICIO PRODUCTO DE LAS EXCAVACIONES FUERA DE LA OBRA, A LUGAR PERMITIDO POR LAS AUTORIDADES CORRESPONDIENTES, MEDIDO EN BANCO. INCLUYE CARGA,  ACARREO Y DESCARGA A TIRO LIBRE, HERRAMIENTA, EQUIPO, MATERIALES DE CONSUMO Y MANO DE OBRA.","M3 ","66.7000",0,"CERO PESOS 00/100 M.N.",0,365001]
["33B.03(160)","CIMENTACION                                       ",null,null,null,null,{"$f":"TEXT(SUM(G239:G245), \"$ #,##0.00 ;\")","v":"$ 0.00 "}]
[162002,"CIMIENTO DE PIEDRA BRAZA ACOMODADA PIEDRA POR PIEDRA, ASENTADA CON MORTERO CEMENTO-ARENA  EN PROPORCION 1:3. INCLUYE: MATERIALES, DESPERDICIOS, HERRAMIENTAS, LIMPIEZA, MANO DE OBRA Y ACARREO DE MATERIALES AL SITIO DE SU UTILIZACION.","M3 ","41.4000",0,"CERO PESOS 00/100 M.N.",0,365011]
[162116,"MAMPOSTERIA DE PIEDRA BRAZA, ACABADO APARENTE DOS CARAS DE 0 A 1.50 MTS, ASENTADA CON  CEMENTO-ARENA 1:3, INCLUYE: MATERIALES, HERRAMIENTAS, PLOMEO,  LIMPIEZA, MANO DE OBRA Y ACARREO DE MATERIALES AL SITIO DE SU UTILIZACION.","M3 ","37.2600",0,"CERO PESOS 00/100 M.N.",0,365014]
[162404,"NIVELACION DE MURO DE MAMPOSTERIA CON RAJUELA DE PIEDRA BRAZA JUNTEADA CON MORTERO CEM-ARE 1:3. DE 0.10 M. DE ESPESOR X 0.40 M. DE ANCHO PROMEDIO. INCLUYE: NIVELACION, TRAZO, MANO DE OBRA Y HERRAMIENTA. (NO INCLUYE MATERIALES)","ML ","138.0000",0,"CERO PESOS 00/100 M.N.",0,365022]
[167204,"DALA DE DESPLANTE DE CONCRETO F´C= 150 KG/CM2, T.M.A.= 3/4\", CON SECCION DE 14 X 20 CM., ARMADA CON 4 VARILLAS DEL #3 Y ESTRIBOS DEL #2 @ 20 CM., INCLUYE: ARMADO, COLADO, CURADO, VIBRADO, CIMBRA COMUN, DESCIMBRA, DESPERDICIOS, TRASLAPES, CRUCES DE VARILLAS CON ELEMENTOS TRANSVERSALES, ANDAMIOS, MANO DE OBRA, HERRAMIENTA Y ACARREO DE MATERIALES AL SITIO DE SU UTILIZACION, A CUALQUIER ALTURA.","ML ","69.0000",0,"CERO PESOS 00/100 M.N.",0,365024]
[180065,"RELLENO COMPACTADO CON EQUIPO MECANICO DE SUELO-GRAVA, EN CEPAS Y/O CAJON , A BASE DE MATERIAL DE BANCO  (TEPETATE, ARENA, ETC) Y GRAVA DE 3/4\" A 1 1/2\" DE DIAMETRO, CON UNA PROPORCION DE 30-70 %, EN VOLUMEN,   A CUALQUIER PROFUNDIDAD, COMPACTADO AL 95% DE SU P.V.S.M. PROCTOR, EN CAPAS DE 15 CM. INCLUYE: SUMINISTRO DE AGUA PARA LOGRAR HUMEDAD OPTIMA, MEZCLACO, TENDIDO, TRASPALEOS,  DESPERDICIOS, EQUIPO, PRUEBAS DE COMPACTACION, AFINE, NIVELACION, HERRAMIENTAS, MANO DE OBRA Y  ACARREO HASTA EL SITIO DE SU COLOCACION.  (VOLUMEN MEDIDO COMPACTADO).","M3 ","25.3000",0,"CERO PESOS 00/100 M.N.",0,365048]
[180103,"RELLENO COMPACTADO AL 95% PROCTOR, CON MATERIAL DE BANCO, EN CAPAS DE 15 CM DE ESPESOR, AGREGANDO AGUA PARA LOGRAR SU HUMEDAD OPTIMA, POR CUALQUIER MEDIO, INCLUYE: SUMINISTRO DE AGUA PARA LOGRAR HUMEDAD OPTIMA, TENDIDO, TRASPALEOS,  DESPERDICIOS, EQUIPO, PRUEBAS DE COMPACTACION, AFINE, NIVELACION, HERRAMIENTAS, MANO DE OBRA Y  ACARREO HASTA EL SITIO DE SU COLOCACION.  (VOLUMEN MEDIDO COMPACTADO).","M3 ","4.6000",0,"CERO PESOS 00/100 M.N.",0,365055]
[192810,"BASE PARA CASTILLO DE 40.0 X 40.0 X 50.0 CM, EN CIMENTACION DE PIEDRA, CON CONCRETO F'C=150 KG/CM2, TMA=3/4\", CON 4 VARILLAS DE 3/8\" DE DIAMETRO Y ESTRIBOS DE 1/4\" @ 15.0 CM. CIMBRA COMUN,  INCLUYE: CIMBRADO Y DESCIMBRADO, COLADO, VIBRADO, CURADO, MATERIALES, DESPERDICIOS, HERRAMIENTAS, LIMPIEZA, MANO DE OBRA Y ACARREO DE MATERIALES AL SITIO DE SU UTILIZACION.","PZA","46.0000",0,"CERO PESOS 00/100 M.N.",0,365063]
["33B.04(310)","MUROS, CADENAS, CASTILLOS Y REPIZONES.            ",null,null,null,null,{"$f":"TEXT(SUM(G247:G249), \"$ #,##0.00 ;\")","v":"$ 0.00 "}]
[310207,"DALA DE CONCRETO F'C=150 KG/CM2, T.M.A.=3/4\", CON SECCION DE 14 X 15 CMS., ARMADA CON 4 VARILLAS DEL # 3 Y ESTRIBOS DEL NO. 2 @ 15 CMS., INCLUYE: ARMADO, COLADO, CURADO, VIBRADO, CIMBRA COMUN, DESCIMBRA, TRASLAPES, CRUCES DE VARILLAS CON ELEMENTOS TRANSVERSALES, DESPERDICIOS, MANO DE OBRA, HERRAMIENTA Y ACARREO DE MATERIALES AL SITIO DE SU UTILIZACION, A CUALQUIER ALTURA.","ML ","69.0000",0,"CERO PESOS 00/100 M.N.",0,365083]
[312244,"CASTILLO DE CONCRETO F'C=150 KG/CM2, T.M.A.=3/4, CON SECCION DE 14 X 20 CMS., ARMADA CON 4 VARILLAS DEL # 3 Y ESTRIBOS DEL NO. 2 @ 20 CMS., INCLUYE:  ARMADO, COLADO, CURADO, VIBRADO, CIMBRA COMUN, DESCIMBRA, TRASLAPES, CRUCES DE VARILLAS CON ELEMENTOS TRANSVERSALES, DESPERDICIOS, MANO DE OBRA, HERRAMIENTA, ANDAMIOS,  Y ACARREO DE MATERIALES AL SITIO DE SU UTILIZACION, A CUALQUIER ALTURA.","ML ","94.3000",0,"CERO PESOS 00/100 M.N.",0,365089]
[314032,"MURO DE TABIQUE DE LAMA, DE 14 CMS. DE ESPESOR PROMEDIO, A SOGA, CON TABIQUE DE LAMA 7 X 14 X 28 CMS., ACABADO COMUN, ASENTADO CON MORTERO CEMENTO-ARENA EN PROPORCION 1:3, EN CUALQUIER NIVEL, INCLUYE: TRAZO, NIVELACION, PLOMEO, ANDAMIOS, DESPERDICIOS, MANO DE OBRA, LIMPIEZA Y ACARREO DE MATERIALES AL SITIO DE SU UTILIZACION.","M2 ","127.6500",0,"CERO PESOS 00/100 M.N.",0,365092]
["33B.05(355)","RECUBRIMIENTOS Y ACABADOS                         ",null,null,null,null,{"$f":"TEXT(SUM(G251:G252), \"$ #,##0.00 ;\")","v":"$ 0.00 "}]
[355022,"APLANADO DE MUROS Y/O TECHOS CON MORTERO CEMENTO-CAL-ARENA DE RIO EN PROP. 1:2:6 DE 2 CM. DE ESPESOR PROMEDIO, A PLOMO Y REGLA, ACABADO APALILLADO FINO, INCLUYE: MATERIALES, DESPERDICIOS, ANDAMIOS, HERRAMIENTAS, PLOMEO, NIVELACION, REMATES, LIMPIEZA DEL AREA DE TRABAJO Y ACARREO DE MATERIALES AL SITIO DE SU UTILIZACION. A CUALQUIER NIVEL.\n","M2 ","324.3000",0,"CERO PESOS 00/100 M.N.",0,365103]
[357322,"BOQUILLAS EN PUERTAS Y VENTANAS, CON MORTERO CEMENTO-CAL-ARENA 1:2:6, INCLUYE: ANDAMIOS Y ACARREO DE MATERIALES AL SITIO DE SU UTILIZACION.","ML ","177.1000",0,"CERO PESOS 00/100 M.N.",0,365106]
["33B.06(372)","PISOS                                             ",null,null,null,null,{"$f":"TEXT(SUM(G254:G255), \"$ #,##0.00 ;\")","v":"$ 0.00 "}]
[373502,"CEJA DE CONCRETO F'C=150 KG/CM2, TMA=3/4\" DE 12.0 X 18.0 CM DE SECCION PROMEDIO, ARMADA CON 1 VARILLA #3 (3/8\") Y ESTRIBOS DE 1/4\" @ 25.0 CM, EN CUALQUIER NIVEL. INCLUYE: CIMBRA APARENTE, DESCIMBRA, COLADO, VIBRADO, CURADO, PERFILADO, CHAFLANES, GOTERO, LIMPIEZA, HERRAMIENTAS, MATERIALES, DESPERDICIOS Y MANO DE OBRA.","ML ","138.0000",0,"CERO PESOS 00/100 M.N.",0,365117]
[382685,"REPISON DE CONCRETO F'C= 150 KG/CM2, CON FORMA TRAPEZOIDAL SECCION DE 50 CM. DE ANCHO X 10 CM. DE ESPESOR EN LOS EXTREMOS Y 15 CM. AL CENTRO DE LA SECCION, ARMADO CON 1 VARILLA DEL # 3 @ 20 CM EN AMBAS DIRECCIONES, CON DETALLES Y MOLDURAS, INCLUYE: CIMBRA APARENTE, DESCIMBRADO, CHAFLANES, COLADO, CURADO, VIBRADO, PERFILADO, DESPERDICIOS, ACABADO PULIDO FINO Y/O CON BROCHA DE PELO, HERRAMIENTA, MANO DE OBRA Y TODO LO NECESARIO PARA SU CORRECTA EJECUCION.","ML ","69.0000",0,"CERO PESOS 00/100 M.N.",0,365123]
["33B.07(393)","PINTURA                                           ",null,null,null,null,{"$f":"TEXT(SUM(G257:G258), \"$ #,##0.00 ;\")","v":"$ 0.00 "}]
[393022,"PINTURA VINIL-ACRÍLICA A BASE DE AGUA ACABADO SEMIMATE  LAVABLE, PARA INTERIORES Y EXTERIORES QUE NO DESPRENDA VAPORES TÓXICOS NI OLORES DESAGRADABLES, CON LAS SIGUIENTES CARACTERÍSTICAS ( SÓLIDOS POR PESO 46-52%, SÓLIDOS POR VOLUMEN 30-36%, VISCOSIDAD DE 100-130 UK A 25°C, DENSIDAD > O = 1.2 TON/M3., LAVABILIDAD > O = 4,000 CICLOS, TIEMPO DE SECADO AL TACTO, 30-40 MIN., TIEMPO DE SECADO DURO < O = 8 HRS., CICLO DE CURADO DE 7 DIAS, PH 6-8, RENDIMIENTO EN SUP. LISA 8-10 M2/LT., FINEZA DE MOLIDO (HEGMAN) 3-7 UH.)  EN MUROS APLANADOS DE MEZCLA APALILLADO O PULIDO, TRABAJO TERMINADO, A DOS MANOS, INCLUYE: MATERIALES MENORES Y DE CONSUMO, ANDAMIOS, PREPARACION DE LA SUPERFICIE, SELLADO DE LA SUPERFICIE, HERRAMIENTAS, LIMPIEZA, MANO DE OBRA Y  ACARREOS DE MATERIALES AL SITIO DE SU UTILIZACIÓN.","M2 ","356.5000",0,"CERO PESOS 00/100 M.N.",0,365129]
[393325,"PINTURA DE ESMALTE ALQUIDALICO ANTICORROSIVO, ACABADO BRILLANTE, PARA INTERIORES Y EXTERIORES QUE NO DESPRENDA VAPORES TÓXICOS NI OLORES DESAGRADABLES, CON LAS SIGUIENTES CARACTERÍSTICAS ( SÓLIDOS POR PESO 49-60%, SÓLIDOS POR VOLUMEN 40-46%, VISCOSIDAD DE 110-160 UK A 25°C, DENSIDAD 0.9-1.2 TON/M3., BRILLO A 60°C, 90%, TIEMPO DE SECADO AL TACTO, < O = 6 HRS., TIEMPO DE SECADO DURO < O = 24 HRS., ADHERENCIA 100%, DILUCIÓN MÁXIMA (AGUARRÁS, THINER), 15 %,  EN BARANDAL METALICO, EN COLOR DE ACUERDO A INDICADO POR SUPERVISIÓN MEDIDO POR UN SOLO LADO, TRABAJO TERMINADO, A DOS MANOS, INCLUYE: MATERIALES MENORES Y DE CONSUMO, PREPARACION DE LA SUPERFICIE, ANDAMIOS, HERRAMIENTAS, LIMPIEZA, MANO DE OBRA Y  EQUIPO DE SEGURIDAD. CUALQUIER ALTURA..","M2 ","160.7700",0,"CERO PESOS 00/100 M.N.",0,365138]
["33B.08(410)","CANCELERIA, HERRERIA, ALUMINIO, VIDRIOS Y CHAPAS  ",null,null,null,null,{"$f":"TEXT(SUM(G260:G261), \"$ #,##0.00 ;\")","v":"$ 0.00 "}]
[192352,"SUMINISTRO Y COLOCACION DE PLACA DE ACERO A-36 DE 4\" X 4\" X 1/4\" PARA FIJACION DE PASAMANOS O BARANDAL A MURO, ESTRUCTURA Y/O CIMENTACION, INCLUYE: MATERIALES, ANCLAS DE ANGULO, CORTES, FIJACION, SOLDADURA, HERRAMIENTAS Y MANO DE OBRA.\n","PZA","138.0000",0,"CERO PESOS 00/100 M.N.",0,365149]
[412006,"SUMINISTRO, FABRICACION Y COLOCACION DE HERRERIA TUBULAR Y/O ESTRUCTURAL PARA BARANDAL O PASAMANOS,  INCLUYE: SOLDADURA, CORTES, AJUSTES, MATERIALES MENORES, DESCALIBRES, DESPERDICIOS, BISAGRAS, FONDO ANTICORROSIVO, FLETES, HERRAMIENTAS, MANO DE OBRA, Y ACARREO DE MATERIALES AL SITIO DE SU UTLIZACION.","KG ","2,173.5000",0,"CERO PESOS 00/100 M.N.",0,365151]
[82,"CUBIERTA PARA PATIO CIVICO",null,null,null,null,{"$f":"TEXT(SUM(G263 + G265 + G270 + G281 + G286 + G288 + G290 + G294), \"$ #,##0.00 ;\")","v":"$ 0.00 "}]
["82.01(140)","DEMOLICIONES, DESMONTAJES Y MECANICA DE SUELOS    ",null,null,null,null,{"$f":"TEXT(SUM(G264:G264), \"$ #,##0.00 ;\")","v":"$ 0.00 "}]
[140602,"DEMOLICION DE FIRME Y/O PISO DE CONCRETO DE 10 CM DE ESPESOR PROMEDIO, EN SECCIONES OBLIGADAS, INC. CORTE CON DISCO PARA DELIMITAR AREA DE DEMOLICION; MANO DE OBRA, HERRAMIENTA, EQUIPO,  CARGA Y ACARREO INTERIOR Y FUERA DE LA OBRA DEL MATERIAL PRODUCTO DE LA DEMOLICION.","M2 ","22.5000",0,"CERO PESOS 00/100 M.N.",0,364959]
["82.02(150)","TRABAJOS PRELIMINARES                             ",null,null,null,null,{"$f":"TEXT(SUM(G266:G269), \"$ #,##0.00 ;\")","v":"$ 0.00 "}]
[150120,"TRAZO Y NIVELACION DE EXTERIORES ESTABLECIENDO REFERENCIAS DEFINITIVAS, CON TRANSITO Y NIVEL (EQUIPO TOPOGRAFICO), INCLUYE: PERSONAL TECNICO CALIFICADO, ESTACAS, MOJONERAS, LOCALIZACION DE EJES Y/O ENTRE EJES, BANCOS DE NIVEL, MATERIALES PARA SEÑALAMIENTO, EQUIPO, HERRAMIENTA Y MANO DE OBRA.","M2 ","466.2000",0,"CERO PESOS 00/100 M.N.",0,364975]
[152044,"EXCAVACION EN CEPAS POR MEDIOS MANUALES EN MATERIAL TIPO \"B\", DE 0 A 2.00 M. DE PROFUNDIDAD, EN SECO, INCLUYE: AFINE DE TALUDES Y FONDO, TRASPALEOS,  MOVIMIENTOS Y ACARREOS DENTRO DE LA OBRA, HERRAMIENTAS Y MANO DE OBRA, MEDIDO EN BANCO.","M3 ","18.0000",0,"CERO PESOS 00/100 M.N.",0,364981]
[152206,"EXCAVACION EN CEPAS POR CUALQUIER MEDIO, MATERIAL TIPO \"C\", (TEPETATE O BOLEOS EMPACADOS HASTA 50%) DE 0 A 2.00 M. DE PROFUNDIDAD, EN SECO, INCLUYE: AFINE DE TALUDES Y FONDO, TRAPALEOS,  MOVIMIENTOS Y ACARREOS DENTRO DE LA OBRA, HERRAMIENTAS Y MANO DE OBRA, MEDIDO EN BANCO.","M3 ","18.0000",0,"CERO PESOS 00/100 M.N.",0,364990]
[156002,"CARGA POR CUALQUIER MEDIO Y ACARREO EN CAMION DE MATERIAL DE DESPERDICIO PRODUCTO DE LAS EXCAVACIONES FUERA DE LA OBRA, A LUGAR PERMITIDO POR LAS AUTORIDADES CORRESPONDIENTES, MEDIDO EN BANCO. INCLUYE CARGA,  ACARREO Y DESCARGA A TIRO LIBRE, HERRAMIENTA, EQUIPO, MATERIALES DE CONSUMO Y MANO DE OBRA.","M3 ","36.0000",0,"CERO PESOS 00/100 M.N.",0,365003]
["82.03(160)","CIMENTACION                                       ",null,null,null,null,{"$f":"TEXT(SUM(G271:G280), \"$ #,##0.00 ;\")","v":"$ 0.00 "}]
[160092,"PLANTILLA DE RELLENO DE EMBECO NO. 636, DE 5.0 CM DE ESPESOR PROMEDIO, PARA RECIBIR PLACA BASE DE COLUMNAS DE ESTRUCTURA METALICAS, INCLUYE: PREPARACION, CIMBRA, DESCIMBRADO, MATERIALES, DESPERDICIOS, HERRAMIENTAS, LIMPIEZAS Y MANO DE OBRA.","M2 ","2.0000",0,"CERO PESOS 00/100 M.N.",0,365004]
[160222,"PLANTILLA DE CONCRETO F'C=100 KG/CM2, TMA=3/4\", DE 5.00 CM DE ESPESOR PROMEDIO. INCLUYE: MATERIALES, HERRAMIENTAS, AFINE, NIVELACION, LIMPIEZA, MANO DE OBRA Y ACARREO DE MATERIALES AL SITIO DE SU UTILIZACION.","M2 ","22.5000",0,"CERO PESOS 00/100 M.N.",0,365006]
[170012,"CIMBRA  ACABADO COMUN, EN CIMENTACION, INCLUYE: DESPERDICIO, HABILITADO, CIMBRADO Y DESCIMBRA, NIVELACION, PLOMEO MATERIAL, MANO DE OBRA , LIMPIEZA, HERRAMIENTA, ACARREO DEL MATRIAL DENTRO Y FUERA DE LA OBRA.","M2 ","29.0000",0,"CERO PESOS 00/100 M.N.",0,365028]
[173003,"SUMINISTRO, HABILITADO, ARMADO Y COLOCACION DE ACERO DE REFUERZO FY=4,200 KG/CM2 (G.E.), DE 3/8\" ( #3 ), EN CIMENTACION, INCLUYE: MATERIALES, HABILITADO,  DOBLECES,  SILLETAS, ALAMBRE, GANCHOS, ESCUADRAS, TRASLAPES, DESPERDICIOS HERRAMIENTAS, MANO DE OBRA Y ACARREO DE MATERIALES AL SITIO DE SU COLOCACION.","KG ","245.0000",0,"CERO PESOS 00/100 M.N.",0,365030]
[173004,"SUMINISTRO, HABILITADO, ARMADO Y COLOCACION DE ACERO DE REFUERZO FY=4,200 KG/CM2 (G.E.), DE 1/2\" ( #4 ), EN CIMENTACION, INCLUYE: MATERIALES, HABILITADO,  DOBLECES,  SILLETAS, ALAMBRE, GANCHOS, ESCUADRAS, TRASLAPES, DESPERDICIOS HERRAMIENTAS, MANO DE OBRA Y ACARREO DE MATERIALES AL SITIO DE SU COLOCACION.","KG ","115.0000",0,"CERO PESOS 00/100 M.N.",0,365032]
[173008,"SUMINISTRO, HABILITADO, ARMADO Y COLOCACION DE ACERO DE REFUERZO FY=4,200 KG/CM2 (G.E.), DE 1\" (#8 ), EN CIMENTACION, INCLUYE: MATERIALES, HABILITADO,  DOBLECES,  SILLETAS, ALAMBRE, GANCHOS, ESCUADERAS, TRASLAPES, DESPERDICIOS HERRAMIENTAS, MANO DE OBRA Y ACARREO DE MATERIALES AL SITIO DE SU COLOCACION.","KG ","515.0000",0,"CERO PESOS 00/100 M.N.",0,365033]
[176008,"SUMINISTRO Y COLOCACION DE CONCRETO HECHO EN OBRA F'C=250 KG/CM2, TMA= 3/4\", R.N. EN CIMENTACION. INCLUYE: TENDIDO, RASTREADO, VIBRADO, NIVELACION, HERRAMIENTAS, LIMPIEZA, PRUEBAS,  CURADO CON CURACRETO ROJO,  DESPERDICIO Y MANO DE OBRA.","M3 ","6.0000",0,"CERO PESOS 00/100 M.N.",0,365034]
[180065,"RELLENO COMPACTADO CON EQUIPO MECANICO DE SUELO-GRAVA, EN CEPAS Y/O CAJON , A BASE DE MATERIAL DE BANCO  (TEPETATE, ARENA, ETC) Y GRAVA DE 3/4\" A 1 1/2\" DE DIAMETRO, CON UNA PROPORCION DE 30-70 %, EN VOLUMEN,   A CUALQUIER PROFUNDIDAD, COMPACTADO AL 95% DE SU P.V.S.M. PROCTOR, EN CAPAS DE 15 CM. INCLUYE: SUMINISTRO DE AGUA PARA LOGRAR HUMEDAD OPTIMA, MEZCLACO, TENDIDO, TRASPALEOS,  DESPERDICIOS, EQUIPO, PRUEBAS DE COMPACTACION, AFINE, NIVELACION, HERRAMIENTAS, MANO DE OBRA Y  ACARREO HASTA EL SITIO DE SU COLOCACION.  (VOLUMEN MEDIDO COMPACTADO).","M3 ","9.0000",0,"CERO PESOS 00/100 M.N.",0,365049]
[180103,"RELLENO COMPACTADO AL 95% PROCTOR, CON MATERIAL DE BANCO, EN CAPAS DE 15 CM DE ESPESOR, AGREGANDO AGUA PARA LOGRAR SU HUMEDAD OPTIMA, POR CUALQUIER MEDIO, INCLUYE: SUMINISTRO DE AGUA PARA LOGRAR HUMEDAD OPTIMA, TENDIDO, TRASPALEOS,  DESPERDICIOS, EQUIPO, PRUEBAS DE COMPACTACION, AFINE, NIVELACION, HERRAMIENTAS, MANO DE OBRA Y  ACARREO HASTA EL SITIO DE SU COLOCACION.  (VOLUMEN MEDIDO COMPACTADO).","M3 ","21.0000",0,"CERO PESOS 00/100 M.N.",0,365057]
[192324,"FABRICACION, SUMINISTRO Y COLOCACION DE JUEGO DE ANCLAS EN \"L\" DE REDONDO LISO (COLD ROLLED) CON 4 VARILLAS DE 1\" (#8), DE 70 CM DE DESARROLLO TOTAL (CADA ANCLA), CON 10 CM. DE ROSCA EN EXTREMO SUPERIOR, UNIDAS CON 2 ANILLETAS DE DE VARILLA CORRUGADA DE 3/8\" Y ALINEADAS A LA PLACA EN LA BASE DE COLUMNA. INCLUYE: CORTES, ROSCADO, DESPERDICIOS, ALINEACION, NIVELACION, PLOMEO, SOLDADURA, DOBLECES, TUERCAS, RONDANAS,  MANO DE OBRA, EQUIPO, HERRAMIENTA Y ACARREOS.","JGO","10.0000",0,"CERO PESOS 00/100 M.N.",0,365060]
["82.04(200)","ESTRUCTURA                                        ",null,null,null,null,{"$f":"TEXT(SUM(G282:G285), \"$ #,##0.00 ;\")","v":"$ 0.00 "}]
[280090,"SUMINISTRO, HABILITADO Y MONTAJE DE ESTRUCTURA METALICA DE ACERO ASTMA-36 F'Y=2530 KG/CM2, SOLDADOS Y/O ATORNILLADOS, (PERFILES IPR. IPS, CPS, REDONDOS SOLIDO, SOLERAS Y PLACAS, ETC, DIFERENTES DIMENSIONES Y CALIBRES,) PARA COLUMNAS, ARMADURAS, TRABES Y VIGAS, INCLUYE: MATERIALES MENORES Y DE CONSUMO, TRAZO, CORTES, AJUSTES, DESPERDICIOS, ENDEREZADO, BISELADO, DESCALIBRES, BARRENOS, TORQUES, SOLDADURA, UNA PRUEBA RADIOGRAFICA Y/O LIQUIDOS PENETRANTES POR CADA 500 KG. DE ACERO, FLETES, PINTURA ANTICORROSIVA, MANO DE OBRA CALIFICADA, HERRAMIENTA, EQUIPO, FLETES, ELEVACIONES, ACARREOS DE MATERIALES AL SITIO DE SU COLOCACION, ACUALQUIER ALTURA.","KG ","538.0000",0,"CERO PESOS 00/100 M.N.",0,365076]
[280095,"SUMINISTRO, HABILITADO Y MONTAJE DE ESTRUCTURA METALICA DE ACERO, ASTM A-500 GR-B, F'Y=3200 KG/CM2, SOLDADOS Y/O ATORNILLADOS, (OR, OC, TUBOS REDONDOS, PTR, ETC, DIFERENTES DIMENSIONES Y CALIBRES,) PARA COLUMNAS, ARMADURAS, TRABES Y VIGAS, INCLUYE: MATERIALES MENORES Y DE CONSUMO, TRAZO, CORTES, AJUSTES, DESPERDICIOS, ENDEREZADO, BISELADO, DESCALIBRES, BARRENOS, TORQUES, SOLDADURA, UNA PRUEBA RADIOGRAFICA Y/O LIQUIDOS PENETRANTES POR CADA 500 KG. DE ACERO, FLETES, PINTURA ANTICORROSIVA, MANO DE OBRA CALIFICADA, HERRAMIENTA, ANDAMIOS, EQUIPO, FLETES, ELEVACIONES, ACARREOS DE MATERIALES AL SITIO DE SU COLOCACION, A CUALQUIER ALTURA.","KG ","3,340.0000",0,"CERO PESOS 00/100 M.N.",0,365077]
[280096,"SUMINISTRO, HABILITADO, ROLADO Y MONTAJE DE ESTRUCTURA METALICA DE ACERO, ASTM A-500 GR-B, F'Y=3200 KG/CM2, SOLDADOS Y/O ATORNILLADOS, (OR, OC, TUBOS REDONDOS, PTR, ETC, DIFERENTES DIMENSIONES Y CALIBRES,) PARA COLUMNAS, ARMADURAS, TRABES Y VIGAS, INCLUYE: MATERIALES MENORES Y DE CONSUMO, TRAZO, CORTES, AJUSTES, DESPERDICIOS, ENDEREZADO, ROLADO, BISELADO, DESCALIBRES, BARRENOS, TORQUES, SOLDADURA, UNA PRUEBA RADIOGRAFICA Y/O LIQUIDOS PENETRANTES POR CADA 500 KG. DE ACERO, FLETES, PINTURA ANTICORROSIVA, MANO DE OBRA CALIFICADA, HERRAMIENTA, ANDAMIOS, EQUIPO, FLETES, ELEVACIONES, ACARREOS DE MATERIALES AL SITIO DE SU COLOCACION, A CUALQUIER ALTURA.","KG ","3,070.0000",0,"CERO PESOS 00/100 M.N.",0,365078]
[280202,"SUMINISTRO, HABILITADO  Y COLOCACION TENSORES, CRUCETAS Y/O TIRANTES DE REDONDO LISO (COLD ROLLED) DE ACERO DE BAJO CARBÓN ASTM A-108 DE ½\" A 1\" DE DIAMETRO, INCLUYE: TRAZO, CORTES, AJUSTES, BARRENOS, DESPERDICOS, DESCALIBRES, SOLDADURA DE PENETRACION, PRUEBAS RADIOGRAFICAS Y/O LIQUIDOS PENETRANTES, ROSCADO, TUERCAS, RONDANAS, TENSADO, TORQUES, FLETES, HERRAMIENTAS, ANDAMIOS, EQUIPO, PINTURA ANTICORROSIVA, MANO DE OBRA Y ACARREOS AL SITIO DE SU COLOCACION. A CUALQUIER ALTURA.","KG ","330.0000",0,"CERO PESOS 00/100 M.N.",0,365079]
["82.05(319)","ENTREPISOS, CUBIERTA Y ACABADOS DE AZOTEA         ",null,null,null,null,{"$f":"TEXT(SUM(G287:G287), \"$ #,##0.00 ;\")","v":"$ 0.00 "}]
[418240,"SUMINISTRO E INSTALACION DE MEMBRANA ARQUITECTONICA TRASLUCIDA O BLACK OUT ELABORADA CON HILO POLIESTER DE ALTA TENACIDAD (HT) 1100 DTEX TEJIDO TIPO L CON TRATAMIENTO DE FLUORPOLIMERO PVDF, PESO 850G/M2 CON RESISTENCIA A LA TENSION DE 2800 A 3000 N/5CM, RESISTENCIA AL DESGARRO O RASGADO DE 300 N EN URDIMBRE Y TRAMA, ADHESIÓN DE 100 A 120 N/5CM, AUTO-EXTINGUIBLE O TRATAMIENTO AL FUEGO, TRANSMITANCIA UV < 0.1%, TRATAMIENTO ANTI-HONGOS Y GARANTIA DE 10 AÑOS COMO MINIMO, UNIDAD CON TERMO SELLADO O SOLDADURA DE RADIO FRECUENCIA, INCLUYE: TRAZO, CORTES, CONFECCION, HERRAJES, TENSORES, MATERIALES MENORES Y DE CONSUMO, DESPERDICIOS, ELEVACION, HERRAMIENTAS, EQUIPO, GARANTIA POR ESCRITO DE 10 AÑOS, ELEMENTOS DE FIJACION, SELLADO, LIMPIEZA, MANO DE OBRA ESPECIALIZADA, FLETES Y ACARREOS.","M2 ","456.4000",0,"CERO PESOS 00/100 M.N.",0,365100]
["82.06(372)","PISOS                                             ",null,null,null,null,{"$f":"TEXT(SUM(G289:G289), \"$ #,##0.00 ;\")","v":"$ 0.00 "}]
[373022,"PISO DE CONCRETO F'C=150 KG/CM², T.M.A. 3/4\", DE 0.10 M. DE ESPESOR, COLADO EN CUADROS NO MAYORES DE 3.00 ML POR LADO, INCLUYE: TRAZO, NIVELACION, AFINE Y COMPACTACION DEL TERRENO, AGUA, DESPERDICIOS, ACARREOS, REGLEADO, ACABADO INTEGRAL RAYADO CON BROCHA DE PELO (SIN UTILIZACION DE PASTA), CIMBRA EN FRONTERAS, DESCIMBRA, COLADO, CURADO, REMATES, ESCALONADO, MUESTREADO, JUNTAS FRIAS CON VOLTEADOR, HERRAMIENTAS Y MANO DE OBRA.","M2 ","22.5000",0,"CERO PESOS 00/100 M.N.",0,365113]
["82.07(393)","PINTURA                                           ",null,null,null,null,{"$f":"TEXT(SUM(G291:G293), \"$ #,##0.00 ;\")","v":"$ 0.00 "}]
[393318,"PINTURA DE ESMALTE ALQUIDALICO ANTICORROSIVO, ACABADO BRILLANTE, PARA INTERIORES Y EXTERIORES QUE NO DESPRENDA VAPORES TÓXICOS NI OLORES DESAGRADABLES, CON LAS SIGUIENTES CARACTERÍSTICAS ( SÓLIDOS POR PESO 49-60%, SÓLIDOS POR VOLUMEN 40-46%, VISCOSIDAD DE 110-160 UK A 25°C, DENSIDAD 0.9-1.2 TON/M3., BRILLO A 60°C, 90%, TIEMPO DE SECADO AL TACTO, < O = 6 HRS., TIEMPO DE SECADO DURO < O = 24 HRS., ADHERENCIA 100%, RENDIMIENTO EN SUP. LISA 8-10 M2/LT., DILUCIÓN MÁXIMA (AGUARRÁS, THINER), 15 %,  DE TUBO DE FIERRO NEGRO DE 4\" A 6\" DE DIÁMETRO, (POSTES, PASAMANOS, BARANDALES, ESTRUCTURAS, REDES, ETC.), TRABAJO TERMINADO, A DOS MANOS, INCLUYE: MATERIALES MENORES Y DE CONSUMO, PREPARACION DE LA SUPERFICIE, ANDAMIOS, HERRAMIENTAS, LIMPIEZA, MANO DE OBRA Y  EQUIPO DE SEGURIDAD. CUALQUIER ALTURA.","ML ","303.0000",0,"CERO PESOS 00/100 M.N.",0,365134]
[393319,"PINTURA DE ESMALTE ALQUIDALICO ANTICORROSIVO, ACABADO BRILLANTE, PARA INTERIORES Y EXTERIORES QUE NO DESPRENDA VAPORES TÓXICOS NI OLORES DESAGRADABLES, CON LAS SIGUIENTES CARACTERÍSTICAS ( SÓLIDOS POR PESO 49-60%, SÓLIDOS POR VOLUMEN 40-46%, VISCOSIDAD DE 110-160 UK A 25°C, DENSIDAD 0.9-1.2 TON/M3., BRILLO A 60°C, 90%, TIEMPO DE SECADO AL TACTO, < O = 6 HRS., TIEMPO DE SECADO DURO < O = 24 HRS., ADHERENCIA 100%, RENDIMIENTO EN SUP. LISA 8-10 M2/LT., DILUCIÓN MÁXIMA (AGUARRÁS, THINER), 15 %,   EN TUBO DE FIERRO NEGRO DE 3/4\" A 1 1/2\" DE DIÁMETRO, (POSTES, PASAMANOS, BARANDALES, REDES, ETC.),  TRABAJO TERMINADO, A DOS MANOS, INCLUYE: MATERIALES MENORES Y DE CONSUMO, PREPARACION DE LA SUPERFICIE, ANDAMIOS, HERRAMIENTAS, LIMPIEZA, MANO DE OBRA Y  EQUIPO DE SEGURIDAD. CUALQUIER ALTURA.","ML ","82.0000",0,"CERO PESOS 00/100 M.N.",0,365135]
[917337,"PINTURA DE ESMALTE ALQUIDALICO ANTICORROSIVO, ACABADO BRILLANTE, PARA INTERIORES Y EXTERIORES QUE NO DESPRENDA VAPORES TÓXICOS NI OLORES DESAGRADABLES, CON LAS SIGUIENTES CARACTERÍSTICAS ( SÓLIDOS POR PESO 49-60%, SÓLIDOS POR VOLUMEN 40-46%, VISCOSIDAD DE 110-160 UK A 25°C, DENSIDAD 0.9-1.2 TON/M3., BRILLO A 60°C, 90%, TIEMPO DE SECADO AL TACTO, < O = 6 HRS., TIEMPO DE SECADO DURO < O = 24 HRS., ADHERENCIA 100%, RENDIMIENTO EN SUP. LISA 8-10 M2/LT., DILUCIÓN MÁXIMA (AGUARRÁS, THINER), 15 %,  DE TUBO DE FIERRO NEGRO DE 8\" A 10\" DE DIÁMETRO, (POSTES, PASAMANOS, BARANDALES, ESTRUCTURAS, REDES, ETC.), TRABAJO TERMINADO, A DOS MANOS, INCLUYE: MATERIALES MENORES Y DE CONSUMO, PREPARACION DE LA SUPERFICIE, ANDAMIOS, HERRAMIENTAS, LIMPIEZA, MANO DE OBRA Y  EQUIPO DE SEGURIDAD. CUALQUIER ALTURA.","ML ","51.0000",0,"CERO PESOS 00/100 M.N.",0,365142]
["82.08(396)","LIMPIEZA                                          ",null,null,null,null,{"$f":"TEXT(SUM(G295:G295), \"$ #,##0.00 ;\")","v":"$ 0.00 "}]
[396428,"LIMPIEZA GENERAL DE LA OBRA, INCLUYE: ACARREO DEL MATERIAL PRODUCTO DE LA LIMPIEZA , FUERA DE LA OBRA.","M2 ","466.2000",0,"CERO PESOS 00/100 M.N.",0,365148]
["01","PLAZA Y ANDADORES",null,null,null,null,{"$f":"TEXT(SUM(G297 + G304 + G312 + G316), \"$ #,##0.00 ;\")","v":"$ 0.00 "}]
["01.01(150)","TRABAJOS PRELIMINARES                             ",null,null,null,null,{"$f":"TEXT(SUM(G298:G303), \"$ #,##0.00 ;\")","v":"$ 0.00 "}]
[150020,"LIMPIEZA DE TERRENO RETIRANDO BASURA Y DESHIERBE FUERA DE LA OBRA. INCLUYE: HERRAMIENTAS, MANO DE OBRA, RECOLECCION, JUNTA Y RETIRO. (PROYECCION DE CUBIERTA).","M2 ","74.4000",0,"CERO PESOS 00/100 M.N.",0,364961]
[150120,"TRAZO Y NIVELACION DE EXTERIORES ESTABLECIENDO REFERENCIAS DEFINITIVAS, CON TRANSITO Y NIVEL (EQUIPO TOPOGRAFICO), INCLUYE: PERSONAL TECNICO CALIFICADO, ESTACAS, MOJONERAS, LOCALIZACION DE EJES Y/O ENTRE EJES, BANCOS DE NIVEL, MATERIALES PARA SEÑALAMIENTO, EQUIPO, HERRAMIENTA Y MANO DE OBRA.","M2 ","74.4000",0,"CERO PESOS 00/100 M.N.",0,364970]
[150210,"DESPALME DE TERRENO NATURAL POR CUALQUIER MEDIO, CON ESPESOR PROMEDIO DE 20 CM. INCLUYE: CARGA Y ACARREO DEL PRODUCTO FUERA DE LA OBRA, MANO DE OBRA, HERRAMIENTA Y EQUIPO. (PROYECCION DE CUBIERTA).","M2 ","74.4000",0,"CERO PESOS 00/100 M.N.",0,364976]
[152204,"EXCAVACION EN CEPAS POR CUALQUIER MEDIO, MATERIAL TIPO \"B\", DE 0 A 2.00 M. DE PROFUNDIDAD, EN SECO, INCLUYE: AFINE DE TALUDES Y FONDO, TRASPALEOS,  MOVIMIENTOS Y ACARREOS DENTRO DE LA OBRA, HERRAMIENTAS Y MANO DE OBRA, MEDIDO EN BANCO.","M3 ","19.6000",0,"CERO PESOS 00/100 M.N.",0,364982]
[152404,"EXCAVACION A CIELO ABIERTO EN CAJON POR CUALQUIER MEDIO, MATERIAL TIPO \"B\", DE 0 A 2.00 M. DE PROFUNDIDAD, EN SECO, INCLUYE: AFINE DE TALUDES Y FONDO, TRAPALEOS,  MOVIMIENTOS Y ACARREOS DENTRO DE LA OBRA, HERRAMIENTAS Y MANO DE OBRA, MEDIDO EN BANCO.","M3 ","29.8000",0,"CERO PESOS 00/100 M.N.",0,364991]
[156002,"CARGA POR CUALQUIER MEDIO Y ACARREO EN CAMION DE MATERIAL DE DESPERDICIO PRODUCTO DE LAS EXCAVACIONES FUERA DE LA OBRA, A LUGAR PERMITIDO POR LAS AUTORIDADES CORRESPONDIENTES, MEDIDO EN BANCO. INCLUYE CARGA,  ACARREO Y DESCARGA A TIRO LIBRE, HERRAMIENTA, EQUIPO, MATERIALES DE CONSUMO Y MANO DE OBRA.","M3 ","49.4000",0,"CERO PESOS 00/100 M.N.",0,364996]
["01.02(160)","CIMENTACION                                       ",null,null,null,null,{"$f":"TEXT(SUM(G305:G311), \"$ #,##0.00 ;\")","v":"$ 0.00 "}]
[162002,"CIMIENTO DE PIEDRA BRAZA ACOMODADA PIEDRA POR PIEDRA, ASENTADA CON MORTERO CEMENTO-ARENA  EN PROPORCION 1:3. INCLUYE: MATERIALES, DESPERDICIOS, HERRAMIENTAS, LIMPIEZA, MANO DE OBRA Y ACARREO DE MATERIALES AL SITIO DE SU UTILIZACION.","M3 ","11.8000",0,"CERO PESOS 00/100 M.N.",0,365007]
[162302,"RODAPIE DE PIEDRA BRAZA, ACABADO APARENTE UNA CARA, ASENTADA CON MORTERO CEMENTO-ARENA 1:3. INCLUYE: MATERIALES, HERRAMIENTAS, PLOMEO,   LIMPIEZA, MANO DE OBRA Y ACARREO DE MATERIALES AL SITIO DE SU UTILIZACION.","M3 ","4.5000",0,"CERO PESOS 00/100 M.N.",0,365015]
[162404,"NIVELACION DE MURO DE MAMPOSTERIA CON RAJUELA DE PIEDRA BRAZA JUNTEADA CON MORTERO CEM-ARE 1:3. DE 0.10 M. DE ESPESOR X 0.40 M. DE ANCHO PROMEDIO. INCLUYE: NIVELACION, TRAZO, MANO DE OBRA Y HERRAMIENTA. (NO INCLUYE MATERIALES)","ML ","49.0000",0,"CERO PESOS 00/100 M.N.",0,365018]
[180054,"RELLENO EN CEPAS POR CUALQUIER MEDIO, CON MATERIAL DE BANCO, (ARENA LIMOSA) COMPACTADO AL 95% PROCTOR, EN CAPAS DE 15 CM, MEDIDO COMPACTO. INCLUYE:  SUMINISTRO DE AGUA PARA LOGRAR HUMEDAD OPTIMA, DESPERDICIOS, TENDIDO, TRASPALEOS,  EQUIPO, PRUEBAS DE COMPACTACION, AFINE, NIVELACION, HERRAMIENTAS, MANO DE OBRA Y  ACARREO HASTA EL SITIO DE SU COLOCACION.  (VOLUMEN MEDIDO COMPACTADO).","M3 ","2.9500",0,"CERO PESOS 00/100 M.N.",0,365036]
[180061,"RELLENO COMPACTADO CON GRAVA-ARENA, EN CEPAS Y/O CAJON, A BASE DE GRAVA DE 3/4\" DE DIAMETRO Y MATERIAL PRODUCTO DE EXCAVACION, CON UNA PROPORCION DE 50-50 %  A CUALQUIER PROFUNDIDAD, COMPACTADO AL 95% PROCTOR POR CUALQUIER MEDIO, EN CAPAS DE 15 CM. INCLUYE:SUMINISTRO DE AGUA PARA LOGRAR HUMEDAD OPTIMA, MEZCLADO, TENDIDO, TRASPALEOS,  DESPERDICIOS, EQUIPO, PRUEBAS DE COMPACTACION, AFINE, NIVELACION, HERRAMIENTAS, MANO DE OBRA Y  ACARREO HASTA EL SITIO DE SU COLOCACION.  (VOLUMEN MEDIDO COMPACTADO).","M3 ","37.9000",0,"CERO PESOS 00/100 M.N.",0,365040]
[180065,"RELLENO COMPACTADO CON EQUIPO MECANICO DE SUELO-GRAVA, EN CEPAS Y/O CAJON , A BASE DE MATERIAL DE BANCO  (TEPETATE, ARENA, ETC) Y GRAVA DE 3/4\" A 1 1/2\" DE DIAMETRO, CON UNA PROPORCION DE 30-70 %, EN VOLUMEN,   A CUALQUIER PROFUNDIDAD, COMPACTADO AL 95% DE SU P.V.S.M. PROCTOR, EN CAPAS DE 15 CM. INCLUYE: SUMINISTRO DE AGUA PARA LOGRAR HUMEDAD OPTIMA, MEZCLACO, TENDIDO, TRASPALEOS,  DESPERDICIOS, EQUIPO, PRUEBAS DE COMPACTACION, AFINE, NIVELACION, HERRAMIENTAS, MANO DE OBRA Y  ACARREO HASTA EL SITIO DE SU COLOCACION.  (VOLUMEN MEDIDO COMPACTADO).","M3 ","7.8500",0,"CERO PESOS 00/100 M.N.",0,365045]
[180103,"RELLENO COMPACTADO AL 95% PROCTOR, CON MATERIAL DE BANCO, EN CAPAS DE 15 CM DE ESPESOR, AGREGANDO AGUA PARA LOGRAR SU HUMEDAD OPTIMA, POR CUALQUIER MEDIO, INCLUYE: SUMINISTRO DE AGUA PARA LOGRAR HUMEDAD OPTIMA, TENDIDO, TRASPALEOS,  DESPERDICIOS, EQUIPO, PRUEBAS DE COMPACTACION, AFINE, NIVELACION, HERRAMIENTAS, MANO DE OBRA Y  ACARREO HASTA EL SITIO DE SU COLOCACION.  (VOLUMEN MEDIDO COMPACTADO).","M3 ","12.9000",0,"CERO PESOS 00/100 M.N.",0,365050]
["01.03(372)","PISOS                                             ",null,null,null,null,{"$f":"TEXT(SUM(G313:G315), \"$ #,##0.00 ;\")","v":"$ 0.00 "}]
[373022,"PISO DE CONCRETO F'C=150 KG/CM², T.M.A. 3/4\", DE 0.10 M. DE ESPESOR, COLADO EN CUADROS NO MAYORES DE 3.00 ML POR LADO, INCLUYE: TRAZO, NIVELACION, AFINE Y COMPACTACION DEL TERRENO, AGUA, DESPERDICIOS, ACARREOS, REGLEADO, ACABADO INTEGRAL RAYADO CON BROCHA DE PELO (SIN UTILIZACION DE PASTA), CIMBRA EN FRONTERAS, DESCIMBRA, COLADO, CURADO, REMATES, ESCALONADO, MUESTREADO, JUNTAS FRIAS CON VOLTEADOR, HERRAMIENTAS Y MANO DE OBRA.","M2 ","134.4000",0,"CERO PESOS 00/100 M.N.",0,365111]
[373766,"FORJADO DE NARIZ DE REMATE EN PISO DE  BANQUETAS, CON 10.0  X  10.0 CM. DE SECCION, INCLUYE SOLO: CIMBRA APARENTE, DESCIMBRA, GOTERO, FORJADO, CHAFLANES, PERFILADO, DESPERDICIOS, HERRAMIENTAS, Y MANO DE OBRA. (NO INCLUYE CONCRETO).","ML ","49.0000",0,"CERO PESOS 00/100 M.N.",0,365118]
[378301,"SUMINISTRO E INSTALACION DE GUIA PODOTACTIL COLOR AMARILLO DE 30 CM DE ANCHO, ELABORADA A BASE TABLETAS DE ARCILLA POLISINTETICA DE 30 X 30 CM., PARA ALTO TRAFICO, ANTIBACTERIAL, ANTIGRAFITI, RESISTENTE A CAMBIOS BRUSCOS DE TEMPERATURA, MARCA ARQCCESIBLE O SIMILAR EN GARANTIA, CALIDAD Y ESPECIFICACIONES, INCLUYE: GUIAS DE ADVERTENCIA, TRAZO, ADHESIVOS, DESPERDICIOS, ACARREOS, LIMPIEZA, MANO DE OBRA, HERRAMIENTA Y MATERIALES.","ML ","47.4000",0,"CERO PESOS 00/100 M.N.",0,365211]
["01.04(396)","LIMPIEZA                                          ",null,null,null,null,{"$f":"TEXT(SUM(G317:G317), \"$ #,##0.00 ;\")","v":"$ 0.00 "}]
[396012,"LIMPIEZA DE PISOS DE CONCRETO CON AGUA Y ACIDO MURIATICO AL 10%.","M2 ","134.4000",0,"CERO PESOS 00/100 M.N.",0,365143]
[15,"CUARTO DE MAQUINAS",null,null,null,null,{"$f":"TEXT(SUM(G319 + G326 + G337 + G341 + G346 + G352 + G356 + G359 + G361 + G366 + G368 + G372 + G381), \"$ #,##0.00 ;\")","v":"$ 0.00 "}]
["15.01(150)","TRABAJOS PRELIMINARES                             ",null,null,null,null,{"$f":"TEXT(SUM(G320:G325), \"$ #,##0.00 ;\")","v":"$ 0.00 "}]
[150020,"LIMPIEZA DE TERRENO RETIRANDO BASURA Y DESHIERBE FUERA DE LA OBRA. INCLUYE: HERRAMIENTAS, MANO DE OBRA, RECOLECCION, JUNTA Y RETIRO. (PROYECCION DE CUBIERTA).","M2 ","6.3000",0,"CERO PESOS 00/100 M.N.",0,364962]
[150110,"TRAZO Y NIVELACION DE EDIFICIOS ESTABLECIENDO REFERENCIAS DEFINITIVAS, CON TRANSITO Y NIVEL (EQUIPO TOPOGRAFICO), INCLUYE: PERSONAL TECNICO CALIFICADO, ESTACAS, MOJONERAS, LOCALIZACION DE ENTRE EJES, BANCOS DE NIVEL, MATERIALES PARA SEÑALAMIENTO, EQUIPO, HERRAMIENTA Y MANO DE OBRA.","M2 ","6.3000",0,"CERO PESOS 00/100 M.N.",0,364968]
[150210,"DESPALME DE TERRENO NATURAL POR CUALQUIER MEDIO, CON ESPESOR PROMEDIO DE 20 CM. INCLUYE: CARGA Y ACARREO DEL PRODUCTO FUERA DE LA OBRA, MANO DE OBRA, HERRAMIENTA Y EQUIPO. (PROYECCION DE CUBIERTA).","M2 ","6.3000",0,"CERO PESOS 00/100 M.N.",0,364977]
[152204,"EXCAVACION EN CEPAS POR CUALQUIER MEDIO, MATERIAL TIPO \"B\", DE 0 A 2.00 M. DE PROFUNDIDAD, EN SECO, INCLUYE: AFINE DE TALUDES Y FONDO, TRASPALEOS,  MOVIMIENTOS Y ACARREOS DENTRO DE LA OBRA, HERRAMIENTAS Y MANO DE OBRA, MEDIDO EN BANCO.","M3 ","2.3000",0,"CERO PESOS 00/100 M.N.",0,364983]
[152404,"EXCAVACION A CIELO ABIERTO EN CAJON POR CUALQUIER MEDIO, MATERIAL TIPO \"B\", DE 0 A 2.00 M. DE PROFUNDIDAD, EN SECO, INCLUYE: AFINE DE TALUDES Y FONDO, TRAPALEOS,  MOVIMIENTOS Y ACARREOS DENTRO DE LA OBRA, HERRAMIENTAS Y MANO DE OBRA, MEDIDO EN BANCO.","M3 ","2.5500",0,"CERO PESOS 00/100 M.N.",0,364992]
[156002,"CARGA POR CUALQUIER MEDIO Y ACARREO EN CAMION DE MATERIAL DE DESPERDICIO PRODUCTO DE LAS EXCAVACIONES FUERA DE LA OBRA, A LUGAR PERMITIDO POR LAS AUTORIDADES CORRESPONDIENTES, MEDIDO EN BANCO. INCLUYE CARGA,  ACARREO Y DESCARGA A TIRO LIBRE, HERRAMIENTA, EQUIPO, MATERIALES DE CONSUMO Y MANO DE OBRA.","M3 ","4.8500",0,"CERO PESOS 00/100 M.N.",0,364997]
["15.02(160)","CIMENTACION                                       ",null,null,null,null,{"$f":"TEXT(SUM(G327:G336), \"$ #,##0.00 ;\")","v":"$ 0.00 "}]
[162002,"CIMIENTO DE PIEDRA BRAZA ACOMODADA PIEDRA POR PIEDRA, ASENTADA CON MORTERO CEMENTO-ARENA  EN PROPORCION 1:3. INCLUYE: MATERIALES, DESPERDICIOS, HERRAMIENTAS, LIMPIEZA, MANO DE OBRA Y ACARREO DE MATERIALES AL SITIO DE SU UTILIZACION.","M3 ","1.5000",0,"CERO PESOS 00/100 M.N.",0,365008]
[162404,"NIVELACION DE MURO DE MAMPOSTERIA CON RAJUELA DE PIEDRA BRAZA JUNTEADA CON MORTERO CEM-ARE 1:3. DE 0.10 M. DE ESPESOR X 0.40 M. DE ANCHO PROMEDIO. INCLUYE: NIVELACION, TRAZO, MANO DE OBRA Y HERRAMIENTA. (NO INCLUYE MATERIALES)","ML ","6.2500",0,"CERO PESOS 00/100 M.N.",0,365019]
[167220,"DALA DE DESPLANTE DE CONCRETO F´C= 150 KG/CM2, T.M.A.= 3/4\", CON SECCION DE 14 X 25 CM., ARMADA CON 4 VARILLAS DEL #3 Y ESTRIBOS DEL #2 @ 20 CM., INCLUYE: ARMADO, COLADO, CURADO, VIBRADO, CIMBRA COMUN, DESCIMBRA, DESPERDICIOS, TRASLAPES, CRUCES DE VARILLAS CON ELEMENTOS TRANSVERSALES, ANDAMIOS, MANO DE OBRA, HERRAMIENTA Y ACARREO DE MATERIALES AL SITIO DE SU UTILIZACION, A CUALQUIER ALTURA.","ML ","5.9900",0,"CERO PESOS 00/100 M.N.",0,365025]
[167514,"DALA DE CONCRETO EN REMATE DE CIMENTACION, F'C=250 KG/CM2, T.M.A.=3/4\", CON SECCION DE 40 X 15 CMS., ARMADA CON 4 VARILLAS DEL # 4 Y ESTRIBOS DEL # 3 @ 20 CMS., INCLUYE: ARMADO, COLADO, CURADO, VIBRADO, CIMBRA COMUN, DESCIMBRA, DESPERDICIOS, MANO DE OBRA, HERRAMIENTA Y ACARREO DE MATERIALES AL SITIO DE SU UTILIZACION.","ML ","2.9900",0,"CERO PESOS 00/100 M.N.",0,365026]
[180054,"RELLENO EN CEPAS POR CUALQUIER MEDIO, CON MATERIAL DE BANCO, (ARENA LIMOSA) COMPACTADO AL 95% PROCTOR, EN CAPAS DE 15 CM, MEDIDO COMPACTO. INCLUYE:  SUMINISTRO DE AGUA PARA LOGRAR HUMEDAD OPTIMA, DESPERDICIOS, TENDIDO, TRASPALEOS,  EQUIPO, PRUEBAS DE COMPACTACION, AFINE, NIVELACION, HERRAMIENTAS, MANO DE OBRA Y  ACARREO HASTA EL SITIO DE SU COLOCACION.  (VOLUMEN MEDIDO COMPACTADO).","M3 ","0.3200",0,"CERO PESOS 00/100 M.N.",0,365037]
[180061,"RELLENO COMPACTADO CON GRAVA-ARENA, EN CEPAS Y/O CAJON, A BASE DE GRAVA DE 3/4\" DE DIAMETRO Y MATERIAL PRODUCTO DE EXCAVACION, CON UNA PROPORCION DE 50-50 %  A CUALQUIER PROFUNDIDAD, COMPACTADO AL 95% PROCTOR POR CUALQUIER MEDIO, EN CAPAS DE 15 CM. INCLUYE:SUMINISTRO DE AGUA PARA LOGRAR HUMEDAD OPTIMA, MEZCLADO, TENDIDO, TRASPALEOS,  DESPERDICIOS, EQUIPO, PRUEBAS DE COMPACTACION, AFINE, NIVELACION, HERRAMIENTAS, MANO DE OBRA Y  ACARREO HASTA EL SITIO DE SU COLOCACION.  (VOLUMEN MEDIDO COMPACTADO).","M3 ","2.2000",0,"CERO PESOS 00/100 M.N.",0,365041]
[180065,"RELLENO COMPACTADO CON EQUIPO MECANICO DE SUELO-GRAVA, EN CEPAS Y/O CAJON , A BASE DE MATERIAL DE BANCO  (TEPETATE, ARENA, ETC) Y GRAVA DE 3/4\" A 1 1/2\" DE DIAMETRO, CON UNA PROPORCION DE 30-70 %, EN VOLUMEN,   A CUALQUIER PROFUNDIDAD, COMPACTADO AL 95% DE SU P.V.S.M. PROCTOR, EN CAPAS DE 15 CM. INCLUYE: SUMINISTRO DE AGUA PARA LOGRAR HUMEDAD OPTIMA, MEZCLACO, TENDIDO, TRASPALEOS,  DESPERDICIOS, EQUIPO, PRUEBAS DE COMPACTACION, AFINE, NIVELACION, HERRAMIENTAS, MANO DE OBRA Y  ACARREO HASTA EL SITIO DE SU COLOCACION.  (VOLUMEN MEDIDO COMPACTADO).","M3 ","1.2000",0,"CERO PESOS 00/100 M.N.",0,365046]
[180103,"RELLENO COMPACTADO AL 95% PROCTOR, CON MATERIAL DE BANCO, EN CAPAS DE 15 CM DE ESPESOR, AGREGANDO AGUA PARA LOGRAR SU HUMEDAD OPTIMA, POR CUALQUIER MEDIO, INCLUYE: SUMINISTRO DE AGUA PARA LOGRAR HUMEDAD OPTIMA, TENDIDO, TRASPALEOS,  DESPERDICIOS, EQUIPO, PRUEBAS DE COMPACTACION, AFINE, NIVELACION, HERRAMIENTAS, MANO DE OBRA Y  ACARREO HASTA EL SITIO DE SU COLOCACION.  (VOLUMEN MEDIDO COMPACTADO).","M3 ","3.4700",0,"CERO PESOS 00/100 M.N.",0,365051]
[192862,"BASE PARA CASTILLO DE 40 X 40 X 40 CM, EN CIMENTACION DE PIEDRA, CON CONCRETO F'C=150 KG/CM2, TMA=3/4\", CON 4 VARILLAS DE 3/8\" DE DIAMETRO Y ESTRIBOS DE 1/4\" @ 20.0 CM. CIMBRA COMUN,  INCLUYE: CIMBRADO Y DESCIMBRADO, COLADO, VIBRADO, CURADO, MATERIALES, DESPERDICIOS, HERRAMIENTAS, LIMPIEZA, MANO DE OBRA Y ACARREO DE MATERIALES AL SITIO DE SU UTILIZACION.","PZA","4.0000",0,"CERO PESOS 00/100 M.N.",0,365064]
[916979,"IMPERMEABILIZACION DE DALAS DE DESPLANTE 3 CARAS CON PRODUCTOS FESTER, CON EL SIGUIENTE PROCEDIMIENTO: 1 CAPA APLICANDO MICROPRIMMER A RAZON DE 1.00 LTS X 2.50 ML, UNA CAPA DE TELA DE REFUERZO FESTERFLEX MARCA FESTER, ASEGURANDOSE UNA CORRECTA ADHERENCIA CON EL PRODUCTO ANTES APLICADO, Y OTRA APLICACION DE MICROPRIMMER CON LA MISMA PROPORCION ANTES MENCIONADA, ACABADO CON ARENA CERNIDA PARA LA CORRECTA ADHERENCIA DEL MORTERO, INCLUYE: ACARREOS Y ELEVACIONES DE LOS MATERIALES A CUALQUIER NIVEL, HERRAMIENTA Y MANO DE OBRA.","ML ","6.7200",0,"CERO PESOS 00/100 M.N.",0,365067]
["15.03(200)","ESTRUCTURA                                        ",null,null,null,null,{"$f":"TEXT(SUM(G338:G340), \"$ #,##0.00 ;\")","v":"$ 0.00 "}]
[210322,"CIMBRA DE MADERA, ACABADO APARENTE, EN LOSAS, INCLUYE: HABILITADO, CHAFLANES, CIMBRA, DESCIMBRA, GOTEROS, HERRAMIENTAS, LIMPIEZAS, MANO DE OBRA  Y ACARREO DE MATERIALES AL SITIO DE SU UTILIZACION, A CUALQUIER NIVEL.","M2 ","7.5200",0,"CERO PESOS 00/100 M.N.",0,365070]
[213003,"SUMINISTRO, HABILITADO, ARMADO Y COLOCACION DE ACERO DE REFUERZO FY=4,200 KG/CM2 (G.E.), DE 3/8\" (# 3 ), EN ESTRUCTURA, INCLUYE: MATERIALES, HABILITADO,  DOBLECES,  SILLETAS, ALAMBRE, GANCHOS, ESCUADRAS, TRASLAPES, DESPERDICIOS HERRAMIENTAS, MANO DE OBRA Y ACARREO DE MATERIALES AL SITIO DE SU COLOCACION.","KG ","51.2700",0,"CERO PESOS 00/100 M.N.",0,365071]
[216401,"SUMINISTRO Y COLOCACION DE CONCRETO HECHO EN OBRA, F'C=200 KG/CM2, T.M.A.= 3/4, R.N., EN ESTRUCTURA (COLUMNAS, TRABES, LOSAS, FALDONES, ETC), INCLUYE: MATERIALES, COLADO, AFINE, ACABADO, CURADO CON CURACRETO ROJO, VIBRADO, DESPERDICIO, HERRAMIENTAS, LIMPIEZA, MANO DE OBRA. A CUALQUIER NIVEL.","M3 ","0.7600",0,"CERO PESOS 00/100 M.N.",0,365073]
["15.04(310)","MUROS, CADENAS, CASTILLOS Y REPIZONES.            ",null,null,null,null,{"$f":"TEXT(SUM(G342:G345), \"$ #,##0.00 ;\")","v":"$ 0.00 "}]
[310212,"DALA DE CONCRETO F'C=150 KG/CM2, T.M.A.=3/4\", CON SECCION DE 14 X 20 CMS., ARMADA CON 4 VARILLAS DEL # 3 Y ESTRIBOS DEL NO. 2 @ 20 CMS., INCLUYE:  ARMADO, COLADO, CURADO, VIBRADO, CIMBRA COMUN, DESCIMBRA, TRASLAPES, CRUCES DE VARILLAS CON ELEMENTOS TRANSVERSALES, DESPERDICIOS, MANO DE OBRA, HERRAMIENTA Y ACARREO DE MATERIALES AL SITIO DE SU UTILIZACION, A CUALQUIER ALTURA.","ML ","8.7200",0,"CERO PESOS 00/100 M.N.",0,365084]
[310536,"DALA DE CONCRETO F'C=150 KG/CM2, T.M.A.=3/4\", CON SECCION DE 14 X 10 CMS., SIN ARMAR, INCLUYE: COLADO, CURADO, VIBRADO, CIMBRA APARENTE, DESCIMBRA, DESPERDICIOS, MANO DE OBRA, HERRAMIENTA Y ACARREO DE MATERIALES AL SITIO DE SU UTILIZACION, A CUALQUIER ALTURA.","ML ","6.7200",0,"CERO PESOS 00/100 M.N.",0,365086]
[312210,"CASTILLO DE CONCRETO F´C= 150 KGS/CM2 CON UNA SECCION DE 14 X 15 CM., ARMADO CON 4 VARILLAS DEL #3, ESTRIBOS DEL #2@15 CM.  INCLUYE: ARMADO, COLADO, CURADO, VIBRADO, CIMBRA COMUN, DESCIMBRA, TRASLAPES, CRUCES DE VARILLAS CON ELEMENTOS TRANSVERSALES, DESPERDICIOS, MANO DE OBRA, HERRAMIENTA Y ACARREO DE MATERIALES AL SITIO DE SU UTILIZACION, A CUALQUIER ALTURA.","ML ","9.6000",0,"CERO PESOS 00/100 M.N.",0,365087]
[314032,"MURO DE TABIQUE DE LAMA, DE 14 CMS. DE ESPESOR PROMEDIO, A SOGA, CON TABIQUE DE LAMA 7 X 14 X 28 CMS., ACABADO COMUN, ASENTADO CON MORTERO CEMENTO-ARENA EN PROPORCION 1:3, EN CUALQUIER NIVEL, INCLUYE: TRAZO, NIVELACION, PLOMEO, ANDAMIOS, DESPERDICIOS, MANO DE OBRA, LIMPIEZA Y ACARREO DE MATERIALES AL SITIO DE SU UTILIZACION.","M2 ","13.8400",0,"CERO PESOS 00/100 M.N.",0,365090]
["15.05(319)","ENTREPISOS, CUBIERTA Y ACABADOS DE AZOTEA         ",null,null,null,null,{"$f":"TEXT(SUM(G347:G351), \"$ #,##0.00 ;\")","v":"$ 0.00 "}]
[216582,"SUMINISTRO Y COLOCACION DE GARGOLA DE CONCRETO PREFABRICADA TIPO NAPRESA O SIMILAR, DE 22X40 CMS. PARA DESAGUE PLUVIAL, AMACIZADA CON MORTERO CEM-ARENA DE RIO 1:4, INCLUYE: MATERIALES PARA COLOCACION, ELEVACION, NIVELACION, HERRAMIENTAS, MANO DE OBRA Y ACARREOS AL SITIO DE SU COLOCACION.","PZA","1.0000",0,"CERO PESOS 00/100 M.N.",0,365094]
[322049,"ENTORTADO DE JALCRETO F´C= 100 KG/CM2, AGREGANDO IMPERMEABILIZANTE INTEGRAL A RAZON DE 1 KG/ 50 KG DE CEMENTO DE, DE 5.0 CM DE ESPESOR PROMEDIO, PARA DAR PENDIENTES EN ENTREPISOS Y AZOTEAS, ACABADO  APALILLADO FINO EN FORMA INTEGRAL (SIN PASTA), PARA RECIBIR IMPERMEABILIZANTE,  INCLUYE: MATERIALES, NIVELACION,  ELEVACIONES, DESPERDICIOS, HERRAMIENTAS,  LIMPIEZA, MANO DE OBRA Y ACARREOS AL SITIO DE SU COLOCACION, EN CUALQUIER NIVEL.","M2 ","5.1400",0,"CERO PESOS 00/100 M.N.",0,365095]
[324232,"FORJADO DE ZAVALETA EN AZOTEA A BASE DE JALCRETO SIMPLE F´C=100 KG/CM2, DE 15 CM POR LADO, A 45°, CON ACABADO APALILLADO, INCLUYE: MATERIALES, DESPERDICIOS, HERRAMIENTAS, EQUIPO DE SEGURIDAD, LIMPIEZA, MANO DE OBRA Y ACARREO DE MATERIALES AL LUGAR DE SU UTILIZACION A CUALQUIER NIVEL.","ML ","9.2200",0,"CERO PESOS 00/100 M.N.",0,365096]
[324332,"FORJADO DE PRETIL EN AZOTEA A BASE DE TABIQUE ROJO RECOCIDO DE 7 X 14 X 28 CM. A SOGA, DE 14 CM DE ESPESOR,  ASENTADO CON MORTERO DE  CEMENTO-CAL ARENA EN PROPORCION DE 1:2:6, INCLUYE: MATERIALES, DESPERDICIOS, NIVELACION, PLOMEO,  ELEVACIONES, HERRAMIENTAS, FLETES, LIMPIEZAS, MANO DE OBRA Y ACAREOS DE MATERIALES AL SITIO DE SU UTILIZACION. A CUALQUIER NIVEL.","M2 ","4.3400",0,"CERO PESOS 00/100 M.N.",0,365097]
[344125,"IMPERMEABILIZACION DE MUROS O LOSAS, A BASE DE MEMBRANA PREFABRICADA, MCA. IMPERQUIMIA, UNIPLAS AERO PLUS SBS, ALTO DESEMPEÑO CON VENTILACION ANTIABOLSAMIENTOS, FABRICADA A BASE DE ASFALTOS MODIFICADOS CON POLIMEROS SINTETICOS SBS (ESTIRENO BUTADIENO ESTIRENO) REFORZADA CON MALLA POLIESTER DE ALTA RESISTENCIA, ACABADO APARENTE A BASE DE GRAVILLA ESMALTADA A FUEGO, 4.5 MM  DE ESPESOR TOTAL, COLOR ROJO TERRACOTA, GARANTIA POR ESCRITO DE 10 AÑOS, POR LA EMPRESA CONTRATISTA., INCLUYE: LIMPIEZA Y PREPARACION DE LA SUPERFICIE, APLICACION DE PRIMER IMPERCOAT PRIMARIO SL, PARA ANCLAJE Y TAPAPORO DE LA SUPERFICIE, SELLADO DE FISURAS Y GRIETAS A BASE DE CEMENTO PLASTICO BITUMINOSO IMPERCOAT CEMENTO SBS, SUMINISTRO Y COLOCACION DE MEMBRANA POR MEDIO DE TERMOFUSION A BASE DE FUEGO DE SOPLETE DE GAS BUTANO, HACIENDO TRASLAPES MINIMOS DE 0.10 MTS. EN AMBOS SENTIDOS, SELLADO DE ORILLAS, REMATES Y TRASLAPES, MATERIALES MENORES Y DE CONSUMO, CORTES, DESPERDICIOS, LIMPIEZA GENERAL, HERRAMIENTAS, MANO DE OBRA ESPECIALIZADA Y ACARREOS AL SITIO DE SU COLOCACION.","M2 ","5.1400",0,"CERO PESOS 00/100 M.N.",0,365099]
["15.06(355)","RECUBRIMIENTOS Y ACABADOS                         ",null,null,null,null,{"$f":"TEXT(SUM(G353:G355), \"$ #,##0.00 ;\")","v":"$ 0.00 "}]
[355022,"APLANADO DE MUROS Y/O TECHOS CON MORTERO CEMENTO-CAL-ARENA DE RIO EN PROP. 1:2:6 DE 2 CM. DE ESPESOR PROMEDIO, A PLOMO Y REGLA, ACABADO APALILLADO FINO, INCLUYE: MATERIALES, DESPERDICIOS, ANDAMIOS, HERRAMIENTAS, PLOMEO, NIVELACION, REMATES, LIMPIEZA DEL AREA DE TRABAJO Y ACARREO DE MATERIALES AL SITIO DE SU UTILIZACION. A CUALQUIER NIVEL.\n","M2 ","45.2000",0,"CERO PESOS 00/100 M.N.",0,365101]
[357322,"BOQUILLAS EN PUERTAS Y VENTANAS, CON MORTERO CEMENTO-CAL-ARENA 1:2:6, INCLUYE: ANDAMIOS Y ACARREO DE MATERIALES AL SITIO DE SU UTILIZACION.","ML ","20.8000",0,"CERO PESOS 00/100 M.N.",0,365105]
[357352,"FILETES Y BOLEADOS, HECHOS CON MORTERO CEMENTO-CAL-ARENA EN PROPORCION 1:2:6, INCLUYE: DESPERDICIOS, ANDAMIOS Y ACARREO DE MATERIALES AL SITIO DE SU UTILIZACION, A CUALQUIER NIVEL.","ML ","13.4000",0,"CERO PESOS 00/100 M.N.",0,365107]
["15.07(372)","PISOS                                             ",null,null,null,null,{"$f":"TEXT(SUM(G357:G358), \"$ #,##0.00 ;\")","v":"$ 0.00 "}]
[373026,"PISO DE CONCRETO HECHO EN OBRA F'C=200 KG/CM2, TMA 3/4\", DE 10 CMS. DE ESPESOR, ACABADO RAYADO CON BROCHA, EN FORMA INTERGRAL, SIN UTILIZACION DE PASTA, COLADO A CUADROS, CON REFUERZO DE MALLA ELECTROSOLDADA 6-6 / 10-10, INCLUYE: TRAZO, NIVELACION, AFINE Y COMPACTACION DEL TERRENO, MATERIALES, CIMBRA DE FRONTERA, DESCIMBRA, DESPERDICIOS, CURADO, VIBRADO, MUESTREADO, JUNTAS FRIAS, VOLTEADOR,  HERRAMIENTAS, MANO DE OBRA Y ACARREOS DE MATERIALES AL SITIO DE SU UTILIZACION.","M2 ","3.6700",0,"CERO PESOS 00/100 M.N.",0,365114]
[373502,"CEJA DE CONCRETO F'C=150 KG/CM2, TMA=3/4\" DE 12.0 X 18.0 CM DE SECCION PROMEDIO, ARMADA CON 1 VARILLA #3 (3/8\") Y ESTRIBOS DE 1/4\" @ 25.0 CM, EN CUALQUIER NIVEL. INCLUYE: CIMBRA APARENTE, DESCIMBRA, COLADO, VIBRADO, CURADO, PERFILADO, CHAFLANES, GOTERO, LIMPIEZA, HERRAMIENTAS, MATERIALES, DESPERDICIOS Y MANO DE OBRA.","ML ","6.3000",0,"CERO PESOS 00/100 M.N.",0,365116]
["15.08(382)","ELEMENTOS COMPLEMENTARIOS DE ALBAÑILERIA          ",null,null,null,null,{"$f":"TEXT(SUM(G360:G360), \"$ #,##0.00 ;\")","v":"$ 0.00 "}]
[382053,"BASE DE CONCRETO F'C=150 KG/CM, DE 15 CM DE ALTURA., ARMADA CON  VARILLAS DE 3/8\"@20 CM. EN AMBOS SENTIDOS, PARA COLOCACION DE EQUIPOS DE EN GENERAL,  ACABADO APALILLADO, INCLUYE: MATERIALES, COLADO, VIBRADO, CURADO, CIMBRA Y DESCIMBRA, NIVELACION,  DESPERDICIOS, REMATES,  HERRAMIENTAS, LIMPIEZA, MANO DE OBRA  Y ACARREO DE MATERIAL AL SITIO DE SU UTILIZACION, A CUALQUIER NIVEL.","M2 ","2.0000",0,"CERO PESOS 00/100 M.N.",0,365124]
["15.09(393)","PINTURA                                           ",null,null,null,null,{"$f":"TEXT(SUM(G362:G365), \"$ #,##0.00 ;\")","v":"$ 0.00 "}]
[393010,"PINTURA VINIL-ACRÍLICA A BASE DE AGUA ACABADO SEMIMATE  LAVABLE, PARA INTERIORES Y EXTERIORES QUE NO DESPRENDA VAPORES TÓXICOS NI OLORES DESAGRADABLES, CON LAS SIGUIENTES CARACTERÍSTICAS ( SÓLIDOS POR PESO 46-52%, SÓLIDOS POR VOLUMEN 30-36%, VISCOSIDAD DE 100-130 UK A 25°C, DENSIDAD > O = 1.2 TON/M3., LAVABILIDAD > O = 4,000 CICLOS, TIEMPO DE SECADO AL TACTO, 30-40 MIN., TIEMPO DE SECADO DURO < O = 8 HRS., CICLO DE CURADO DE 7 DIAS, PH 6-8, RENDIMIENTO EN SUP. LISA 8-10 M2/LT., FINEZA DE MOLIDO (HEGMAN) 3-7 UH.)  EN CADENAS DE DESPLANTE, A UNA CARA, TRABAJO TERMINADO, A DOS MANOS, INCLUYE: MATERIALES MENORES Y DE CONSUMO, PREPARACION DE LA SUPERFICIE, SELLADO DE LA SUPERFICIE, HERRAMIENTAS, LIMPIEZA, MANO DE OBRA Y  ACARREOS DE MATERIALES AL SITIO DE SU UTILIZACION.","ML ","13.4400",0,"CERO PESOS 00/100 M.N.",0,365126]
[393022,"PINTURA VINIL-ACRÍLICA A BASE DE AGUA ACABADO SEMIMATE  LAVABLE, PARA INTERIORES Y EXTERIORES QUE NO DESPRENDA VAPORES TÓXICOS NI OLORES DESAGRADABLES, CON LAS SIGUIENTES CARACTERÍSTICAS ( SÓLIDOS POR PESO 46-52%, SÓLIDOS POR VOLUMEN 30-36%, VISCOSIDAD DE 100-130 UK A 25°C, DENSIDAD > O = 1.2 TON/M3., LAVABILIDAD > O = 4,000 CICLOS, TIEMPO DE SECADO AL TACTO, 30-40 MIN., TIEMPO DE SECADO DURO < O = 8 HRS., CICLO DE CURADO DE 7 DIAS, PH 6-8, RENDIMIENTO EN SUP. LISA 8-10 M2/LT., FINEZA DE MOLIDO (HEGMAN) 3-7 UH.)  EN MUROS APLANADOS DE MEZCLA APALILLADO O PULIDO, TRABAJO TERMINADO, A DOS MANOS, INCLUYE: MATERIALES MENORES Y DE CONSUMO, ANDAMIOS, PREPARACION DE LA SUPERFICIE, SELLADO DE LA SUPERFICIE, HERRAMIENTAS, LIMPIEZA, MANO DE OBRA Y  ACARREOS DE MATERIALES AL SITIO DE SU UTILIZACIÓN.","M2 ","45.2000",0,"CERO PESOS 00/100 M.N.",0,365127]
[393052,"PINTURA VINIL-ACRÍLICA A BASE DE AGUA ACABADO SEMIMATE  LAVABLE, PARA INTERIORES Y EXTERIORES QUE NO DESPRENDA VAPORES TÓXICOS NI OLORES DESAGRADABLES, CON LAS SIGUIENTES CARACTERÍSTICAS ( SÓLIDOS POR PESO 46-52%, SÓLIDOS POR VOLUMEN 30-36%, VISCOSIDAD DE 100-130 UK A 25°C, DENSIDAD > O = 1.2 TON/M3., LAVABILIDAD > O = 4,000 CICLOS, TIEMPO DE SECADO AL TACTO, 30-40 MIN., TIEMPO DE SECADO DURO < O = 8 HRS., CICLO DE CURADO DE 7 DIAS, PH 6-8, RENDIMIENTO EN SUP. LISA 8-10 M2/LT., FINEZA DE MOLIDO (HEGMAN) 3-7 UH.)  EN LOSAS Y ELEMENTOS DE CONCRETO, TRABAJO TERMINADO, A DOS MANOS, INCLUYE: MATERIALES MENORES Y DE CONSUMO, ANDAMIOS, PREPARACION DE LA SUPERFICIE DE CONCRETO, SELLADO DE LA SUPERFICIE, HERRAMIENTAS, LIMPIEZA, MANO DE OBRA Y  EQUIPO DE SEGURIDAD. A CUALQUIER ALTURA.","M2 ","7.5200",0,"CERO PESOS 00/100 M.N.",0,365130]
[393122,"PINTURA DE ESMALTE ALQUIDALICO ANTICORROSIVO, ACABADO BRILLANTE, PARA INTERIORES Y EXTERIORES QUE NO DESPRENDA VAPORES TÓXICOS NI OLORES DESAGRADABLES, CON LAS SIGUIENTES CARACTERÍSTICAS ( SÓLIDOS POR PESO 49-60%, SÓLIDOS POR VOLUMEN 40-46%, VISCOSIDAD DE 110-160 UK A 25°C, DENSIDAD 0.9-1.2 TON/M3., BRILLO A 60°C, 90%, TIEMPO DE SECADO AL TACTO, < O = 6 HRS., TIEMPO DE SECADO DURO < O = 24 HRS., ADHERENCIA 100%, RENDIMIENTO EN SUP. LISA 8-10 M2/LT., DILUCIÓN MÁXIMA (AGUARRÁS, THINER), 15 %,  EN HERRERIA CERRADA (DUELA DE LAMINA ACANALADA), TRABAJO TERMINADO, A DOS MANOS, INCLUYE: MATERIALES MENORES Y DE CONSUMO, ANDAMIOS, PREPARACION DE LA SUPERFICIE, HERRAMIENTAS, LIMPIEZA, MANO DE OBRA Y  EQUIPO DE SEGURIDAD. A CUALQUIER NIVEL.","M2 ","9.8000",0,"CERO PESOS 00/100 M.N.",0,365131]
["15.10(396)","LIMPIEZA                                          ",null,null,null,null,{"$f":"TEXT(SUM(G367:G367), \"$ #,##0.00 ;\")","v":"$ 0.00 "}]
[396012,"LIMPIEZA DE PISOS DE CONCRETO CON AGUA Y ACIDO MURIATICO AL 10%.","M2 ","3.6700",0,"CERO PESOS 00/100 M.N.",0,365144]
["15.11(410)","CANCELERIA, HERRERIA, ALUMINIO, VIDRIOS Y CHAPAS  ",null,null,null,null,{"$f":"TEXT(SUM(G369:G371), \"$ #,##0.00 ;\")","v":"$ 0.00 "}]
[412013,"SUMINISTRO, FABRICACION Y COLOCACION DE HERRERIA TUBULAR Y/O ESTRUCTURAL, INCLUYE: SOLDADURA, ELEMENTOS DE FIJACION, MATERIALES MENORES, DESCALIBRES, DESPERDICIOS, BISAGRAS, FONDO ANTICORROSIVO, FLETES, HERRAMIENTAS, EQUIPO, MANO DE OBRA  Y ACARREO DE MATERIALES AL SITIO DE SU UTLIZACION.","KG ","115.0000",0,"CERO PESOS 00/100 M.N.",0,365153]
[424043,"SUMINISTRO Y COLOCACION DE CHAPA PHILLIPS X-720 O AS-725, INCLUYE: PERFORACIONES, ELEMENTOS DE FIJACION, HERRAMIENTAS, MANO DE OBRA Y  ACARREO DE MATERIAL AL SITIO DE SU UTILIZACION.","PZA","1.0000",0,"CERO PESOS 00/100 M.N.",0,365157]
[424082,"SUMINISTRO Y COLOCACION DE CERRADURA DE SOBREPONER DE SEGURIDAD CON UN SOLO CILINDRO DE ACCION POR AMBOS LADOS TIPO BARRA, MCA. PHILLIPS MODELO 800 FD, INCLUYE: ELEMANTOS DE FIJACION, AJUSTES PRUEBAS, HERRAMIENTAS Y MANO DE OBRA.","PZA","1.0000",0,"CERO PESOS 00/100 M.N.",0,365158]
["15.12(511)","INSTALACION ELECTRICA EN OBRA EXTERIOR            ",null,null,null,null,{"$f":"TEXT(SUM(G373:G380), \"$ #,##0.00 ;\")","v":"$ 0.00 "}]
[514034,"SALIDA ELECTRICA DE CENTRO AISLADA OCULTA, CON TUBERIA Y CONEXIONES CONDUIT DE PVC. PESADO  DE AJUSTE DE 13 Y 19 MM. DE DIAMETRO, CABLE VINANEL THW-LS 600 V. A 75° C, 90° C, MARCA CONDUCTORES MONTERREY, (VIAKON-PROTOCOLIZADO), CABLE VINANEL 21 THW-LS 600 V. A 75° C, 90° C, MARCA CONDUMEX (CONDUMEX PROTOCOLIZADO).  CALIBRE 12 EN FASES Y 12 EN TIERRA FISICA, CAJAS DE REGISTRO  CUADRADAS, CHALUPAS Y TAPAS DE  PVC REFORZADO., INCLUYE: TRAZO, RANURAS, MATERIALES MENORES, HERRAMIENTA, MANO DE OBRA ESPECIALIZADA , CONEXIONES, LIMPIEZA DEL AREA DE TRABAJO, PRUEBAS, DESPERDICIOS Y ACARREO DEL MATERIAL AL SITIO DE SU COLOCACION, EN CUALQUIER NIVEL.","SAL","1.0000",0,"CERO PESOS 00/100 M.N.",0,365162]
[518044,"SALIDA ELECTRICA PARA CONTACTO DUPLEX POLARIZADO, OCULTA, CON TUBERIA Y CONEXIONES CONDUIT DE PVC. PESADO DE 13 Y 19 MM. DE DIAMETRO,  CABLE VINANEL THW-LS 600 V. A 75° C, 90° C, MARCA CONDUCTORES MONTERREY, (VIAKON-PROTOCOLIZADO), CABLE VINANEL 21 THW-LS 600 V. A 75° C, 90° C, MARCA CONDUMEX (CONDUMEX PROTOCOLIZADO)., CALIBRE 10 Y 12, CAJAS DE REGISTRO  CUADRADAS, CHALUPAS Y TAPAS DE PVC REFORZADO, CONTACTO QUINZIÑO, TAPA DE ALUMINIO, INCLUYE: TRAZO, RANURAS, CONEXION A TIERRA, ACCESORIOS, MATERIALES MENORES Y DE CONSUMO, PRUEBAS, DESPERDICIOS Y ACARREO DEL MATERIAL AL SITIO DE SU COLOCACION, A CUALQUIER NIVEL.","SAL","1.0000",0,"CERO PESOS 00/100 M.N.",0,365163]
[522034,"SALIDA ELECTRICA PARA  APAGADOR DOBLE, OCULTA, CON TUBERIA Y CONEXIONES CONDUIT DE PVC TIPO PESADO DE 13 Y 19 MM. DE DIAMETRO, CABLE VINANEL THW-LS 600 V. A 75° C, 90° C, MARCA CONDUCTORES MONTERREY, (VIAKON-PROTOCOLIZADO), CABLE VINANEL 21 THW-LS 600 V. A 75° C, 90° C, MARCA CONDUMEX (CONDUMEX PROTOCOLIZADO). CALIBRE 12, CAJAS CUADRADAS, CHALUPAS Y TAPAS DE PVC, APAGADORES QUINZIÑO, TAPA DE ALUMINIO, INCLUYE: MATERIALES MENORES, PRUEBAS, DESPERDICIOS Y ACARREO DEL MATERIAL AL SITIO DE SU COLOCACION, A CUALQUIER NIVEL.","SAL","1.0000",0,"CERO PESOS 00/100 M.N.",0,365164]
[524526,"ALIMENTACION ELECTRICA DE FUERZA PARA SISTEMA DE EQUIPO HIDRONEUMATICO, CON TUBERIA Y CONEXIONES CONDUIT GALV. P.G. ROSCADA DE  25 MM. DE DIAMETRO,  Y TUBO LIQUATITE DE 1\" DE DIAM.,  CABLE VINANEL THW-LS 600 V. A 75° C, 90° C, MARCA CONDUCTORES MONTERREY, (VIAKON-PROTOCOLIZADO), CABLE VINANEL 21 THW-LS 600 V. A 75° C, 90° C, MARCA CONDUMEX (CONDUMEX PROTOCOLIZADO). CALIBRES 10, CONDULET RECTANGULAR FSC CON TAPA Y EMPAQUE,  INCLUYE: TRAZO,  MATERIALES MENORES, CONEXIONES, CONECTORES, HERRAMIENTAS,  PRUEBAS, CORTES, AJUSTES,  DESPERDICIOS, LIMPIEZAS,  MANO DE OBRA ESPECIALIZADA,  Y ACARREO DEL MATERIAL AL SITIO DE SU COLOCACION. (LONGITUD CONSIDERADA DESDE EL TABLERO DE ALIMENTACION AL TABLERO DEL EQUIPO, DENTRO DEL CUARTO)","SAL","1.0000",0,"CERO PESOS 00/100 M.N.",0,365165]
[542058,"SUMINISTRO Y COLOCACION DE CENTRO DE CARGA TRIFASICO, MARCA SQUARE- D TIPO QO-312-L-125G, 12 POLOS, 125 A. CON ZAPATAS, INCLUYE: CONEXIONES, MATERIALES MENORES Y DE CONSUMO, PRUEBAS, FLETES, HERRAMIENTAS, IDENTIFICACION DE CIRCUITOS, LIMPIEZA YMANO DE OBRA CALIFICADA.","PZA","1.0000",0,"CERO PESOS 00/100 M.N.",0,365177]
[543012,"SUMINISTRO Y COLOCACION DE INTERRUPTOR TERMOMAGNETICO DERIVADO CON 1 POLOS, DE 15-60 AMPERES, MCA. SQUARE D, CAT. QO. INCLUYE: PRUEBAS, MATERIALES MENORES, HERRAMIENTAS, MANO DE OBRA ESPECIALIZADA  Y ACARREO DE MATERIALES AL SITIO DE SU COLOCACION.","PZA","2.0000",0,"CERO PESOS 00/100 M.N.",0,365179]
[543020,"SUMINISTRO Y COLOCACION DE INTERRUPTOR TERMOMAGNETICO CON 2 POLOS, DE 15-50 AMPERES, MCA. SQUARE D, CAT. QO. INCLUYE: PRUEBAS, FLETES, MATERIALES MENORES Y ACARREO DE MATERIALES AL SITIO DE SU COLOCACION.","PZA","2.0000",0,"CERO PESOS 00/100 M.N.",0,365180]
[550221,"SUMINISTRO Y COLOCACION DE LUMINARIA HERMETICO DE SOBREPONER DE 2 X 16 WATTS, MCA. NOVALUX O SIMILAR, MOD. PISCIS, CAT. NVL-PIS-216-LED-P, EN GABINETE DE 1.27 X 0.17 MTS. FABRICADO EN RESINA POLIESTER Y FIBRA DE VIDRIO CON ACABADO A BASE DE PINTURA EN POLVO DE POLIESTER, APLICADA ELECTROSTATICAMENTE Y TERMOENDURECIDA, DIFUSOR DE ACRILICO DE ALTO IMPACTO TRANSPARENTE TERMOFORMADO, CON UNA REFLECTANCIA MINIMA DE 93%, IP-65 DISEÑADA A PRUEBA DE POLVO, VAPORES Y AGUA, PARA OPERAR CON DOS LAMPARA LED LINEAL T8, 16 WATTS CADA UNA, MULTIVOLTAJE 120-277 VOLTS , TEMPERATURA DE COLOR 4000°K, IRC>80,  VIDA UTIL DE 40,000 HRS., 2350 LUMENES TOTALES COMO MINIMO, DRIVER INTEGRADO , LA LUMINARIA (COMPLETA) DEBERA CUMPLIR CON LA NORMA ANCE, INCLUYE: MATERIALES DE FIJACION, LAMPARAS, PRUEBAS, COPIA DE CERTIFICACION ANCE ANEXA EN ELTRAMITE DE LA ESTIMACION, NIVELACION, MATERIALES MENORES Y DE CONSUMO, CONEXIONES, DESPERDICIOS, HERRAMIENTAS, ANDAMIOS, MANO DE OBRA, MATERIALES DE FIJACION, LIMPIEZA DEL AREA DE TRABAJO, Y ACARREO DE MATERIALES AL SITIO DE SU COLOCACION. A CUALQUIER ALTURA.","PZA","1.0000",0,"CERO PESOS 00/100 M.N.",0,365183]
["15.13(565)","INSTALACION HIDRAULICA, SANITARIA Y GAS EN O. EXT.",null,null,null,null,{"$f":"TEXT(SUM(G382:G387), \"$ #,##0.00 ;\")","v":"$ 0.00 "}]
[579030,"SUCCION PARA LLENADO DE HIDRONEUMATICO A BASE DE TUBERIA DE COBRE DE 1 1/4\" A 1 1/2\" , DESDE LA CISTERNA HASTA EL EQUIPO DE BOMBEO, CONSIDERANDO UNA DISTANCIA PROMEDIO DE 10 MTS. DESDE LA UBICACION DE LA CISTERNA AL EQUIPO HIDRONEUMATICO,  INCLUYE: TRAZO, EXCAVACIONES, RELLENOS,  ENCOFRACO CON CONCRETO F'C=100 KG/CM2, LINEAS DE SUCCION, LINEA DE RETORNO PARA PRUEBAS, PICHANCHA DE 1 1/2\", VALVULAS,  MATERIALES MENORES, DESPERDICIOS, CONEXIONES, PRUEBAS, LIMPIEZA,  Y ACARREO DE TODOS LOS MATERIALES AL SITIO DE SU UTILIZACION.","PZA","1.0000",0,"CERO PESOS 00/100 M.N.",0,365188]
[585006,"SUMINISTRO Y COLOCACION DE TUBO DE P.V.C. SANITARIO (ANGER),1 CAMPANA DE 2\" (50 MM) DIAM., INCLUYE: CONEXIONES, TRAZO, EXCAVACION, RELLENO COMPACTADO, DESPERDICIOS, PRUEBAS, PASOS EN CIMENTACION Y ACARREO DE MATERIALES AL SITIO DE SU COLOCACION.","ML ","2.5000",0,"CERO PESOS 00/100 M.N.",0,365189]
[589317,"SUMINISTRO Y TENDIDO DE TUBERIA DE CPVC-CTS, PARA CEMENTAR  DE 50 MM DE DIAM. INCLUYE: TRAZO, CONEXIONES (COPLES, CODOS, TEES, NIPLES, ETC), DESPERDICIOS, ENCOFRADO CON CONCRETO F'C=100 KG/CM2 DE 6 X 15 CMS DE SECCION, MATERIALES MENORES Y DE CONSUMO, PRUEBAS, EXCAVACION, RELLENO, HERRAMIENTAS, MANO DE OBRA Y ACARREO DE MATERIALES AL SITIO DE SU COLOCACION.","ML ","2.5000",0,"CERO PESOS 00/100 M.N.",0,365194]
[591414,"SUMINISTRO Y COLOCACION DE VALVULA DE ESFERA (BOLA) EXTREMOS ROSCADOS 2\" (51 MM) DE DIAMETRO. MCA URREA, FIG. 550,  INCLUYE: MATERIALES MENORES Y DE CONSUMO, HERRAMIENTAS, PRUEBAS, LIMPIEZA, MANO DE OBRA Y ACARREOS DE MATERIALES AL SITIO DE SU COLOCACION.","PZA","1.0000",0,"CERO PESOS 00/100 M.N.",0,365199]
[592012,"SUMINISTRO Y COLOCACION DE CESPOL BOTE DE P.V.C. CON REJILLA CROMADA. INCLUYE: MATERIALES MENORES Y DE CONSUMO, HERRAMIENTAS, DESPERDICIOS, PRUEBAS, MANO DE OBRA Y ACARREO DE MATERIALES AL SITIO DE SU COLOCACION.","PZA","1.0000",0,"CERO PESOS 00/100 M.N.",0,365200]
[918592,"SUMINISTRO Y COLOCACION DE EQUIPO DE BOMBEO INTEGRADO DE VELOCIDAD VARIABLE A PRESION CONSTANTE,  MARCA VICTORIA, RAINFORCE  MOD. RF2B3-200VV, CONSTRUIDO CON DOS MOTOBOMBA CENTRIFUGAS ELECTRICAS, MCA. VICTORIA, MOD. AF3-200 CWN, DE 1 1/2\" EN LA SUCCION POR 1 1/2\" EN LA DESCARGA, ACOPLADA DIRECTAMENTE A MOTOR ELECTRICO DE 2 HP., 220-440 V., 3 FASES, 60 HZ, 3500 RPM, TABLERO DE CONTROL INTELIGENTE CON VARIADOR DE VELOCIDAD, PROTECCIONES POR BAJO Y ALTO VOLTAJE, CORTO CIRCUITO, SISTEMA DE ARRANQUE SUAVE, DESCARGA Y FUNCIONAMIENTO EN SECO SELLADO HERMETICAMENTE,  DOS TANQUES PRECARGADOS DE DIAFRAGMA, MCA. VICTORIA DE 4.4 GALONES DE CAPACIDAD, INCLUYE: CABEZAL DE DESCARGA EN FIERRO GRIS DE 3\" DE DIAMETRO EXTREMO BRIDADO, CHASIS METALICO, MANOMETRO ANALOGO, SENSOR DE PRESION,  MATERIALES MENORES Y DE CONSUMO, CONEXIONES HIDRAULICAS Y ELECTRICAS, BRIDA DE FO.FO. DE 3\" CON UN EXTREMO ROSCADO, VALVULA PARA PRECARGADO DE CIERRE RAPIDO, HERRAMIENTAS, CALIBRACION, PRUEBAS, PUESTA EN MARCHA, MANUAL DE OPERACION, GARANTIAS POR ESCRITO, LIMPIEZA TRASLADOS AL SITIO DE SU INSTALACION Y MANO DE OBRA ESPACIALIZACA.","PZA","1.0000",0,"CERO PESOS 00/100 M.N.",0,365204]
[17,"CANCHA DE USOS MULTIPLES 1",null,null,null,null,{"$f":"TEXT(SUM(G389 + G396 + G405 + G411 + G416 + G418 + G421), \"$ #,##0.00 ;\")","v":"$ 0.00 "}]
["17.01(150)","TRABAJOS PRELIMINARES                             ",null,null,null,null,{"$f":"TEXT(SUM(G390:G395), \"$ #,##0.00 ;\")","v":"$ 0.00 "}]
[150020,"LIMPIEZA DE TERRENO RETIRANDO BASURA Y DESHIERBE FUERA DE LA OBRA. INCLUYE: HERRAMIENTAS, MANO DE OBRA, RECOLECCION, JUNTA Y RETIRO. (PROYECCION DE CUBIERTA).","M2 ","618.3000",0,"CERO PESOS 00/100 M.N.",0,364963]
[150120,"TRAZO Y NIVELACION DE EXTERIORES ESTABLECIENDO REFERENCIAS DEFINITIVAS, CON TRANSITO Y NIVEL (EQUIPO TOPOGRAFICO), INCLUYE: PERSONAL TECNICO CALIFICADO, ESTACAS, MOJONERAS, LOCALIZACION DE EJES Y/O ENTRE EJES, BANCOS DE NIVEL, MATERIALES PARA SEÑALAMIENTO, EQUIPO, HERRAMIENTA Y MANO DE OBRA.","M2 ","618.3000",0,"CERO PESOS 00/100 M.N.",0,364971]
[150210,"DESPALME DE TERRENO NATURAL POR CUALQUIER MEDIO, CON ESPESOR PROMEDIO DE 20 CM. INCLUYE: CARGA Y ACARREO DEL PRODUCTO FUERA DE LA OBRA, MANO DE OBRA, HERRAMIENTA Y EQUIPO. (PROYECCION DE CUBIERTA).","M2 ","618.3000",0,"CERO PESOS 00/100 M.N.",0,364978]
[152204,"EXCAVACION EN CEPAS POR CUALQUIER MEDIO, MATERIAL TIPO \"B\", DE 0 A 2.00 M. DE PROFUNDIDAD, EN SECO, INCLUYE: AFINE DE TALUDES Y FONDO, TRASPALEOS,  MOVIMIENTOS Y ACARREOS DENTRO DE LA OBRA, HERRAMIENTAS Y MANO DE OBRA, MEDIDO EN BANCO.","M3 ","16.3000",0,"CERO PESOS 00/100 M.N.",0,364984]
[152404,"EXCAVACION A CIELO ABIERTO EN CAJON POR CUALQUIER MEDIO, MATERIAL TIPO \"B\", DE 0 A 2.00 M. DE PROFUNDIDAD, EN SECO, INCLUYE: AFINE DE TALUDES Y FONDO, TRAPALEOS,  MOVIMIENTOS Y ACARREOS DENTRO DE LA OBRA, HERRAMIENTAS Y MANO DE OBRA, MEDIDO EN BANCO.","M3 ","247.3000",0,"CERO PESOS 00/100 M.N.",0,364993]
[156002,"CARGA POR CUALQUIER MEDIO Y ACARREO EN CAMION DE MATERIAL DE DESPERDICIO PRODUCTO DE LAS EXCAVACIONES FUERA DE LA OBRA, A LUGAR PERMITIDO POR LAS AUTORIDADES CORRESPONDIENTES, MEDIDO EN BANCO. INCLUYE CARGA,  ACARREO Y DESCARGA A TIRO LIBRE, HERRAMIENTA, EQUIPO, MATERIALES DE CONSUMO Y MANO DE OBRA.","M3 ","263.6000",0,"CERO PESOS 00/100 M.N.",0,364998]
["17.02(160)","CIMENTACION                                       ",null,null,null,null,{"$f":"TEXT(SUM(G397:G404), \"$ #,##0.00 ;\")","v":"$ 0.00 "}]
[162002,"CIMIENTO DE PIEDRA BRAZA ACOMODADA PIEDRA POR PIEDRA, ASENTADA CON MORTERO CEMENTO-ARENA  EN PROPORCION 1:3. INCLUYE: MATERIALES, DESPERDICIOS, HERRAMIENTAS, LIMPIEZA, MANO DE OBRA Y ACARREO DE MATERIALES AL SITIO DE SU UTILIZACION.","M3 ","24.1000",0,"CERO PESOS 00/100 M.N.",0,365009]
[162302,"RODAPIE DE PIEDRA BRAZA, ACABADO APARENTE UNA CARA, ASENTADA CON MORTERO CEMENTO-ARENA 1:3. INCLUYE: MATERIALES, HERRAMIENTAS, PLOMEO,   LIMPIEZA, MANO DE OBRA Y ACARREO DE MATERIALES AL SITIO DE SU UTILIZACION.","M3 ","12.0500",0,"CERO PESOS 00/100 M.N.",0,365016]
[162404,"NIVELACION DE MURO DE MAMPOSTERIA CON RAJUELA DE PIEDRA BRAZA JUNTEADA CON MORTERO CEM-ARE 1:3. DE 0.10 M. DE ESPESOR X 0.40 M. DE ANCHO PROMEDIO. INCLUYE: NIVELACION, TRAZO, MANO DE OBRA Y HERRAMIENTA. (NO INCLUYE MATERIALES)","ML ","100.4000",0,"CERO PESOS 00/100 M.N.",0,365020]
[180054,"RELLENO EN CEPAS POR CUALQUIER MEDIO, CON MATERIAL DE BANCO, (ARENA LIMOSA) COMPACTADO AL 95% PROCTOR, EN CAPAS DE 15 CM, MEDIDO COMPACTO. INCLUYE:  SUMINISTRO DE AGUA PARA LOGRAR HUMEDAD OPTIMA, DESPERDICIOS, TENDIDO, TRASPALEOS,  EQUIPO, PRUEBAS DE COMPACTACION, AFINE, NIVELACION, HERRAMIENTAS, MANO DE OBRA Y  ACARREO HASTA EL SITIO DE SU COLOCACION.  (VOLUMEN MEDIDO COMPACTADO).","M3 ","40.7000",0,"CERO PESOS 00/100 M.N.",0,365038]
[180061,"RELLENO COMPACTADO CON GRAVA-ARENA, EN CEPAS Y/O CAJON, A BASE DE GRAVA DE 3/4\" DE DIAMETRO Y MATERIAL PRODUCTO DE EXCAVACION, CON UNA PROPORCION DE 50-50 %  A CUALQUIER PROFUNDIDAD, COMPACTADO AL 95% PROCTOR POR CUALQUIER MEDIO, EN CAPAS DE 15 CM. INCLUYE:SUMINISTRO DE AGUA PARA LOGRAR HUMEDAD OPTIMA, MEZCLADO, TENDIDO, TRASPALEOS,  DESPERDICIOS, EQUIPO, PRUEBAS DE COMPACTACION, AFINE, NIVELACION, HERRAMIENTAS, MANO DE OBRA Y  ACARREO HASTA EL SITIO DE SU COLOCACION.  (VOLUMEN MEDIDO COMPACTADO).","M3 ","368.0000",0,"CERO PESOS 00/100 M.N.",0,365042]
[180103,"RELLENO COMPACTADO AL 95% PROCTOR, CON MATERIAL DE BANCO, EN CAPAS DE 15 CM DE ESPESOR, AGREGANDO AGUA PARA LOGRAR SU HUMEDAD OPTIMA, POR CUALQUIER MEDIO, INCLUYE: SUMINISTRO DE AGUA PARA LOGRAR HUMEDAD OPTIMA, TENDIDO, TRASPALEOS,  DESPERDICIOS, EQUIPO, PRUEBAS DE COMPACTACION, AFINE, NIVELACION, HERRAMIENTAS, MANO DE OBRA Y  ACARREO HASTA EL SITIO DE SU COLOCACION.  (VOLUMEN MEDIDO COMPACTADO).","M3 ","132.5000",0,"CERO PESOS 00/100 M.N.",0,365052]
[192912,"BASE DE CONCRETO PARA COLOCACION DE POSTES (TUBOS) DE CANCHA DE VOLY-BALL, CON MEDIDAS  DE 30 X 30 X 40,  INCLUYE: TRAZO, EXCAVACIONES, CONCRETO HECHO EN OBRA F´C= 150 KG/CM2., CIMBRA COMUN, DESCIMBRADO, CURADO Y VIBRADO, RELLENOS, TUBO DE ACERO NEGRO CED. 40 DE 3\" DE 40 CM. DE LONG., DREN PARA DESAGÜE,  HERRAMIENTAS, MATERIALES Y MANO DE OBRA.","PZA","4.0000",0,"CERO PESOS 00/100 M.N.",0,365065]
[192916,"CONSTRUCCION EN SITIO DE JUEGO DE 4 BASES PARA SOPORTAR ESTRUCTURA DE TABLERO DE PORTERIAS Y  BASQUET-BALL EN CANCHA DE USOS MULTIPLES. A BASE DE CONCRETO F´C= 150 KG/CM2., DADOS DE 30 X 30 X 60 CM. ARMADO CON 4 VARS. DEL #3 Y EST. DEL #2@15CM. , INCLUYE: TRAZO,  EXCAVACION, CIMBRA COMUN, DESCIMBRADO, COLADO, VIBRADO, CURADO,  RELLENO, PLANTILLA DE CONCRETO F'C=100 KG/CM2 DE 5.0 CM. DE ESPESOR, TUBOS DE ACERO NEGRO DE 3\" DE DIAMETRO X 55 CM DE LARGO AHOGADOS EN DADOS, DESPERDICIOS, ACARREOS, MATERIALES, HERRAMIENTAS, MANO DE OBRA, LIMPIEZA Y TODO LO NECESARIO PARA SU CORRECTA EJECUCION.","JGO","2.0000",0,"CERO PESOS 00/100 M.N.",0,365066]
["17.03(372)","PISOS                                             ",null,null,null,null,{"$f":"TEXT(SUM(G406:G410), \"$ #,##0.00 ;\")","v":"$ 0.00 "}]
[344528,"JUNTA DE CONTRACCION  EN PISOS, A BASE DE SONOFLEX, CELOTEX, FIBRACEL, SIKA ROLL DE 3/8\" DE DIAM., CON UNA SECCION TRANSVERSAL DE LA RANURA EN EL PISO DE 0.60 CM X 5.00  Y SELLO DE SIKAFLEX-1A, GRIS CON UNA SECCION DE 0.60 CM. DE ANCHO  X 1.50 CM. DE PROFUNDIDAD, INCLUYE:  MATERIALES, DESPERDICIOS, LIMPIEZA, IMPRIMACION, HERRAMIENTAS, MANO DE OBRA Y ACARREO DEL PRODUCTO SOBRANTE FUERA DE LA OBRA.","ML ","298.0000",0,"CERO PESOS 00/100 M.N.",0,365108]
[344840,"CORTE CON DISCO DE DIAMANTE EN PISO Y/O LOSA DE CONCRETO, 5.00 CM. DE PROFUNDIDAD Y 0.60 CM. DE ANCHO, INCLUYE: TRAZO, HERRAMIENTAS, EQUIPO DE CORTE, EQUIPO DE SEGURIDAD, ACARREOS, MANO DE OBRA Y LIMPIEZA DEL AREA DE TRABAJO.","ML ","298.0000",0,"CERO PESOS 00/100 M.N.",0,365109]
[372204,"SUMINISTRO Y APLICACION DE ENDURECEDOR QUIMICO EN PISOS DE CONCRETO, ENDUMIN DE  FESTER PROPORCION 3.00 KG. POR M2. INCLUYE:  DESPERDICIOS, HERRAMIENTA, MANO DE OBRA CALIFICADA, EQUIPO NECESARIO, MATERIALES DE CONSUMO Y TODO LO NECESARIO PARA SU CORRECTA EJECUCION. TRABAJO TERMINADO.","M2 ","618.3000",0,"CERO PESOS 00/100 M.N.",0,365110]
[373050,"PISO DE CONCRETO HIDRAULICO PREMEZCLADO BOMBEABLE F'C=200 KG/CM², T.M.A. 3/4\", DE 0.10 M. DE ESPESOR, COLADO EN FRANJAS DE 6.00 A 8.00 MTS. DE ANCHO, MODULADO DE ACUERDO AL AREA TOTAL A COLAR, ACABADO PULIDO CON EQUIPO MECANICO, INCLUYE: TRAZO, NIVELACION, AFINE Y COMPACTACION DEL TERRENO, AGUA, DESPERDICIOS, ACARREOS, REGLEADO, ACABADO PULIDO DE FORMA INTEGRAL  (SIN UTILIZACION DE PASTA), CIMBRA MACHIMBRADA (HEMBRA MACHO) EN FRONTERAS , DESCIMBRA, BOMBEO, COLADO, CURADO, REMATES, ESCALONADO, MUESTREADO, PRUEBAS DE RESISTENCIA DEL CONCRETO, NIVELACION, JUNTAS FRIAS CON VOLTEADOR, LIMPIEZA DEL AREA DE TRABAJO, HERRAMIENTAS Y MANO DE OBRA.","M2 ","618.3000",0,"CERO PESOS 00/100 M.N.",0,365115]
[373766,"FORJADO DE NARIZ DE REMATE EN PISO DE  BANQUETAS, CON 10.0  X  10.0 CM. DE SECCION, INCLUYE SOLO: CIMBRA APARENTE, DESCIMBRA, GOTERO, FORJADO, CHAFLANES, PERFILADO, DESPERDICIOS, HERRAMIENTAS, Y MANO DE OBRA. (NO INCLUYE CONCRETO).","ML ","102.8000",0,"CERO PESOS 00/100 M.N.",0,365119]
["17.04(393)","PINTURA                                           ",null,null,null,null,{"$f":"TEXT(SUM(G412:G415), \"$ #,##0.00 ;\")","v":"$ 0.00 "}]
[393126,"PINTURA DE ESMALTE ALQUIDALICO ANTICORROSIVO, ACABADO BRILLANTE, PARA INTERIORES Y EXTERIORES QUE NO DESPRENDA VAPORES TÓXICOS NI OLORES DESAGRADABLES, CON LAS SIGUIENTES CARACTERÍSTICAS ( SÓLIDOS POR PESO 49-60%, SÓLIDOS POR VOLUMEN 40-46%, VISCOSIDAD DE 110-160 UK A 25°C, DENSIDAD 0.9-1.2 TON/M3., BRILLO A 60°C, 90%, TIEMPO DE SECADO AL TACTO, < O = 6 HRS., TIEMPO DE SECADO DURO < O = 24 HRS., ADHERENCIA 100%, RENDIMIENTO EN SUP. LISA 8-10 M2/LT., DILUCIÓN MÁXIMA (AGUARRÁS, THINER), 15 %,  EN HERRERIA  TUBULAR Y/O ESTRUCTURAL ESTRUCTURA DE TABLEROS DE BASQUET-BALL CON PORTERIAS PARA FUT-BOL, 4 POSTES PARA CANCHA DE VOLY-BALL, ROTULACION DE TABLEROS, TRABAJO TERMINADO, A DOS MANOS, INCLUYE: MATERIALES MENORES Y DE CONSUMO, ANDAMIOS, PREPARACION DE LA SUPERFICIE, HERRAMIENTAS, LIMPIEZA, MANO DE OBRA Y  EQUIPO DE SEGURIDAD. ","JGO","1.0000",0,"CERO PESOS 00/100 M.N.",0,365132]
[393803,"ELABORACION DE ROTULO CON EL NOMBRE Y LOGOTIPO DEL GOBIERNO DEL ESTADO DE JALISCO EN SUPERFICIE DE ASFALTO Y/O CONCRETO CON DIMENSIONES APROXIMADA DE 205 X 205 CM, A BASE DE EMULSION A BASE DE SELLADOR ACRILICO SURFACER NEUTRO CONCENTRADO, PIGMENTO Y ARENA SILICA EXTRAFINA A RAZON DE 1.75 KG/LTS., TRABAJO TERMINADO A DOS MANOS, INCLUYE: TRAZO, PREPARACION DE LA SUPERFICIE, MEZCLADO, MATERIALES MENORES Y DE CONSUMO, DESPERDICIOS, SEÑALAMIENTOS, HERRAMIENTAS, LIMPIEZA, MANO DE OBRA Y EQUIPO DE SEGURIDAD. (LA APLICACIÓN DE LA PUNTURA DEBERÁ SER EN LA TOTALIDAD DE LA SUPERFICIE MENCIONADA)","PZA","1.0000",0,"CERO PESOS 00/100 M.N.",0,365139]
[393804,"SUMINISTRO Y APLICACION DE EMULSION A BASE DE SELLADOR ACRILICO SURFACER NEUTRO CONCENTRADO, PIGMENTO Y ARENA SILICA EXTRAFINA A RAZON DE 1.75 KG/LTS., APLICADO EN PISOS DE CONCRETO Y/O ASFALTO, CON PISTOLA DE ASPERSION, BROCHA O RODILLO, TRABAJO TERMINADO A DOS MANOS, EN COLOR INDICADO EN PROYECTO O POR LA SUPERVISION, INCLUYE: TRAZO, PINTADO DE LINEAS DE BALIZAMIENTO EN CANCHAS DEPORTIVAS DE 5 CM DE ANCHO, MATERIALES MENORES Y DE CONSUMO, MEZCLADO, PREPARACION DE LA SUPERFICIE, SEÑALAMIENTOS, HERRAMIENTAS, LIMPIEZA, MANO DE OBRA Y EQUIPO DE SEGURIDAD. EN CUALQUIER NIVEL.","M2 ","613.4000",0,"CERO PESOS 00/100 M.N.",0,365140]
[393805,"ELABORACION DE ROTULO CON EL NOMBRE Y  LOGOTIPO DEL INSTITUTO (INFEJAL) EN  SUPERFICIE DE ASFALTO Y/O CONCRETO CON DIMENSIONES APROXIMADA DE 170 X 40 CM, A BASE DE  EMULSION A BASE DE SELLADOR ACRILICO SURFACER NEUTRO CONCENTRADO, PIGMENTO Y ARENA SILICA EXTRAFINA A RAZON DE 1.75 KG/LTS., TRABAJO TERMINADO A DOS MANOS, INCLUYE: TRAZO, PREPARACION DE LA SUPERFICIE, MEZCLADO,  MATERIALES MENORES Y DE CONSUMO, DESPERDICIOS, SEÑALAMIENTOS, HERRAMIENTAS, LIMPIEZA, MANO DE OBRA Y EQUIPO DE SEGURIDAD. (LA APLICACIÓN DE LA PUNTURA DEBERÁ SER EN LA TOTALIDAD DE LA SUPERFICIE MENCIONADA)","PZA","1.0000",0,"CERO PESOS 00/100 M.N.",0,365141]
["17.05(396)","LIMPIEZA                                          ",null,null,null,null,{"$f":"TEXT(SUM(G417:G417), \"$ #,##0.00 ;\")","v":"$ 0.00 "}]
[396012,"LIMPIEZA DE PISOS DE CONCRETO CON AGUA Y ACIDO MURIATICO AL 10%.","M2 ","618.3000",0,"CERO PESOS 00/100 M.N.",0,365145]
["17.06(410)","CANCELERIA, HERRERIA, ALUMINIO, VIDRIOS Y CHAPAS  ",null,null,null,null,{"$f":"TEXT(SUM(G419:G420), \"$ #,##0.00 ;\")","v":"$ 0.00 "}]
[412014,"SUMINISTRO, HABILITADO, FABRICACION Y COLOCACION  DE HERRERIA TUBULAR Y/O ESTRUCTURAL, PARA LA CONSTRUCCION DE CANCHA DE USOS MULTIPLES, CONSISTIENDO EN  ESTRUCTURAS PARA TABLERO CON PORTERIAS PARA FUT-BOL,  TABLEROS PARA BASQUET-BALL CON HERRERIA CERRADA,  POSTES PARA  CANCHAS DE VOLY-BALL, ETC. INCLUYE: SOLDADURA, MATERIALES MENORES, DESCALIBRES, DESPERDICIOS, FONDO ANTICORROSIVO, FLETES Y ACARREO DE MATERIALES AL SITIO DE SU UTLIZACION. CON DIMENSIONES Y CARACTERISTICAS DE ACUERDO A GUIA MECANIDA PROPORCIONADA POR EL INFEJAL.","KG ","1,183.2000",0,"CERO PESOS 00/100 M.N.",0,365154]
[412017,"SUMINISTRO, COLOCACION Y MONTAJE DE AROS Y RED DE BASQUET-BALL  INCLUYE: ACARREOS, SUMINISTROS DE MATERIALES NECESARIOS, PINTURA, HERRAMIENTA NECESARIA, EQUIPO Y MATERIAL DE CONSUMO NECESARIOS, MANO DE OBRA CALIFICADA Y TODO LO NECESARIO PARA SU CORRECTA EJECUCION.\n\n\n","JGO","1.0000",0,"CERO PESOS 00/100 M.N.",0,365155]
["17.07(615)","JUEGOS INFANTILES Y ARENEROS                      ",null,null,null,null,{"$f":"TEXT(SUM(G422:G423), \"$ #,##0.00 ;\")","v":"$ 0.00 "}]
[418002,"SUMINISTRO Y COLOCACION DE RED DE FOOT-BALL EN PORTERIAS DE  CANCHA DE USOS MULTIPLES. INCLUYE: MATERIALES , HERRAMIENTA, ACARREOS, MANO DE OBRA Y TODO LO NECESARIO PARA SU CORRECTA EJECUCION.\n","PZA","2.0000",0,"CERO PESOS 00/100 M.N.",0,365205]
[418004,"SUMINISTRO Y COLOCACION DE RED DE VOLY-BALL CON CABLE DE ACERO Y LONA EN PARTE SUPERIOR, PARA CANCHA DE USOS MULTIPLES, INCLUYE: MATERIALES , HERRAMIENTA, ACARREOS, MANO DE OBRA Y TODO LO NECESARIO PARA SU CORRECTA EJECUCION.\n\n","PZA","2.0000",0,"CERO PESOS 00/100 M.N.",0,365206]
["33A","MURO DIVISORIO",null,null,null,null,{"$f":"TEXT(SUM(G425 + G431 + G438 + G444 + G447), \"$ #,##0.00 ;\")","v":"$ 0.00 "}]
["33A.01(150)","TRABAJOS PRELIMINARES                             ",null,null,null,null,{"$f":"TEXT(SUM(G426:G430), \"$ #,##0.00 ;\")","v":"$ 0.00 "}]
[150020,"LIMPIEZA DE TERRENO RETIRANDO BASURA Y DESHIERBE FUERA DE LA OBRA. INCLUYE: HERRAMIENTAS, MANO DE OBRA, RECOLECCION, JUNTA Y RETIRO. (PROYECCION DE CUBIERTA).","M2 ","291.6000",0,"CERO PESOS 00/100 M.N.",0,364965]
[150120,"TRAZO Y NIVELACION DE EXTERIORES ESTABLECIENDO REFERENCIAS DEFINITIVAS, CON TRANSITO Y NIVEL (EQUIPO TOPOGRAFICO), INCLUYE: PERSONAL TECNICO CALIFICADO, ESTACAS, MOJONERAS, LOCALIZACION DE EJES Y/O ENTRE EJES, BANCOS DE NIVEL, MATERIALES PARA SEÑALAMIENTO, EQUIPO, HERRAMIENTA Y MANO DE OBRA.","M2 ","291.6000",0,"CERO PESOS 00/100 M.N.",0,364972]
[152204,"EXCAVACION EN CEPAS POR CUALQUIER MEDIO, MATERIAL TIPO \"B\", DE 0 A 2.00 M. DE PROFUNDIDAD, EN SECO, INCLUYE: AFINE DE TALUDES Y FONDO, TRASPALEOS,  MOVIMIENTOS Y ACARREOS DENTRO DE LA OBRA, HERRAMIENTAS Y MANO DE OBRA, MEDIDO EN BANCO.","M3 ","114.0000",0,"CERO PESOS 00/100 M.N.",0,364986]
[152206,"EXCAVACION EN CEPAS POR CUALQUIER MEDIO, MATERIAL TIPO \"C\", (TEPETATE O BOLEOS EMPACADOS HASTA 50%) DE 0 A 2.00 M. DE PROFUNDIDAD, EN SECO, INCLUYE: AFINE DE TALUDES Y FONDO, TRAPALEOS,  MOVIMIENTOS Y ACARREOS DENTRO DE LA OBRA, HERRAMIENTAS Y MANO DE OBRA, MEDIDO EN BANCO.","M3 ","114.0000",0,"CERO PESOS 00/100 M.N.",0,364988]
[156002,"CARGA POR CUALQUIER MEDIO Y ACARREO EN CAMION DE MATERIAL DE DESPERDICIO PRODUCTO DE LAS EXCAVACIONES FUERA DE LA OBRA, A LUGAR PERMITIDO POR LAS AUTORIDADES CORRESPONDIENTES, MEDIDO EN BANCO. INCLUYE CARGA,  ACARREO Y DESCARGA A TIRO LIBRE, HERRAMIENTA, EQUIPO, MATERIALES DE CONSUMO Y MANO DE OBRA.","M3 ","228.0000",0,"CERO PESOS 00/100 M.N.",0,365000]
["33A.02(160)","CIMENTACION                                       ",null,null,null,null,{"$f":"TEXT(SUM(G432:G437), \"$ #,##0.00 ;\")","v":"$ 0.00 "}]
[162002,"CIMIENTO DE PIEDRA BRAZA ACOMODADA PIEDRA POR PIEDRA, ASENTADA CON MORTERO CEMENTO-ARENA  EN PROPORCION 1:3. INCLUYE: MATERIALES, DESPERDICIOS, HERRAMIENTAS, LIMPIEZA, MANO DE OBRA Y ACARREO DE MATERIALES AL SITIO DE SU UTILIZACION.","M3 ","145.8000",0,"CERO PESOS 00/100 M.N.",0,365010]
[162116,"MAMPOSTERIA DE PIEDRA BRAZA, ACABADO APARENTE DOS CARAS DE 0 A 1.50 MTS, ASENTADA CON  CEMENTO-ARENA 1:3, INCLUYE: MATERIALES, HERRAMIENTAS, PLOMEO,  LIMPIEZA, MANO DE OBRA Y ACARREO DE MATERIALES AL SITIO DE SU UTILIZACION.","M3 ","131.2200",0,"CERO PESOS 00/100 M.N.",0,365013]
[162404,"NIVELACION DE MURO DE MAMPOSTERIA CON RAJUELA DE PIEDRA BRAZA JUNTEADA CON MORTERO CEM-ARE 1:3. DE 0.10 M. DE ESPESOR X 0.40 M. DE ANCHO PROMEDIO. INCLUYE: NIVELACION, TRAZO, MANO DE OBRA Y HERRAMIENTA. (NO INCLUYE MATERIALES)","ML ","486.0000",0,"CERO PESOS 00/100 M.N.",0,365021]
[180065,"RELLENO COMPACTADO CON EQUIPO MECANICO DE SUELO-GRAVA, EN CEPAS Y/O CAJON , A BASE DE MATERIAL DE BANCO  (TEPETATE, ARENA, ETC) Y GRAVA DE 3/4\" A 1 1/2\" DE DIAMETRO, CON UNA PROPORCION DE 30-70 %, EN VOLUMEN,   A CUALQUIER PROFUNDIDAD, COMPACTADO AL 95% DE SU P.V.S.M. PROCTOR, EN CAPAS DE 15 CM. INCLUYE: SUMINISTRO DE AGUA PARA LOGRAR HUMEDAD OPTIMA, MEZCLACO, TENDIDO, TRASPALEOS,  DESPERDICIOS, EQUIPO, PRUEBAS DE COMPACTACION, AFINE, NIVELACION, HERRAMIENTAS, MANO DE OBRA Y  ACARREO HASTA EL SITIO DE SU COLOCACION.  (VOLUMEN MEDIDO COMPACTADO).","M3 ","82.2000",0,"CERO PESOS 00/100 M.N.",0,365047]
[180103,"RELLENO COMPACTADO AL 95% PROCTOR, CON MATERIAL DE BANCO, EN CAPAS DE 15 CM DE ESPESOR, AGREGANDO AGUA PARA LOGRAR SU HUMEDAD OPTIMA, POR CUALQUIER MEDIO, INCLUYE: SUMINISTRO DE AGUA PARA LOGRAR HUMEDAD OPTIMA, TENDIDO, TRASPALEOS,  DESPERDICIOS, EQUIPO, PRUEBAS DE COMPACTACION, AFINE, NIVELACION, HERRAMIENTAS, MANO DE OBRA Y  ACARREO HASTA EL SITIO DE SU COLOCACION.  (VOLUMEN MEDIDO COMPACTADO).","M3 ","13.5000",0,"CERO PESOS 00/100 M.N.",0,365054]
[192810,"BASE PARA CASTILLO DE 40.0 X 40.0 X 50.0 CM, EN CIMENTACION DE PIEDRA, CON CONCRETO F'C=150 KG/CM2, TMA=3/4\", CON 4 VARILLAS DE 3/8\" DE DIAMETRO Y ESTRIBOS DE 1/4\" @ 15.0 CM. CIMBRA COMUN,  INCLUYE: CIMBRADO Y DESCIMBRADO, COLADO, VIBRADO, CURADO, MATERIALES, DESPERDICIOS, HERRAMIENTAS, LIMPIEZA, MANO DE OBRA Y ACARREO DE MATERIALES AL SITIO DE SU UTILIZACION.","PZA","216.0000",0,"CERO PESOS 00/100 M.N.",0,365062]
["33A.03(310)","MUROS, CADENAS, CASTILLOS Y REPIZONES.            ",null,null,null,null,{"$f":"TEXT(SUM(G439:G443), \"$ #,##0.00 ;\")","v":"$ 0.00 "}]
[167204,"DALA DE DESPLANTE DE CONCRETO F´C= 150 KG/CM2, T.M.A.= 3/4\", CON SECCION DE 14 X 20 CM., ARMADA CON 4 VARILLAS DEL #3 Y ESTRIBOS DEL #2 @ 20 CM., INCLUYE: ARMADO, COLADO, CURADO, VIBRADO, CIMBRA COMUN, DESCIMBRA, DESPERDICIOS, TRASLAPES, CRUCES DE VARILLAS CON ELEMENTOS TRANSVERSALES, ANDAMIOS, MANO DE OBRA, HERRAMIENTA Y ACARREO DE MATERIALES AL SITIO DE SU UTILIZACION, A CUALQUIER ALTURA.","ML ","486.0000",0,"CERO PESOS 00/100 M.N.",0,365081]
[310207,"DALA DE CONCRETO F'C=150 KG/CM2, T.M.A.=3/4\", CON SECCION DE 14 X 15 CMS., ARMADA CON 4 VARILLAS DEL # 3 Y ESTRIBOS DEL NO. 2 @ 15 CMS., INCLUYE: ARMADO, COLADO, CURADO, VIBRADO, CIMBRA COMUN, DESCIMBRA, TRASLAPES, CRUCES DE VARILLAS CON ELEMENTOS TRANSVERSALES, DESPERDICIOS, MANO DE OBRA, HERRAMIENTA Y ACARREO DE MATERIALES AL SITIO DE SU UTILIZACION, A CUALQUIER ALTURA.","ML ","486.0000",0,"CERO PESOS 00/100 M.N.",0,365082]
[312210,"CASTILLO DE CONCRETO F´C= 150 KGS/CM2 CON UNA SECCION DE 14 X 15 CM., ARMADO CON 4 VARILLAS DEL #3, ESTRIBOS DEL #2@15 CM.  INCLUYE: ARMADO, COLADO, CURADO, VIBRADO, CIMBRA COMUN, DESCIMBRA, TRASLAPES, CRUCES DE VARILLAS CON ELEMENTOS TRANSVERSALES, DESPERDICIOS, MANO DE OBRA, HERRAMIENTA Y ACARREO DE MATERIALES AL SITIO DE SU UTILIZACION, A CUALQUIER ALTURA.","ML ","442.8000",0,"CERO PESOS 00/100 M.N.",0,365088]
[314032,"MURO DE TABIQUE DE LAMA, DE 14 CMS. DE ESPESOR PROMEDIO, A SOGA, CON TABIQUE DE LAMA 7 X 14 X 28 CMS., ACABADO COMUN, ASENTADO CON MORTERO CEMENTO-ARENA EN PROPORCION 1:3, EN CUALQUIER NIVEL, INCLUYE: TRAZO, NIVELACION, PLOMEO, ANDAMIOS, DESPERDICIOS, MANO DE OBRA, LIMPIEZA Y ACARREO DE MATERIALES AL SITIO DE SU UTILIZACION.","M2 ","929.9000",0,"CERO PESOS 00/100 M.N.",0,365091]
[373502,"CEJA DE CONCRETO F'C=150 KG/CM2, TMA=3/4\" DE 12.0 X 18.0 CM DE SECCION PROMEDIO, ARMADA CON 1 VARILLA #3 (3/8\") Y ESTRIBOS DE 1/4\" @ 25.0 CM, EN CUALQUIER NIVEL. INCLUYE: CIMBRA APARENTE, DESCIMBRA, COLADO, VIBRADO, CURADO, PERFILADO, CHAFLANES, GOTERO, LIMPIEZA, HERRAMIENTAS, MATERIALES, DESPERDICIOS Y MANO DE OBRA.","ML ","972.0000",0,"CERO PESOS 00/100 M.N.",0,365093]
["33A.04(355)","RECUBRIMIENTOS Y ACABADOS                         ",null,null,null,null,{"$f":"TEXT(SUM(G445:G446), \"$ #,##0.00 ;\")","v":"$ 0.00 "}]
[355022,"APLANADO DE MUROS Y/O TECHOS CON MORTERO CEMENTO-CAL-ARENA DE RIO EN PROP. 1:2:6 DE 2 CM. DE ESPESOR PROMEDIO, A PLOMO Y REGLA, ACABADO APALILLADO FINO, INCLUYE: MATERIALES, DESPERDICIOS, ANDAMIOS, HERRAMIENTAS, PLOMEO, NIVELACION, REMATES, LIMPIEZA DEL AREA DE TRABAJO Y ACARREO DE MATERIALES AL SITIO DE SU UTILIZACION. A CUALQUIER NIVEL.\n","M2 ","2,284.2000",0,"CERO PESOS 00/100 M.N.",0,365102]
[357310,"BOQUILLAS EN MUROS DE 17 CMS DE ANCHO PROMEDIO, CON MORTERO CEM-ARE 1:4, ACABADO A PLOMO Y REGLA, INCLUYE REMATES Y ACARREO DE MATERIALES AL SITIO DE SU UTILIZACION A CUALQUIER NIVEL.","ML ","491.4000",0,"CERO PESOS 00/100 M.N.",0,365104]
["33A.05(393)","PINTURA                                           ",null,null,null,null,{"$f":"TEXT(SUM(G448:G448), \"$ #,##0.00 ;\")","v":"$ 0.00 "}]
[393022,"PINTURA VINIL-ACRÍLICA A BASE DE AGUA ACABADO SEMIMATE  LAVABLE, PARA INTERIORES Y EXTERIORES QUE NO DESPRENDA VAPORES TÓXICOS NI OLORES DESAGRADABLES, CON LAS SIGUIENTES CARACTERÍSTICAS ( SÓLIDOS POR PESO 46-52%, SÓLIDOS POR VOLUMEN 30-36%, VISCOSIDAD DE 100-130 UK A 25°C, DENSIDAD > O = 1.2 TON/M3., LAVABILIDAD > O = 4,000 CICLOS, TIEMPO DE SECADO AL TACTO, 30-40 MIN., TIEMPO DE SECADO DURO < O = 8 HRS., CICLO DE CURADO DE 7 DIAS, PH 6-8, RENDIMIENTO EN SUP. LISA 8-10 M2/LT., FINEZA DE MOLIDO (HEGMAN) 3-7 UH.)  EN MUROS APLANADOS DE MEZCLA APALILLADO O PULIDO, TRABAJO TERMINADO, A DOS MANOS, INCLUYE: MATERIALES MENORES Y DE CONSUMO, ANDAMIOS, PREPARACION DE LA SUPERFICIE, SELLADO DE LA SUPERFICIE, HERRAMIENTAS, LIMPIEZA, MANO DE OBRA Y  ACARREOS DE MATERIALES AL SITIO DE SU UTILIZACIÓN.","M2 ","2,373.3000",0,"CERO PESOS 00/100 M.N.",0,365128]
[69,"RAMPAS",null,null,null,null,{"$f":"TEXT(SUM(G450 + G456 + G463 + G465 + G467 + G469 + G471), \"$ #,##0.00 ;\")","v":"$ 0.00 "}]
["69.01(150)","TRABAJOS PRELIMINARES                             ",null,null,null,null,{"$f":"TEXT(SUM(G451:G455), \"$ #,##0.00 ;\")","v":"$ 0.00 "}]
[150020,"LIMPIEZA DE TERRENO RETIRANDO BASURA Y DESHIERBE FUERA DE LA OBRA. INCLUYE: HERRAMIENTAS, MANO DE OBRA, RECOLECCION, JUNTA Y RETIRO. (PROYECCION DE CUBIERTA).","M2 ","13.5000",0,"CERO PESOS 00/100 M.N.",0,364967]
[150120,"TRAZO Y NIVELACION DE EXTERIORES ESTABLECIENDO REFERENCIAS DEFINITIVAS, CON TRANSITO Y NIVEL (EQUIPO TOPOGRAFICO), INCLUYE: PERSONAL TECNICO CALIFICADO, ESTACAS, MOJONERAS, LOCALIZACION DE EJES Y/O ENTRE EJES, BANCOS DE NIVEL, MATERIALES PARA SEÑALAMIENTO, EQUIPO, HERRAMIENTA Y MANO DE OBRA.","M2 ","13.5000",0,"CERO PESOS 00/100 M.N.",0,364974]
[150210,"DESPALME DE TERRENO NATURAL POR CUALQUIER MEDIO, CON ESPESOR PROMEDIO DE 20 CM. INCLUYE: CARGA Y ACARREO DEL PRODUCTO FUERA DE LA OBRA, MANO DE OBRA, HERRAMIENTA Y EQUIPO. (PROYECCION DE CUBIERTA).","M2 ","13.5000",0,"CERO PESOS 00/100 M.N.",0,364980]
[152404,"EXCAVACION A CIELO ABIERTO EN CAJON POR CUALQUIER MEDIO, MATERIAL TIPO \"B\", DE 0 A 2.00 M. DE PROFUNDIDAD, EN SECO, INCLUYE: AFINE DE TALUDES Y FONDO, TRAPALEOS,  MOVIMIENTOS Y ACARREOS DENTRO DE LA OBRA, HERRAMIENTAS Y MANO DE OBRA, MEDIDO EN BANCO.","M3 ","7.2000",0,"CERO PESOS 00/100 M.N.",0,364995]
[156002,"CARGA POR CUALQUIER MEDIO Y ACARREO EN CAMION DE MATERIAL DE DESPERDICIO PRODUCTO DE LAS EXCAVACIONES FUERA DE LA OBRA, A LUGAR PERMITIDO POR LAS AUTORIDADES CORRESPONDIENTES, MEDIDO EN BANCO. INCLUYE CARGA,  ACARREO Y DESCARGA A TIRO LIBRE, HERRAMIENTA, EQUIPO, MATERIALES DE CONSUMO Y MANO DE OBRA.","M3 ","7.2000",0,"CERO PESOS 00/100 M.N.",0,365002]
["69.02(160)","CIMENTACION                                       ",null,null,null,null,{"$f":"TEXT(SUM(G457:G462), \"$ #,##0.00 ;\")","v":"$ 0.00 "}]
[162002,"CIMIENTO DE PIEDRA BRAZA ACOMODADA PIEDRA POR PIEDRA, ASENTADA CON MORTERO CEMENTO-ARENA  EN PROPORCION 1:3. INCLUYE: MATERIALES, DESPERDICIOS, HERRAMIENTAS, LIMPIEZA, MANO DE OBRA Y ACARREO DE MATERIALES AL SITIO DE SU UTILIZACION.","M3 ","2.8800",0,"CERO PESOS 00/100 M.N.",0,365012]
[162302,"RODAPIE DE PIEDRA BRAZA, ACABADO APARENTE UNA CARA, ASENTADA CON MORTERO CEMENTO-ARENA 1:3. INCLUYE: MATERIALES, HERRAMIENTAS, PLOMEO,   LIMPIEZA, MANO DE OBRA Y ACARREO DE MATERIALES AL SITIO DE SU UTILIZACION.","M3 ","1.8000",0,"CERO PESOS 00/100 M.N.",0,365017]
[162404,"NIVELACION DE MURO DE MAMPOSTERIA CON RAJUELA DE PIEDRA BRAZA JUNTEADA CON MORTERO CEM-ARE 1:3. DE 0.10 M. DE ESPESOR X 0.40 M. DE ANCHO PROMEDIO. INCLUYE: NIVELACION, TRAZO, MANO DE OBRA Y HERRAMIENTA. (NO INCLUYE MATERIALES)","ML ","18.0000",0,"CERO PESOS 00/100 M.N.",0,365023]
[180061,"RELLENO COMPACTADO CON GRAVA-ARENA, EN CEPAS Y/O CAJON, A BASE DE GRAVA DE 3/4\" DE DIAMETRO Y MATERIAL PRODUCTO DE EXCAVACION, CON UNA PROPORCION DE 50-50 %  A CUALQUIER PROFUNDIDAD, COMPACTADO AL 95% PROCTOR POR CUALQUIER MEDIO, EN CAPAS DE 15 CM. INCLUYE:SUMINISTRO DE AGUA PARA LOGRAR HUMEDAD OPTIMA, MEZCLADO, TENDIDO, TRASPALEOS,  DESPERDICIOS, EQUIPO, PRUEBAS DE COMPACTACION, AFINE, NIVELACION, HERRAMIENTAS, MANO DE OBRA Y  ACARREO HASTA EL SITIO DE SU COLOCACION.  (VOLUMEN MEDIDO COMPACTADO).","M3 ","5.4000",0,"CERO PESOS 00/100 M.N.",0,365044]
[180103,"RELLENO COMPACTADO AL 95% PROCTOR, CON MATERIAL DE BANCO, EN CAPAS DE 15 CM DE ESPESOR, AGREGANDO AGUA PARA LOGRAR SU HUMEDAD OPTIMA, POR CUALQUIER MEDIO, INCLUYE: SUMINISTRO DE AGUA PARA LOGRAR HUMEDAD OPTIMA, TENDIDO, TRASPALEOS,  DESPERDICIOS, EQUIPO, PRUEBAS DE COMPACTACION, AFINE, NIVELACION, HERRAMIENTAS, MANO DE OBRA Y  ACARREO HASTA EL SITIO DE SU COLOCACION.  (VOLUMEN MEDIDO COMPACTADO).","M3 ","4.7700",0,"CERO PESOS 00/100 M.N.",0,365056]
[192360,"SUMINISTRO E INSTALACION DE CASQUILLO A BASE DE PTR DE 2 1/2\" X 2 1/2\" BLANCO,  Y 10 CM DE LONGITUD APROXIMADA, PARA RICIBIR DE BARANDAL METALICO,  AHOGADO EN LOSA DE CONCRETO, INCLUYE: TRAZO, CORTES, AJUSTES, NIVELACION, MATERIALES, HERRAMIENTAS,  LIMPIEZA Y MANO DE OBRA.","PZA","16.0000",0,"CERO PESOS 00/100 M.N.",0,365061]
["69.03(310)","MUROS, CADENAS, CASTILLOS Y REPIZONES.            ",null,null,null,null,{"$f":"TEXT(SUM(G464:G464), \"$ #,##0.00 ;\")","v":"$ 0.00 "}]
[310512,"DALA DE CONCRETO F'C=150 KG/CM2, T.M.A.=3/4\", CON SECCION DE 10 X 12 CMS., SIN ARMAR, INCLUYE: COLADO, CURADO, VIBRADO, CIMBRA APARENTE, DESCIMBRA, DESPERDICIOS, MANO DE OBRA, HERRAMIENTA, LIMPIEZA DEL AREA DE TRABAJO Y ACARREO DE MATERIALES AL SITIO DE SU UTILIZACION, A CUALQUIER ALTURA.","ML ","18.0000",0,"CERO PESOS 00/100 M.N.",0,365085]
["69.04(372)","PISOS                                             ",null,null,null,null,{"$f":"TEXT(SUM(G466:G466), \"$ #,##0.00 ;\")","v":"$ 0.00 "}]
[375242,"FORJADO DE RAMPA PARA MINUSVALIDOS FABRICADO A BASE DE CONCRETO F'C=150 KG/CM2. T.M.A. 3/4\" HECHO EN OBRA DE 0.10 MT. DE ESPESOR  PROMEDIO DANDO PENDIENTE DEL 6%. INCLUYE: HERRAMIENTAS, ACABADO RAYADO,  CIMBRA DESCIMBRA, MANO DE OBRA, REMATE EN PISO Y BANQUETA, ACARREO DEL  MATERIALES AL SITIO DE SU UTILIZACION.","M2 ","13.5000",0,"CERO PESOS 00/100 M.N.",0,365122]
["69.05(393)","PINTURA                                           ",null,null,null,null,{"$f":"TEXT(SUM(G468:G468), \"$ #,##0.00 ;\")","v":"$ 0.00 "}]
[393324,"PINTURA DE ESMALTE ALQUIDALICO ANTICORROSIVO, ACABADO BRILLANTE, PARA INTERIORES Y EXTERIORES QUE NO DESPRENDA VAPORES TÓXICOS NI OLORES DESAGRADABLES, CON LAS SIGUIENTES CARACTERÍSTICAS ( SÓLIDOS POR PESO 49-60%, SÓLIDOS POR VOLUMEN 40-46%, VISCOSIDAD DE 110-160 UK A 25°C, DENSIDAD 0.9-1.2 TON/M3., BRILLO A 60°C, 90%, TIEMPO DE SECADO AL TACTO, < O = 6 HRS., TIEMPO DE SECADO DURO < O = 24 HRS., ADHERENCIA 100%, RENDIMIENTO EN SUP. LISA 8-10 M2/LT., DILUCIÓN MÁXIMA (AGUARRÁS, THINER), 15 %,   EN TUBO DE FIERRO NEGRO DE 2\" DE DIÁMETRO, (POSTES, PASAMANOS, BARANDALES, ESTRUCTURAS, REDES, ETC.), TRABAJO TERMINADO, A DOS MANOS, INCLUYE: MATERIALES MENORES Y DE CONSUMO, PREPARACION DE LA SUPERFICIE, ANDAMIOS, HERRAMIENTAS, LIMPIEZA, MANO DE OBRA Y  EQUIPO DE SEGURIDAD. CUALQUIER ALTURA.","ML ","75.6000",0,"CERO PESOS 00/100 M.N.",0,365136]
["69.06(396)","LIMPIEZA                                          ",null,null,null,null,{"$f":"TEXT(SUM(G470:G470), \"$ #,##0.00 ;\")","v":"$ 0.00 "}]
[396012,"LIMPIEZA DE PISOS DE CONCRETO CON AGUA Y ACIDO MURIATICO AL 10%.","M2 ","13.5000",0,"CERO PESOS 00/100 M.N.",0,365147]
["69.07(410)","CANCELERIA, HERRERIA, ALUMINIO, VIDRIOS Y CHAPAS  ",null,null,null,null,{"$f":"TEXT(SUM(G472:G472), \"$ #,##0.00 ;\")","v":"$ 0.00 "}]
[412006,"SUMINISTRO, FABRICACION Y COLOCACION DE HERRERIA TUBULAR Y/O ESTRUCTURAL PARA BARANDAL O PASAMANOS,  INCLUYE: SOLDADURA, CORTES, AJUSTES, MATERIALES MENORES, DESCALIBRES, DESPERDICIOS, BISAGRAS, FONDO ANTICORROSIVO, FLETES, HERRAMIENTAS, MANO DE OBRA, Y ACARREO DE MATERIALES AL SITIO DE SU UTLIZACION.","KG ","161.1000",0,"CERO PESOS 00/100 M.N.",0,365152]
["02","RED ELECTRICA",null,null,null,null,{"$f":"TEXT((G474), \"$ #,##0.00 ;\")","v":"$ 0.00 "}]
["02.01(511)","INSTALACION ELECTRICA EN OBRA EXTERIOR            ",null,null,null,null,{"$f":"TEXT(SUM(G475:G490), \"$ #,##0.00 ;\")","v":"$ 0.00 "}]
[534004,"SUMINISTRO Y TENDIDO DE TUBO CONDUIT DE P.V.C. PESADO, DE 19 MM DIAM. INCLUYE: CONEXIONES, TRAZO, EXCAVACION, RELLENO, DESPERDICIOS, MATERIALES MENORES, PRUEBAS Y ACARREO AL SITIO DE SU COLOCACION.","ML ","30.0000",0,"CERO PESOS 00/100 M.N.",0,365166]
[534008,"SUMINISTRO Y TENDIDO DE TUBO CONDUIT DE P.V.C. PESADO, DE 32 MM DIAM. INC.: CONEXIONES, TRAZO, EXCAVACION, RELLENO, DESPERDICIOS, MATERIALES MENORES, PRUEBAS Y ACARREO AL SITIO DE SU COLOCACION.","ML ","85.0000",0,"CERO PESOS 00/100 M.N.",0,365167]
[534010,"SUMINISTRO Y TENDIDO DE TUBO CONDUIT DE P.V.C. PESADO, DE 38 MM DIAM. INC.: CONEXIONES, TRAZO, EXCAVACION, RELLENO, DESPERDICIOS, MATERIALES MENORES, PRUEBAS Y ACARREO AL SITIO DE SU COLOCACION.","ML ","6.0000",0,"CERO PESOS 00/100 M.N.",0,365168]
[534012,"SUMINISTRO Y TENDIDO DE TUBO CONDUIT DE P.V.C. PESADO, DE 50 MM DIAM. INC.: CONEXIONES, TRAZO, EXCAVACION, RELLENO, DESPERDICIOS, MATERIALES MENORES, PRUEBAS Y ACARREO AL SITIO DE SU COLOCACION.","ML ","50.0000",0,"CERO PESOS 00/100 M.N.",0,365169]
[536006,"SUMINISTRO Y COLOCACION DE CABLE VINANEL THW-LS 600 V. A 75° C, 90° C, MARCA CONDUCTORES MONTERREY, (VIAKON-PROTOCOLIZADO), CABLE VINANEL 21 THW-LS 600 V. A 75° C, 90° C, MARCA CONDUMEX (CONDUMEX PROTOCOLIZADO). CAL. 12,  INCLUYE: DESPERDICIOS, MATERIALES MENORES, HERRAMIENTA, CONEXIONES, MANO DE OBRA ESPECIALIZADA, LIMPIEZA DEL AREA DE TRABAJO, PRUEBAS Y ACARREO AL SITIO DE SU COLOCACION.","ML ","60.0000",0,"CERO PESOS 00/100 M.N.",0,365170]
[536010,"SUMINISTRO Y COLOCACION DE CABLE VINANEL THW-LS 600 V. A 75° C, 90° C, MARCA CONDUCTORES MONTERREY, (VIAKON-PROTOCOLIZADO), CABLE VINANEL 21 THW-LS 600 V. A 75° C, 90° C, MARCA CONDUMEX (CONDUMEX PROTOCOLIZADO). CAL. 8,  INCLUYE: DESPERDICIOS, MATERIALES MENORES, HERRAMIENTA, CONEXIONES, MANO DE OBRA ESPECIALIZADA, LIMPIEZA DEL AREA DE TRABAJO, PRUEBAS Y ACARREO AL SITIO DE SU COLOCACION.","ML ","340.0000",0,"CERO PESOS 00/100 M.N.",0,365171]
[537106,"SUMINISTRO Y COLOCACION DE CABLE DE COBRE DESNUDO CAL. 12, AWG, MCA. CONDUMEX, CONELEC O CONDUCTORES MONTERREY. INCLUYE: DESPERDICIOS, MATERIALES MENORES, PRUEBAS Y ACARREO AL SITIO DE SU COLOCACION.","ML ","30.0000",0,"CERO PESOS 00/100 M.N.",0,365172]
[537112,"SUMINISTRO Y COLOCACION DE CABLE DE COBRE DESNUDO CAL. 8, AWG, MCA. CONDUMEX, CONELEC O CONDUCTORES MONTERREY. INCLUYE: DESPERDICIOS, MATERIALES MENORES, PRUEBAS Y ACARREO AL SITIO DE SU COLOCACION.","ML ","90.0000",0,"CERO PESOS 00/100 M.N.",0,365173]
[537114,"SUMINISTRO Y COLOCACION DE CABLE DE COBRE DESNUDO CAL. 6, AWG, MCA. CONDUMEX, CONELEC O CONDUCTORES MONTERREY. INCLUYE: DESPERDICIOS, MATERIALES MENORES, PRUEBAS Y ACARREO AL SITIO DE SU COLOCACION.","ML ","50.0000",0,"CERO PESOS 00/100 M.N.",0,365174]
[538020,"SUMINISTRO E INSTALACION DE CABLE DE ALUMINIO CON AISLAMIENTO XLP, CAL.4 AWG, MONOPOLAR, PARA DISTRIBUCION SUBTERRANEA, VULCANEL SERIE AA 8000, TIPO XHHW-2, LS CT-SR ROHS, 90 °C, 600 V,  MARCA CONDUCTORES MONTERREY O  CONDUMEX,  INCLUYE: FLETE, ELEVACION, CONEXIONES, MATERIALES MENORES Y DE CONSUMO, HERRAMIENTAS, EQUIPO DE SEGURIDAD, DESPERDICIOS, LIMPIEZA DEL AREA DE TRABAJO, PRUEBAS, Y MANO DE OBRA,  EN CUALQUIER NIVEL.","ML ","15.0000",0,"CERO PESOS 00/100 M.N.",0,365175]
[538026,"SUMINISTRO E INSTALACION DE CABLE DE ALUMINIO CON AISLAMIENTO XLP, CAL.1/0 AWG, MONOPOLAR, PARA DISTRIBUCION SUBTERRANEA, VULCANEL SERIE AA 8000, TIPO XHHW-2, LS CT-SR ROHS, 90 °C, 600 V,  MARCA CONDUCTORES MONTERREY O  CONDUMEX,  INCLUYE: FLETE, ELEVACION, CONEXIONES, MATERIALES MENORES Y DE CONSUMO, HERRAMIENTAS, EQUIPO DE SEGURIDAD, DESPERDICIOS, LIMPIEZA DEL AREA DE TRABAJO, PRUEBAS, Y MANO DE OBRA,  EN CUALQUIER NIVEL.","ML ","200.0000",0,"CERO PESOS 00/100 M.N.",0,365176]
[543012,"SUMINISTRO Y COLOCACION DE INTERRUPTOR TERMOMAGNETICO DERIVADO CON 1 POLOS, DE 15-60 AMPERES, MCA. SQUARE D, CAT. QO. INCLUYE: PRUEBAS, MATERIALES MENORES, HERRAMIENTAS, MANO DE OBRA ESPECIALIZADA  Y ACARREO DE MATERIALES AL SITIO DE SU COLOCACION.","PZA","1.0000",0,"CERO PESOS 00/100 M.N.",0,365178]
[543032,"SUMINISTRO Y COLOCACION DE INTERRUPTOR TERMOMAGNETICO DERIVADO CON 3 POLOS, DE 15-60 AMPERES, MCA. SQUARE D, CAT. QO. INCLUYE: PRUEBAS, MATERIALES MENORES, HERRAMIENTAS, MANO DE OBRA ESPECIALIZADA  Y ACARREO DE MATERIALES AL SITIO DE SU COLOCACION.","PZA","3.0000",0,"CERO PESOS 00/100 M.N.",0,365181]
[543069,"SUMINISTRO Y COLOCACION DE INTERRUPTOR TERMOMAGNETICO POWERPACT MARCO \"H\" CON 3 POLOS DE 70-100 AMPERES MCA. SQUARE’D CAT. HDL36070-100 CON GABINETE PARA INTERRUPTORES POWERPACT  DE CAJA MOLDEADA NEMA 1 MCA. SQUARE´D CAT. H150FMX PARA USO EN INTERIOR, INCLUYE: MATERIALES MENORES Y DE FIJACION,  PRUEBAS, HERRAMIENTAS, MANO DE OBRA Y ACARREO DE MATERIALES AL SITIO DE SU COLOCACION.","PZA","1.0000",0,"CERO PESOS 00/100 M.N.",0,365182]
[558522,"SUMINISTRO Y COLOCACION DE VARILLA DE TIERRA COOPERWELD, DE 3.00 M X 19 MM DE DIAM.  INCLUYE: UNA  CARGA CADWELD NO. 90, CONECTOR COOPER WELD, SOLDADURA CADWELD NO. 90, PARTE PROPORCIONAL DE MOLDE 161V.,  MATERIALES MENORES, PRUEBAS Y ACARREO AL SITIO DE SU COLOCACION.","PZA","3.0000",0,"CERO PESOS 00/100 M.N.",0,365186]
[880621,"SUMINISTRO Y COLOCACION DE REGISTRO ELECTRICO DE CONCRETO, PREFABRICADO, PARA BAJA TENSION TIPO 1 NORMA C.F.E.- RBTB-1 DE 50 X 80 X 65 CM., CON TAPA DE CONCRETO,  MARCO Y CONTRAMARCO  DE ACERO GALVANIZADO, INCLUYE: TRAZO, EXCAVACION, RELLENOS COMPACTADOS, FILTRO DE GRAVA, RESANADO FINO DE TUBERIAS EN SU INTERIOR, HERRAMIENTAS, MANO DE OBRA, FLETES, ACARREO AL SITIO DE SU COLOCACION Y LIMPIEZA DEL AREA DE TRABAJO.","PZA","6.0000",0,"CERO PESOS 00/100 M.N.",0,365187]
["08","MURETE DE ACOMETIDA",null,null,null,null,{"$f":"TEXT((G492), \"$ #,##0.00 ;\")","v":"$ 0.00 "}]
["08.01(511)","INSTALACION ELECTRICA EN OBRA EXTERIOR            ",null,null,null,null,{"$f":"TEXT(SUM(G493:G493), \"$ #,##0.00 ;\")","v":"$ 0.00 "}]
[558012,"MURETE PARA ACOMETIDA ELECTRICA DE TV. SEC. Y/O ESC. DE EDUCACION ESPECIAL DE 1.90 MT DE ALTURA POR 1.25 MTS. DE ANCHO Y 0.60 MT. DE FONDO, A BASE DE MURO DE LAMA DE 7 X 14 X 28 A TEZON EN PARTE INFERIOR Y A SOGA EN EL AREA DESTINADA PARA LA CAJA DE SOQUET DE MEDICION E INTERRUPTORES, DALAS Y CASTILLOS  DE CONCRETO F´C=150 KG/CM2, DALA DE DESPLANTE APARENTE DE 28 X 10 CM. LOSAS Y MUROS DE CONCRETO F´C= 150 KG/CM2., ARMADO CON UNA VARILLA DEL # 3@20 CM. EN AMBAS DIRECCIONES, INCLUYE: SUM. Y COLOCACION DE BASE SOQUET (7 X 100) TRIFASICA DE 100 A. MCA. C.H. O SIMILAR EMPOTRADA EN MURETE,  EXCAVACION, CIMENTACION DE PIEDRA, BASES PARA CASTILLOS,  APLANADO, PINTURA VINILICA Y ESMALTE, PERFORACIONES, REGISTRO ELECTRICO, TUBERIAS CONDUIT GALV. PG. PARA CONEXION A PREPARACION AEREA DE MUFA YTUBERIA CONDUIT DE PVC. PESADO PARA CONEXION A REGISTRO DE DIST. Y CONEXION A SUBESTACION SUBTERRANEA, SEÑALIZACION DEL MURETE, PUERTAS METALICAS,  MATERIALES, HERRAMIENTAS, LIMPIEZA Y MANO DE OBRA.","PZA","1.0000",0,"CERO PESOS 00/100 M.N.",0,365185]
["03","RED SANITARIA",null,null,null,null,{"$f":"TEXT((G495), \"$ #,##0.00 ;\")","v":"$ 0.00 "}]
["03.01(565)","INSTALACION HIDRAULICA, SANITARIA Y GAS EN O. EXT.",null,null,null,null,{"$f":"TEXT(SUM(G496:G497), \"$ #,##0.00 ;\")","v":"$ 0.00 "}]
[585014,"SUMINISTRO Y COLOCACION DE TUBO DE P.V.C. SANITARIO (ANGER)  SERIE 25, CAMPANA, DE 6\" (150 MM) DIAM., INCLUYE: CONEXIONES, TRAZO, EXCAVACION,  PASOS POR CIMENTACION, CAMA DE ARENA, RELLENO COMPACTADO, DESPERDICIOS, PRUEBAS Y ACARREO DE MATERIALES AL SITIO DE SU COLOCACION.","ML ","50.0000",0,"CERO PESOS 00/100 M.N.",0,365190]
[596036,"REGISTRO SANITARIO DE 0.60 X 0.60 X 0.80 M, CON MURO DE LADRILLO DE LAMA DE 5.5 X 11.0 X 22.0 CM, ASENTADO CON MORTERO CEMENTO-ARENA 1:3, APLANADO CON MORTERO CEMENTO-ARENA DE RIO 1:3, INCLUYE: TRAZO, EXCAVACIONES, NIVELACION, RELLENO CON MATERIAL PRODUCTO DE EXCAVACION, RETIRO DE MATERIAL EXCEDENTE FUERA DE LA OBRA, TAPA DE CONCRETO F'C=200 KG/CM2, MARCO Y CONTRAMARCO DE ANGULO DE 1 1/2\" X 1/8\", MATERIALES, DESPERDICIOS, HERRAMIENTAS, MANO DE OBRA, LIMPIEZA, RETIRO DE MATERIAL PRODUCTO DE EXCAVACION FUERA DE LA OBRA Y ACARREO DE MATERIALES AL SITIO DE SU UTILIZACION.","PZA","4.0000",0,"CERO PESOS 00/100 M.N.",0,365202]
["04","RED HIDRAULICA",null,null,null,null,{"$f":"TEXT((G499), \"$ #,##0.00 ;\")","v":"$ 0.00 "}]
["04.01(565)","INSTALACION HIDRAULICA, SANITARIA Y GAS EN O. EXT.",null,null,null,null,{"$f":"TEXT(SUM(G500:G506), \"$ #,##0.00 ;\")","v":"$ 0.00 "}]
[589313,"SUMINISTRO Y TENDIDO DE TUBERÍA DE CPVC-CTS, PARA CEMENTAR  DE 19 MM DE DIAM. INCLUYE: TRAZO, CONEXIONES (COPLES, CODOS, TEES, NIPLES, ETC), DESPERDICIOS, ENCOFRADO CON CONCRETO F'C=100 KG/CM2 DE 6 X 15 CMS DE SECCION, MATERIALES MENORES Y DE CONSUMO, PRUEBAS, EXCAVACIÓN, RELLENO, HERRAMIENTAS, MANO DE OBRA Y ACARREO DE MATERIALES AL SITIO DE SU COLOCACIÓN.","ML ","50.0000",0,"CERO PESOS 00/100 M.N.",0,365191]
[589316,"SUMINISTRO Y TENDIDO DE TUBERIA DE CPVC-CTS, PARA CEMENTAR  DE 38 MM DE DIAM. INCLUYE: TRAZO, CONEXIONES (COPLES, CODOS, TEES, NIPLES, ETC), DESPERDICIOS, ENCOFRADO CON CONCRETO F'C=100 KG/CM2 DE 6 X 15 CMS DE SECCION, MATERIALES MENORES Y DE CONSUMO, PRUEBAS, EXCAVACION, RELLENO, HERRAMIENTAS, MANO DE OBRA Y ACARREO DE MATERIALES AL SITIO DE SU COLOCACION.","ML ","5.0000",0,"CERO PESOS 00/100 M.N.",0,365192]
[589317,"SUMINISTRO Y TENDIDO DE TUBERIA DE CPVC-CTS, PARA CEMENTAR  DE 50 MM DE DIAM. INCLUYE: TRAZO, CONEXIONES (COPLES, CODOS, TEES, NIPLES, ETC), DESPERDICIOS, ENCOFRADO CON CONCRETO F'C=100 KG/CM2 DE 6 X 15 CMS DE SECCION, MATERIALES MENORES Y DE CONSUMO, PRUEBAS, EXCAVACION, RELLENO, HERRAMIENTAS, MANO DE OBRA Y ACARREO DE MATERIALES AL SITIO DE SU COLOCACION.","ML ","15.0000",0,"CERO PESOS 00/100 M.N.",0,365193]
[591326,"SUMINISTRO E INSTALACION DE VALVULA DE COMPUERTA, MCA URREA FIG. 82 DE 38 MM DE DIAMETRO, EXTREMOS INTERIORES ROSCADOS, PARA UNA PRESION DE 125 LBS/PUG2,  INCLUYE: MATERIALES MENORES Y DE CONSUMO, PRUEBAS, HERRAMIENTAS, LIMPIEZA, MANO DE OBRA Y ACARREO DE MATERIALES AL SITIO DE  SU COLOCACION.","PZA","1.0000",0,"CERO PESOS 00/100 M.N.",0,365196]
[591327,"SUMINISTRO E INSTALACION DE VALVULA DE COMPUERTA, MCA URREA FIG. 82 DE 51 MM DE DIAMETRO, EXTREMOS INTERIORES ROSCADOS, PARA UNA PRESION DE 125 LBS/PUG2,  INCLUYE: MATERIALES MENORES Y DE CONSUMO, PRUEBAS, HERRAMIENTAS, LIMPIEZA, MANO DE OBRA Y ACARREO DE MATERIALES AL SITIO DE  SU COLOCACION.","PZA","1.0000",0,"CERO PESOS 00/100 M.N.",0,365197]
[591410,"SUMINISTRO Y COLOCACION DE VALVULA DE ESFERA (BOLA) EXTREMOS ROSCADOS 3/4\" (19 MM) DE DIAMETRO. MCA URREA, FIG. 550,  INCLUYE: MATERIALES MENORES Y DE CONSUMO, HERRAMIENTAS, PRUEBAS, LIMPIEZA, MANO DE OBRA Y ACARREOS DE MATERIALES AL SITIO DE SU COLOCACION.","PZA","1.0000",0,"CERO PESOS 00/100 M.N.",0,365198]
[596002,"REGISTRO HIDRAULICO DE 0.40 X 0.40 X 0.60 M, CON MURO DE LADRILLO DE LAMA 5.5 X 11.0 X 22.0 CM, ASENTADO CON MORTERO CEMENTO-ARENA 1:3, A SOGA, APLANADO CON MORTERO CEMENTO-ARENA DE RIO 1:3,  Y PISO DE CONCRETO ACABADO PULIDO. INCLUYE: TRAZO, EXCAVACIONES, NIVELACION, RELLENO CON MATERIAL PRODUCTO DE EXCAVACION, RETIRO DE MATERIAL EXCEDENTE FUERA DE LA OBRA, TAPA DE CONCRETO F'C=200 KG/CM2, MARCO Y CONTRAMARCO DE ANGULO DE 1 1/2\" X 1/8\", MATERIALES, DESPERDICIOS, HERRAMIENTAS, MANO DE OBRA, LIMPIEZA, RETIRO DE MATERIAL PRODUCTO DE EXCAVACION FUERA DE LA OBRA Y ACARREO DE MATERIALES AL SITIO DE SU UTILIZACION.","PZA","2.0000",0,"CERO PESOS 00/100 M.N.",0,365201]
["05","CISTERNA",null,null,null,null,{"$f":"TEXT((G508), \"$ #,##0.00 ;\")","v":"$ 0.00 "}]
["05.01(565)","INSTALACION HIDRAULICA, SANITARIA Y GAS EN O. EXT.",null,null,null,null,{"$f":"TEXT(SUM(G509:G510), \"$ #,##0.00 ;\")","v":"$ 0.00 "}]
[591312,"SUMINISTRO Y COLOCACION DE VALVULA DE FLOTADOR ALTA PRESION DE 19 MM  DE DIAM., CON BOLA DE COBRE DE 6\" DE DIAM. INC.: MATERIALES MENORES, PRUEBAS Y ACARREO DE MATERIALES AL SITIO DE SU COLOCACION.","PZA","1.0000",0,"CERO PESOS 00/100 M.N.",0,365195]
[597109,"SUMINISTRO Y COLOCACION  DE CISTERNA PREFABRICADA DE 10 M3 DE CAPACIDAD, FORMADA A BASE DE SUMINISTRO E INSTALACION DE 2 (DOS) CISTERNAS PREFABRICADA DE CONCRETO F`C=250 KG/CM2, ARMADA CON ACERO DE REFUERZO F`Y= 5000 KG/CM2, PARA UNA CAPACIDAD DE 5,000 LTS. APROXIMADAMENTE, INCLUYE: FLETE, GRUA, TRAZO, LIMPIEZA, EXCAVACIONES EN MATERIAL TIPO \"A\" Y/O \"B\",  NIVELACION, AFINE, CONFORMACION DEL TERRENO RESULTANTE, INTERCONEXION DE LAS 2 CISTERNAS CON TUBERIA Y CONEXIONES DE PVC CED. 40 DE 6\" DE DIAMETRO, FIRME DE CONCRETO F´C= 150 KG/CM2, ARMADO CON MALLA ELECTROSOLDADE 6 X 6-10/10 DE 10 CMS. DE ESPESOR,  BROCALES, TAPAS METALICA DE FO.FO. PARA REGISTRO, AGUA PARA LLENADO DE CISTERNA DURANTE EL RELLENO, RELLENOS A VOLTEO Y RELLENOS COMPACTADOS AL 90% DE SU PVSM., DESPERDICIOS, PRUEBAS, EQUIPO, GARANTIA POR ESCRITO DE POR LO MENOS DE 5 AÑO,  HERRAMIENTA, MANO DE OBRA Y RETIRO DE MATERIAL SOBRANTE PRODUCTO DE EXCAVACION FUERA DE LA OBRA. ","PZA","1.0000",0,"CERO PESOS 00/100 M.N.",0,365203]
[null,"RESUMEN DE PARTIDAS"]
["BAS-CONA-06608","CONSTRUCCIÓN DE DOS AULAS DIDÁCTICAS, NÚCLEO DE SERVICIOS SANITARIOS, ESTRUCTURA CON LONARIA, CANCHA DE USOS MÚLTIPLES, PÓRTICO DE INGRESO, CASETA PARA HIDRONEUMÁTICO, BARDA PERIMETRAL, REMODELACIÓN DE SANITARIOS EXISTENTES A DIRECCIÓN CON ANEXO Y BODEGA Y TRABAJOS OBRAS DE ACCESIBILIDAD Y REHABILITACIÓN EN LA TELESECUNDARIA MIGUEL HIDALGO Y COSTILLA CCT 14DTV0395Z, UBICADA EN LA LOCALIDAD TOTOLIMIXPA, MUNICIPIO DE SAN GABRIEL, JALISCO.",null,null,null,null,{"$f":"G17","v":"$ 0.00 "}]
["A","EDIFICIO A",null,null,null,null,{"$f":"G18","v":"$ 0.00 "}]
["A.01(140)","DEMOLICIONES, DESMONTAJES Y MECANICA DE SUELOS    ",null,null,null,null,{"$f":"G19","v":"$ 0.00 "}]
["A.02(355)","RECUBRIMIENTOS Y ACABADOS                         ",null,null,null,null,{"$f":"G32","v":"$ 0.00 "}]
["A.03(372)","PISOS                                             ",null,null,null,null,{"$f":"G34","v":"$ 0.00 "}]
["A.04(390)","CARPINTERIA                                       ",null,null,null,null,{"$f":"G40","v":"$ 0.00 "}]
["A.05(393)","PINTURA                                           ",null,null,null,null,{"$f":"G43","v":"$ 0.00 "}]
["D","EDIFICIO D",null,null,null,null,{"$f":"G48","v":"$ 0.00 "}]
["D.01(150)","TRABAJOS PRELIMINARES                             ",null,null,null,null,{"$f":"G49","v":"$ 0.00 "}]
["D.02(160)","CIMENTACION                                       ",null,null,null,null,{"$f":"G57","v":"$ 0.00 "}]
["D.03(200)","ESTRUCTURA                                        ",null,null,null,null,{"$f":"G75","v":"$ 0.00 "}]
["D.04(310)","MUROS, CADENAS, CASTILLOS Y REPIZONES.            ",null,null,null,null,{"$f":"G88","v":"$ 0.00 "}]
["D.05(319)","ENTREPISOS, CUBIERTA Y ACABADOS DE AZOTEA         ",null,null,null,null,{"$f":"G99","v":"$ 0.00 "}]
["D.06(355)","RECUBRIMIENTOS Y ACABADOS                         ",null,null,null,null,{"$f":"G101","v":"$ 0.00 "}]
["D.07(372)","PISOS                                             ",null,null,null,null,{"$f":"G107","v":"$ 0.00 "}]
["D.08(382)","ELEMENTOS COMPLEMENTARIOS DE ALBAÑILERIA          ",null,null,null,null,{"$f":"G120","v":"$ 0.00 "}]
["D.09(393)","PINTURA                                           ",null,null,null,null,{"$f":"G122","v":"$ 0.00 "}]
["D.10(396)","LIMPIEZA                                          ",null,null,null,null,{"$f":"G128","v":"$ 0.00 "}]
["D.11(410)","CANCELERIA, HERRERIA, ALUMINIO, VIDRIOS Y CHAPAS  ",null,null,null,null,{"$f":"G134","v":"$ 0.00 "}]
["D.12(510)","INSTALACION ELECTRICA EN EDIFICIO                 ",null,null,null,null,{"$f":"G143","v":"$ 0.00 "}]
["D.13(530)","EQUIPOS E INSTALACIONES DE REDES DE VOZ Y DATOS.  ",null,null,null,null,{"$f":"G152","v":"$ 0.00 "}]
["D.14(564)","INSTALACION HIDRAULICA, SANITARIA Y GAS EN EDIF.  ",null,null,null,null,{"$f":"G154","v":"$ 0.00 "}]
["D.15(590)","MUEBLES DE BAÑO Y COCINA                          ",null,null,null,null,{"$f":"G158","v":"$ 0.00 "}]
["EDFS","EDIFICIOS",null,null,null,null,{"$f":"G172","v":"$ 0.00 "}]
["EDFS.01(393)","PINTURA                                           ",null,null,null,null,{"$f":"G173","v":"$ 0.00 "}]
["EDFS.02(510)","INSTALACION ELECTRICA EN EDIFICIO                 ",null,null,null,null,{"$f":"G176","v":"$ 0.00 "}]
[30,"INGRESO TIPO",null,null,null,null,{"$f":"G178","v":"$ 0.00 "}]
["30.01(140)","DEMOLICIONES, DESMONTAJES Y MECANICA DE SUELOS    ",null,null,null,null,{"$f":"G179","v":"$ 0.00 "}]
["30.02(150)","TRABAJOS PRELIMINARES                             ",null,null,null,null,{"$f":"G182","v":"$ 0.00 "}]
["30.03(160)","CIMENTACION                                       ",null,null,null,null,{"$f":"G189","v":"$ 0.00 "}]
["30.04(200)","ESTRUCTURA                                        ",null,null,null,null,{"$f":"G200","v":"$ 0.00 "}]
["30.05(319)","ENTREPISOS, CUBIERTA Y ACABADOS DE AZOTEA         ",null,null,null,null,{"$f":"G207","v":"$ 0.00 "}]
["30.06(372)","PISOS                                             ",null,null,null,null,{"$f":"G209","v":"$ 0.00 "}]
["30.07(382)","ELEMENTOS COMPLEMENTARIOS DE ALBAÑILERIA          ",null,null,null,null,{"$f":"G213","v":"$ 0.00 "}]
["30.08(393)","PINTURA                                           ",null,null,null,null,{"$f":"G215","v":"$ 0.00 "}]
["30.09(396)","LIMPIEZA                                          ",null,null,null,null,{"$f":"G218","v":"$ 0.00 "}]
["30.10(410)","CANCELERIA, HERRERIA, ALUMINIO, VIDRIOS Y CHAPAS  ",null,null,null,null,{"$f":"G220","v":"$ 0.00 "}]
["30.11(510)","INSTALACION ELECTRICA EN EDIFICIO                 ",null,null,null,null,{"$f":"G223","v":"$ 0.00 "}]
["30.12(511)","INSTALACION ELECTRICA EN OBRA EXTERIOR            ",null,null,null,null,{"$f":"G226","v":"$ 0.00 "}]
["33B","MURO REJA",null,null,null,null,{"$f":"G229","v":"$ 0.00 "}]
["33B.01(140)","DEMOLICIONES, DESMONTAJES Y MECANICA DE SUELOS    ",null,null,null,null,{"$f":"G230","v":"$ 0.00 "}]
["33B.02(150)","TRABAJOS PRELIMINARES                             ",null,null,null,null,{"$f":"G232","v":"$ 0.00 "}]
["33B.03(160)","CIMENTACION                                       ",null,null,null,null,{"$f":"G238","v":"$ 0.00 "}]
["33B.04(310)","MUROS, CADENAS, CASTILLOS Y REPIZONES.            ",null,null,null,null,{"$f":"G246","v":"$ 0.00 "}]
["33B.05(355)","RECUBRIMIENTOS Y ACABADOS                         ",null,null,null,null,{"$f":"G250","v":"$ 0.00 "}]
["33B.06(372)","PISOS                                             ",null,null,null,null,{"$f":"G253","v":"$ 0.00 "}]
["33B.07(393)","PINTURA                                           ",null,null,null,null,{"$f":"G256","v":"$ 0.00 "}]
["33B.08(410)","CANCELERIA, HERRERIA, ALUMINIO, VIDRIOS Y CHAPAS  ",null,null,null,null,{"$f":"G259","v":"$ 0.00 "}]
[82,"CUBIERTA PARA PATIO CIVICO",null,null,null,null,{"$f":"G262","v":"$ 0.00 "}]
["82.01(140)","DEMOLICIONES, DESMONTAJES Y MECANICA DE SUELOS    ",null,null,null,null,{"$f":"G263","v":"$ 0.00 "}]
["82.02(150)","TRABAJOS PRELIMINARES                             ",null,null,null,null,{"$f":"G265","v":"$ 0.00 "}]
["82.03(160)","CIMENTACION                                       ",null,null,null,null,{"$f":"G270","v":"$ 0.00 "}]
["82.04(200)","ESTRUCTURA                                        ",null,null,null,null,{"$f":"G281","v":"$ 0.00 "}]
["82.05(319)","ENTREPISOS, CUBIERTA Y ACABADOS DE AZOTEA         ",null,null,null,null,{"$f":"G286","v":"$ 0.00 "}]
["82.06(372)","PISOS                                             ",null,null,null,null,{"$f":"G288","v":"$ 0.00 "}]
["82.07(393)","PINTURA                                           ",null,null,null,null,{"$f":"G290","v":"$ 0.00 "}]
["82.08(396)","LIMPIEZA                                          ",null,null,null,null,{"$f":"G294","v":"$ 0.00 "}]
["01","PLAZA Y ANDADORES",null,null,null,null,{"$f":"G296","v":"$ 0.00 "}]
["01.01(150)","TRABAJOS PRELIMINARES                             ",null,null,null,null,{"$f":"G297","v":"$ 0.00 "}]
["01.02(160)","CIMENTACION                                       ",null,null,null,null,{"$f":"G304","v":"$ 0.00 "}]
["01.03(372)","PISOS                                             ",null,null,null,null,{"$f":"G312","v":"$ 0.00 "}]
["01.04(396)","LIMPIEZA                                          ",null,null,null,null,{"$f":"G316","v":"$ 0.00 "}]
[15,"CUARTO DE MAQUINAS",null,null,null,null,{"$f":"G318","v":"$ 0.00 "}]
["15.01(150)","TRABAJOS PRELIMINARES                             ",null,null,null,null,{"$f":"G319","v":"$ 0.00 "}]
["15.02(160)","CIMENTACION                                       ",null,null,null,null,{"$f":"G326","v":"$ 0.00 "}]
["15.03(200)","ESTRUCTURA                                        ",null,null,null,null,{"$f":"G337","v":"$ 0.00 "}]
["15.04(310)","MUROS, CADENAS, CASTILLOS Y REPIZONES.            ",null,null,null,null,{"$f":"G341","v":"$ 0.00 "}]
["15.05(319)","ENTREPISOS, CUBIERTA Y ACABADOS DE AZOTEA         ",null,null,null,null,{"$f":"G346","v":"$ 0.00 "}]
["15.06(355)","RECUBRIMIENTOS Y ACABADOS                         ",null,null,null,null,{"$f":"G352","v":"$ 0.00 "}]
["15.07(372)","PISOS                                             ",null,null,null,null,{"$f":"G356","v":"$ 0.00 "}]
["15.08(382)","ELEMENTOS COMPLEMENTARIOS DE ALBAÑILERIA          ",null,null,null,null,{"$f":"G359","v":"$ 0.00 "}]
["15.09(393)","PINTURA                                           ",null,null,null,null,{"$f":"G361","v":"$ 0.00 "}]
["15.10(396)","LIMPIEZA                                          ",null,null,null,null,{"$f":"G366","v":"$ 0.00 "}]
["15.11(410)","CANCELERIA, HERRERIA, ALUMINIO, VIDRIOS Y CHAPAS  ",null,null,null,null,{"$f":"G368","v":"$ 0.00 "}]
["15.12(511)","INSTALACION ELECTRICA EN OBRA EXTERIOR            ",null,null,null,null,{"$f":"G372","v":"$ 0.00 "}]
["15.13(565)","INSTALACION HIDRAULICA, SANITARIA Y GAS EN O. EXT.",null,null,null,null,{"$f":"G381","v":"$ 0.00 "}]
[17,"CANCHA DE USOS MULTIPLES 1",null,null,null,null,{"$f":"G388","v":"$ 0.00 "}]
["17.01(150)","TRABAJOS PRELIMINARES                             ",null,null,null,null,{"$f":"G389","v":"$ 0.00 "}]
["17.02(160)","CIMENTACION                                       ",null,null,null,null,{"$f":"G396","v":"$ 0.00 "}]
["17.03(372)","PISOS                                             ",null,null,null,null,{"$f":"G405","v":"$ 0.00 "}]
["17.04(393)","PINTURA                                           ",null,null,null,null,{"$f":"G411","v":"$ 0.00 "}]
["17.05(396)","LIMPIEZA                                          ",null,null,null,null,{"$f":"G416","v":"$ 0.00 "}]
["17.06(410)","CANCELERIA, HERRERIA, ALUMINIO, VIDRIOS Y CHAPAS  ",null,null,null,null,{"$f":"G418","v":"$ 0.00 "}]
["17.07(615)","JUEGOS INFANTILES Y ARENEROS                      ",null,null,null,null,{"$f":"G421","v":"$ 0.00 "}]
["33A","MURO DIVISORIO",null,null,null,null,{"$f":"G424","v":"$ 0.00 "}]
["33A.01(150)","TRABAJOS PRELIMINARES                             ",null,null,null,null,{"$f":"G425","v":"$ 0.00 "}]
["33A.02(160)","CIMENTACION                                       ",null,null,null,null,{"$f":"G431","v":"$ 0.00 "}]
["33A.03(310)","MUROS, CADENAS, CASTILLOS Y REPIZONES.            ",null,null,null,null,{"$f":"G438","v":"$ 0.00 "}]
["33A.04(355)","RECUBRIMIENTOS Y ACABADOS                         ",null,null,null,null,{"$f":"G444","v":"$ 0.00 "}]
["33A.05(393)","PINTURA                                           ",null,null,null,null,{"$f":"G447","v":"$ 0.00 "}]
[69,"RAMPAS",null,null,null,null,{"$f":"G449","v":"$ 0.00 "}]
["69.01(150)","TRABAJOS PRELIMINARES                             ",null,null,null,null,{"$f":"G450","v":"$ 0.00 "}]
["69.02(160)","CIMENTACION                                       ",null,null,null,null,{"$f":"G456","v":"$ 0.00 "}]
["69.03(310)","MUROS, CADENAS, CASTILLOS Y REPIZONES.            ",null,null,null,null,{"$f":"G463","v":"$ 0.00 "}]
["69.04(372)","PISOS                                             ",null,null,null,null,{"$f":"G465","v":"$ 0.00 "}]
["69.05(393)","PINTURA                                           ",null,null,null,null,{"$f":"G467","v":"$ 0.00 "}]
["69.06(396)","LIMPIEZA                                          ",null,null,null,null,{"$f":"G469","v":"$ 0.00 "}]
["69.07(410)","CANCELERIA, HERRERIA, ALUMINIO, VIDRIOS Y CHAPAS  ",null,null,null,null,{"$f":"G471","v":"$ 0.00 "}]
["02","RED ELECTRICA",null,null,null,null,{"$f":"G473","v":"$ 0.00 "}]
["02.01(511)","INSTALACION ELECTRICA EN OBRA EXTERIOR            ",null,null,null,null,{"$f":"G474","v":"$ 0.00 "}]
["08","MURETE DE ACOMETIDA",null,null,null,null,{"$f":"G491","v":"$ 0.00 "}]
["08.01(511)","INSTALACION ELECTRICA EN OBRA EXTERIOR            ",null,null,null,null,{"$f":"G492","v":"$ 0.00 "}]
["03","RED SANITARIA",null,null,null,null,{"$f":"G494","v":"$ 0.00 "}]
["03.01(565)","INSTALACION HIDRAULICA, SANITARIA Y GAS EN O. EXT.",null,null,null,null,{"$f":"G495","v":"$ 0.00 "}]
["04","RED HIDRAULICA",null,null,null,null,{"$f":"G498","v":"$ 0.00 "}]
["04.01(565)","INSTALACION HIDRAULICA, SANITARIA Y GAS EN O. EXT.",null,null,null,null,{"$f":"G499","v":"$ 0.00 "}]
["05","CISTERNA",null,null,null,null,{"$f":"G507","v":"$ 0.00 "}]
["05.01(565)","INSTALACION HIDRAULICA, SANITARIA Y GAS EN O. EXT.",null,null,null,null,{"$f":"G508","v":"$ 0.00 "}]
[]
["IMPORTE CON LETRA (IVA INCLUIDO)",null,null,null,null,"SUBTOTAL M.N.",{"$f":"TEXT(G17,  \"$ #,##0.00 ;\")","v":"$ 0.00 "}]
[{"$f":"UPPER(CONVERTIRNUM(ROUND( G17 * 1.16, 2)))","v":"CERO PESOS 00/100 M.N."},null,null,null,null,"IVA M.N.",{"$f":"TEXT(ROUND( G17 * 0.16, 2),  \"$ #,##0.00 ;\")","v":"$ 0.00 "}]
[null,null,null,null,null,"TOTAL M.N.",{"$f":"TEXT(ROUND( G17 * 1.16, 2),  \"$ #,##0.00 ;\")","v":"$ 0.00 "}]